Organisation Code,Organisation Label,Effective Date,Organisational Unit,Service Division Label,Category Internal Name,Purpose,Detailed Expenditure Code,Payment Date,Transaction Number,Irrecoverable VAT Amount,Amount,Capital Or Revenue,Beneficiary Name,Procurement Card
Http://opendatacommunities.org/id/metropolitan-district-council/leeds,Leeds City Council,30/09/2021,City Development,Libraries Arts & Heritage,Supplies and Services,Advertising,211,17/09/2021,2109-00001,0.00,1500.00,R,A & N Media Finance Services Ltd,No
Http://opendatacommunities.org/id/metropolitan-district-council/leeds,Leeds City Council,30/09/2021,Adults and Health,Services For Older People Under 65 P/Dis,Agency Payments,Sheltered Accommodation,569,15/09/2021,2109-00002,0.00,5400.00,R,A & V TRANSITIONAL HOMES,No
Http://opendatacommunities.org/id/metropolitan-district-council/leeds,Leeds City Council,30/09/2021,Children and Families,Social Care,Agency Payments,Services Rendered By Other Organisations,511,03/09/2021,2109-00003,0.00,217.43,R,REDACTED PERSONAL DATA,No
Http://opendatacommunities.org/id/metropolitan-district-council/leeds,Leeds City Council,30/09/2021,Resources and Housing,Leeds Building Services,Supplies and Services,Other Hired And Contracted Services,265,07/09/2021,2109-00004,0.00,3750.00,R,A Buckler (Haulage) Ltd,No
Http://opendatacommunities.org/id/metropolitan-district-council/leeds,Leeds City Council,30/09/2021,Resources and Housing,Leeds Building Services,Supplies and Services,Other Hired And Contracted Services,265,07/09/2021,2109-00005,0.00,8035.00,R,A Buckler (Haulage) Ltd,No
Http://opendatacommunities.org/id/metropolitan-district-council/leeds,Leeds City Council,30/09/2021,Children and Families,Social Care,Agency Payments,Services Rendered By Other Organisations,511,03/09/2021,2109-00006,0.00,217.43,R,REDACTED PERSONAL DATA,No
Http://opendatacommunities.org/id/metropolitan-district-council/leeds,Leeds City Council,30/09/2021,Resources and Housing,HRA Housing Leeds,Capital,CONSTRUCTION,3,03/09/2021,2109-00007,0.00,84929.93,C,A Connolly Limited,No
Http://opendatacommunities.org/id/metropolitan-district-council/leeds,Leeds City Council,30/09/2021,Resources and Housing,Leeds Building Services,Supplies and Services,Other Hired And Contracted Services,265,08/09/2021,2109-00008,0.00,1460.00,R,A Coole Electrical Ltd,No
Http://opendatacommunities.org/id/metropolitan-district-council/leeds,Leeds City Council,30/09/2021,Resources and Housing,Leeds Building Services,Supplies and Services,Other Hired And Contracted Services,265,08/09/2021,2109-00009,0.00,3080.00,R,A Coole Electrical Ltd,No
Http://opendatacommunities.org/id/metropolitan-district-council/leeds,Leeds City Council,30/09/2021,Resources and Housing,Leeds Building Services,Supplies and Services,Other Hired And Contracted Services,265,08/09/2021,2109-00010,0.00,2905.00,R,A Coole Electrical Ltd,No
Http://opendatacommunities.org/id/metropolitan-district-council/leeds,Leeds City Council,30/09/2021,Resources and Housing,Leeds Building Services,Supplies and Services,Other Hired And Contracted Services,265,08/09/2021,2109-00011,0.00,2693.00,R,A Coole Electrical Ltd,No
Http://opendatacommunities.org/id/metropolitan-district-council/leeds,Leeds City Council,30/09/2021,Resources and Housing,Leeds Building Services,Supplies and Services,Other Hired And Contracted Services,265,08/09/2021,2109-00012,0.00,2720.00,R,A Coole Electrical Ltd,No
Http://opendatacommunities.org/id/metropolitan-district-council/leeds,Leeds City Council,30/09/2021,Resources and Housing,Leeds Building Services,Supplies and Services,Other Hired And Contracted Services,265,10/09/2021,2109-00013,0.00,1913.00,R,A Coole Electrical Ltd,No
Http://opendatacommunities.org/id/metropolitan-district-council/leeds,Leeds City Council,30/09/2021,Resources and Housing,Leeds Building Services,Supplies and Services,Other Hired And Contracted Services,265,10/09/2021,2109-00014,0.00,1275.00,R,A Coole Electrical Ltd,No
Http://opendatacommunities.org/id/metropolitan-district-council/leeds,Leeds City Council,30/09/2021,Resources and Housing,Leeds Building Services,Supplies and Services,Other Hired And Contracted Services,265,10/09/2021,2109-00015,0.00,1750.00,R,A Coole Electrical Ltd,No
Http://opendatacommunities.org/id/metropolitan-district-council/leeds,Leeds City Council,30/09/2021,Resources and Housing,Leeds Building Services,Supplies and Services,Other Hired And Contracted Services,265,10/09/2021,2109-00016,0.00,1590.00,R,A Coole Electrical Ltd,No
Http://opendatacommunities.org/id/metropolitan-district-council/leeds,Leeds City Council,30/09/2021,Resources and Housing,Leeds Building Services,Supplies and Services,Other Hired And Contracted Services,265,17/09/2021,2109-00017,0.00,1635.00,R,A Coole Electrical Ltd,No
Http://opendatacommunities.org/id/metropolitan-district-council/leeds,Leeds City Council,30/09/2021,Resources and Housing,Leeds Building Services,Supplies and Services,Other Hired And Contracted Services,265,17/09/2021,2109-00018,0.00,1330.00,R,A Coole Electrical Ltd,No
Http://opendatacommunities.org/id/metropolitan-district-council/leeds,Leeds City Council,30/09/2021,Resources and Housing,Leeds Building Services,Supplies and Services,Other Hired And Contracted Services,265,17/09/2021,2109-00019,0.00,953.00,R,A Coole Electrical Ltd,No
Http://opendatacommunities.org/id/metropolitan-district-council/leeds,Leeds City Council,30/09/2021,Resources and Housing,Leeds Building Services,Supplies and Services,Other Hired And Contracted Services,265,17/09/2021,2109-00020,0.00,2475.00,R,A Coole Electrical Ltd,No
Http://opendatacommunities.org/id/metropolitan-district-council/leeds,Leeds City Council,30/09/2021,Resources and Housing,Leeds Building Services,Supplies and Services,Other Hired And Contracted Services,265,17/09/2021,2109-00021,0.00,3108.00,R,A Coole Electrical Ltd,No
Http://opendatacommunities.org/id/metropolitan-district-council/leeds,Leeds City Council,30/09/2021,Resources and Housing,Leeds Building Services,Supplies and Services,Other Hired And Contracted Services,265,22/09/2021,2109-00022,0.00,1715.00,R,A Coole Electrical Ltd,No
Http://opendatacommunities.org/id/metropolitan-district-council/leeds,Leeds City Council,30/09/2021,Resources and Housing,Leeds Building Services,Supplies and Services,Other Hired And Contracted Services,265,22/09/2021,2109-00023,0.00,2980.00,R,A Coole Electrical Ltd,No
Http://opendatacommunities.org/id/metropolitan-district-council/leeds,Leeds City Council,30/09/2021,Resources and Housing,Leeds Building Services,Supplies and Services,Other Hired And Contracted Services,265,24/09/2021,2109-00024,0.00,1770.00,R,A Coole Electrical Ltd,No
Http://opendatacommunities.org/id/metropolitan-district-council/leeds,Leeds City Council,30/09/2021,Children and Families,Social Care,Agency Payments,Contact,548,03/09/2021,2109-00025,0.00,9.40,R,REDACTED PERSONAL DATA,No
Http://opendatacommunities.org/id/metropolitan-district-council/leeds,Leeds City Council,30/09/2021,Children and Families,Social Care,Agency Payments,Contact,548,10/09/2021,2109-00026,0.00,9.40,R,REDACTED PERSONAL DATA,No
Http://opendatacommunities.org/id/metropolitan-district-council/leeds,Leeds City Council,30/09/2021,Children and Families,Social Care,Agency Payments,Contact,548,17/09/2021,2109-00027,0.00,9.40,R,REDACTED PERSONAL DATA,No
Http://opendatacommunities.org/id/metropolitan-district-council/leeds,Leeds City Council,30/09/2021,Children and Families,Social Care,Agency Payments,Contact,548,24/09/2021,2109-00028,0.00,9.40,R,REDACTED PERSONAL DATA,No
Http://opendatacommunities.org/id/metropolitan-district-council/leeds,Leeds City Council,30/09/2021,Communities and Environment,Customer Access,Supplies and Services,Bought In Professional Services,277,02/09/2021,2109-00029,0.00,45.00,R,A D Dumitru,No
Http://opendatacommunities.org/id/metropolitan-district-council/leeds,Leeds City Council,30/09/2021,Communities and Environment,Customer Access,Supplies and Services,Bought In Professional Services,277,02/09/2021,2109-00030,0.00,18.00,R,A D Dumitru,No
Http://opendatacommunities.org/id/metropolitan-district-council/leeds,Leeds City Council,30/09/2021,Communities and Environment,Customer Access,Supplies and Services,Bought In Professional Services,277,02/09/2021,2109-00031,0.00,18.00,R,A D Dumitru,No
Http://opendatacommunities.org/id/metropolitan-district-council/leeds,Leeds City Council,30/09/2021,Communities and Environment,Customer Access,Supplies and Services,Bought In Professional Services,277,08/09/2021,2109-00032,0.00,18.00,R,A D Dumitru,No
Http://opendatacommunities.org/id/metropolitan-district-council/leeds,Leeds City Council,30/09/2021,Communities and Environment,Customer Access,Supplies and Services,Bought In Professional Services,277,08/09/2021,2109-00033,0.00,18.00,R,A D Dumitru,No
Http://opendatacommunities.org/id/metropolitan-district-council/leeds,Leeds City Council,30/09/2021,Communities and Environment,Customer Access,Supplies and Services,Bought In Professional Services,277,15/09/2021,2109-00034,0.00,72.00,R,A D Dumitru,No
Http://opendatacommunities.org/id/metropolitan-district-council/leeds,Leeds City Council,30/09/2021,Communities and Environment,Customer Access,Supplies and Services,Bought In Professional Services,277,29/09/2021,2109-00035,0.00,9.00,R,A D Dumitru,No
Http://opendatacommunities.org/id/metropolitan-district-council/leeds,Leeds City Council,30/09/2021,Communities and Environment,Customer Access,Supplies and Services,Bought In Professional Services,277,29/09/2021,2109-00036,0.00,18.00,R,A D Dumitru,No
Http://opendatacommunities.org/id/metropolitan-district-council/leeds,Leeds City Council,30/09/2021,Communities and Environment,Customer Access,Supplies and Services,Bought In Professional Services,277,29/09/2021,2109-00037,0.00,9.00,R,A D Dumitru,No
Http://opendatacommunities.org/id/metropolitan-district-council/leeds,Leeds City Council,30/09/2021,Children and Families,Social Care,Agency Payments,Services Rendered By Voluntary Sector,505,01/09/2021,2109-00038,0.00,783.90,R,REDACTED PERSONAL DATA,No
Http://opendatacommunities.org/id/metropolitan-district-council/leeds,Leeds City Council,30/09/2021,Children and Families,Social Care,Agency Payments,Services Rendered By Voluntary Sector,505,03/09/2021,2109-00039,0.00,3806.61,R,REDACTED PERSONAL DATA,No
Http://opendatacommunities.org/id/metropolitan-district-council/leeds,Leeds City Council,30/09/2021,Children and Families,Social Care,Agency Payments,Services Rendered By Other Organisations,511,01/09/2021,2109-00040,0.00,522.60,R,REDACTED PERSONAL DATA,No
Http://opendatacommunities.org/id/metropolitan-district-council/leeds,Leeds City Council,30/09/2021,Children and Families,Social Care,Agency Payments,Services Rendered By Other Organisations,511,03/09/2021,2109-00041,0.00,217.43,R,REDACTED PERSONAL DATA,No
Http://opendatacommunities.org/id/metropolitan-district-council/leeds,Leeds City Council,30/09/2021,Children and Families,Social Care,Agency Payments,Services Rendered By Other Organisations,511,03/09/2021,2109-00042,0.00,587.05,R,REDACTED PERSONAL DATA,No
Http://opendatacommunities.org/id/metropolitan-district-council/leeds,Leeds City Council,30/09/2021,Adults and Health,Other Generic Services,Agency Payments,Fees To Carers,563,10/09/2021,2109-00043,0.00,204.75,R,REDACTED PERSONAL DATA,No
Http://opendatacommunities.org/id/metropolitan-district-council/leeds,Leeds City Council,30/09/2021,Adults and Health,Other Generic Services,Agency Payments,Fees To Carers,563,16/09/2021,2109-00044,0.00,509.22,R,REDACTED PERSONAL DATA,No
Http://opendatacommunities.org/id/metropolitan-district-council/leeds,Leeds City Council,30/09/2021,Adults and Health,Other Generic Services,Agency Payments,Fees To Carers,563,16/09/2021,2109-00045,0.00,56.70,R,REDACTED PERSONAL DATA,No
Http://opendatacommunities.org/id/metropolitan-district-council/leeds,Leeds City Council,30/09/2021,City Development,Libraries Arts & Heritage,Supplies and Services,Other Hired And Contracted Services,265,13/09/2021,2109-00046,0.00,105.00,R,REDACTED COMMERCIAL CONFIDENTIALITY,No
Http://opendatacommunities.org/id/metropolitan-district-council/leeds,Leeds City Council,30/09/2021,Resources and Housing,Leeds Building Services,Supplies and Services,Operational Materials,205,08/09/2021,2109-00047,0.00,-433.00,R,A J H  Pump Supply & Repair Ltd,No
Http://opendatacommunities.org/id/metropolitan-district-council/leeds,Leeds City Council,30/09/2021,Resources and Housing,Leeds Building Services,Supplies and Services,Operational Materials,205,08/09/2021,2109-00048,0.00,995.00,R,A J H  Pump Supply & Repair Ltd,No
Http://opendatacommunities.org/id/metropolitan-district-council/leeds,Leeds City Council,30/09/2021,Resources and Housing,Leeds Building Services,Supplies and Services,Operational Materials,205,15/09/2021,2109-00049,0.00,1558.96,R,A J H  Pump Supply & Repair Ltd,No
Http://opendatacommunities.org/id/metropolitan-district-council/leeds,Leeds City Council,30/09/2021,Resources and Housing,Leeds Building Services,Supplies and Services,Operational Materials,205,15/09/2021,2109-00050,0.00,3590.00,R,A J H  Pump Supply & Repair Ltd,No
Http://opendatacommunities.org/id/metropolitan-district-council/leeds,Leeds City Council,30/09/2021,Resources and Housing,Leeds Building Services,Supplies and Services,Operational Materials,205,16/09/2021,2109-00051,0.00,265.00,R,A J H  Pump Supply & Repair Ltd,No
Http://opendatacommunities.org/id/metropolitan-district-council/leeds,Leeds City Council,30/09/2021,Resources and Housing,Leeds Building Services,Supplies and Services,Operational Materials,205,23/09/2021,2109-00052,0.00,4765.00,R,A J H  Pump Supply & Repair Ltd,No
Http://opendatacommunities.org/id/metropolitan-district-council/leeds,Leeds City Council,30/09/2021,Resources and Housing,Leeds Building Services,Supplies and Services,Other Hired And Contracted Services,265,24/09/2021,2109-00053,0.00,180.00,R,A J H  Pump Supply & Repair Ltd,No
Http://opendatacommunities.org/id/metropolitan-district-council/leeds,Leeds City Council,30/09/2021,Resources and Housing,Leeds Building Services,Supplies and Services,Operational Materials,205,30/09/2021,2109-00054,0.00,795.00,R,A J H  Pump Supply & Repair Ltd,No
Http://opendatacommunities.org/id/metropolitan-district-council/leeds,Leeds City Council,30/09/2021,Children and Families,Social Care,Agency Payments,Services Rendered By Other Organisations,511,03/09/2021,2109-00055,0.00,1739.40,R,REDACTED PERSONAL DATA,No
Http://opendatacommunities.org/id/metropolitan-district-council/leeds,Leeds City Council,30/09/2021,Communities and Environment,Benefits Welfare and Poverty,Supplies and Services,Grant Related Expenditure,290,29/09/2021,2109-00056,0.00,500.00,R,REDACTED PERSONAL DATA,No
Http://opendatacommunities.org/id/metropolitan-district-council/leeds,Leeds City Council,30/09/2021,Communities and Environment,Benefits Welfare and Poverty,Supplies and Services,Grant Related Expenditure,298,13/09/2021,2109-00057,0.00,500.00,R,REDACTED PERSONAL DATA,No
Http://opendatacommunities.org/id/metropolitan-district-council/leeds,Leeds City Council,30/09/2021,Communities and Environment,Customer Access,Supplies and Services,Bought In Professional Services,277,02/09/2021,2109-00058,0.00,63.00,R,A MOHAMMED,No
Http://opendatacommunities.org/id/metropolitan-district-council/leeds,Leeds City Council,30/09/2021,Communities and Environment,Customer Access,Supplies and Services,Bought In Professional Services,277,02/09/2021,2109-00059,0.00,18.00,R,A MOHAMMED,No
Http://opendatacommunities.org/id/metropolitan-district-council/leeds,Leeds City Council,30/09/2021,Communities and Environment,Customer Access,Supplies and Services,Bought In Professional Services,277,02/09/2021,2109-00060,0.00,45.00,R,A MOHAMMED,No
Http://opendatacommunities.org/id/metropolitan-district-council/leeds,Leeds City Council,30/09/2021,Communities and Environment,Customer Access,Supplies and Services,Bought In Professional Services,277,15/09/2021,2109-00061,0.00,18.00,R,A MOHAMMED,No
Http://opendatacommunities.org/id/metropolitan-district-council/leeds,Leeds City Council,30/09/2021,Communities and Environment,Customer Access,Supplies and Services,Bought In Professional Services,277,15/09/2021,2109-00062,0.00,18.00,R,A MOHAMMED,No
Http://opendatacommunities.org/id/metropolitan-district-council/leeds,Leeds City Council,30/09/2021,Communities and Environment,Customer Access,Supplies and Services,Bought In Professional Services,277,15/09/2021,2109-00063,0.00,27.00,R,A MOHAMMED,No
Http://opendatacommunities.org/id/metropolitan-district-council/leeds,Leeds City Council,30/09/2021,Communities and Environment,Customer Access,Supplies and Services,Bought In Professional Services,277,15/09/2021,2109-00064,0.00,18.00,R,A MOHAMMED,No
Http://opendatacommunities.org/id/metropolitan-district-council/leeds,Leeds City Council,30/09/2021,Communities and Environment,Customer Access,Supplies and Services,Bought In Professional Services,277,15/09/2021,2109-00065,0.00,13.50,R,A MOHAMMED,No
Http://opendatacommunities.org/id/metropolitan-district-council/leeds,Leeds City Council,30/09/2021,Communities and Environment,Customer Access,Supplies and Services,Bought In Professional Services,277,15/09/2021,2109-00066,0.00,36.00,R,A MOHAMMED,No
Http://opendatacommunities.org/id/metropolitan-district-council/leeds,Leeds City Council,30/09/2021,Communities and Environment,Customer Access,Supplies and Services,Bought In Professional Services,277,23/09/2021,2109-00067,0.00,18.00,R,A MOHAMMED,No
Http://opendatacommunities.org/id/metropolitan-district-council/leeds,Leeds City Council,30/09/2021,Communities and Environment,Customer Access,Supplies and Services,Bought In Professional Services,277,23/09/2021,2109-00068,0.00,27.00,R,A MOHAMMED,No
Http://opendatacommunities.org/id/metropolitan-district-council/leeds,Leeds City Council,30/09/2021,Communities and Environment,Customer Access,Supplies and Services,Bought In Professional Services,277,23/09/2021,2109-00069,0.00,18.00,R,A MOHAMMED,No
Http://opendatacommunities.org/id/metropolitan-district-council/leeds,Leeds City Council,30/09/2021,Communities and Environment,Customer Access,Supplies and Services,Bought In Professional Services,277,29/09/2021,2109-00070,0.00,9.00,R,A MOHAMMED,No
Http://opendatacommunities.org/id/metropolitan-district-council/leeds,Leeds City Council,30/09/2021,Communities and Environment,Customer Access,Supplies and Services,Bought In Professional Services,277,29/09/2021,2109-00071,0.00,18.00,R,A MOHAMMED,No
Http://opendatacommunities.org/id/metropolitan-district-council/leeds,Leeds City Council,30/09/2021,Communities and Environment,Customer Access,Supplies and Services,Bought In Professional Services,277,29/09/2021,2109-00072,0.00,27.00,R,A MOHAMMED,No
Http://opendatacommunities.org/id/metropolitan-district-council/leeds,Leeds City Council,30/09/2021,Communities and Environment,Customer Access,Supplies and Services,Bought In Professional Services,277,29/09/2021,2109-00073,0.00,13.50,R,A MOHAMMED,No
Http://opendatacommunities.org/id/metropolitan-district-council/leeds,Leeds City Council,30/09/2021,Communities and Environment,Customer Access,Supplies and Services,Bought In Professional Services,277,29/09/2021,2109-00074,0.00,54.00,R,A MOHAMMED,No
Http://opendatacommunities.org/id/metropolitan-district-council/leeds,Leeds City Council,30/09/2021,Communities and Environment,Customer Access,Supplies and Services,Bought In Professional Services,277,29/09/2021,2109-00075,0.00,9.00,R,A MOHAMMED,No
Http://opendatacommunities.org/id/metropolitan-district-council/leeds,Leeds City Council,30/09/2021,Communities and Environment,Customer Access,Supplies and Services,Bought In Professional Services,277,29/09/2021,2109-00076,0.00,18.00,R,A MOHAMMED,No
Http://opendatacommunities.org/id/metropolitan-district-council/leeds,Leeds City Council,30/09/2021,Communities and Environment,Customer Access,Supplies and Services,Bought In Professional Services,277,29/09/2021,2109-00077,0.00,18.00,R,A MOHAMMED,No
Http://opendatacommunities.org/id/metropolitan-district-council/leeds,Leeds City Council,30/09/2021,Children and Families,Social Care,Agency Payments,Services Rendered By Other Organisations,511,01/09/2021,2109-00078,0.00,1567.80,R,REDACTED PERSONAL DATA,No
Http://opendatacommunities.org/id/metropolitan-district-council/leeds,Leeds City Council,30/09/2021,Children and Families,Social Care,Agency Payments,Services Rendered By Other Organisations,511,03/09/2021,2109-00079,0.00,1672.50,R,REDACTED PERSONAL DATA,No
Http://opendatacommunities.org/id/metropolitan-district-council/leeds,Leeds City Council,30/09/2021,Communities and Environment,Customer Access,Supplies and Services,Bought In Professional Services,277,02/09/2021,2109-00080,0.00,18.00,R,A NAMAKI,No
Http://opendatacommunities.org/id/metropolitan-district-council/leeds,Leeds City Council,30/09/2021,Communities and Environment,Customer Access,Supplies and Services,Bought In Professional Services,277,02/09/2021,2109-00081,0.00,27.00,R,A NAMAKI,No
Http://opendatacommunities.org/id/metropolitan-district-council/leeds,Leeds City Council,30/09/2021,Communities and Environment,Customer Access,Supplies and Services,Bought In Professional Services,277,02/09/2021,2109-00082,0.00,18.00,R,A NAMAKI,No
Http://opendatacommunities.org/id/metropolitan-district-council/leeds,Leeds City Council,30/09/2021,Communities and Environment,Customer Access,Supplies and Services,Bought In Professional Services,277,02/09/2021,2109-00083,0.00,27.00,R,A NAMAKI,No
Http://opendatacommunities.org/id/metropolitan-district-council/leeds,Leeds City Council,30/09/2021,Communities and Environment,Customer Access,Supplies and Services,Bought In Professional Services,277,08/09/2021,2109-00084,0.00,18.00,R,A NAMAKI,No
Http://opendatacommunities.org/id/metropolitan-district-council/leeds,Leeds City Council,30/09/2021,Communities and Environment,Customer Access,Supplies and Services,Bought In Professional Services,277,08/09/2021,2109-00085,0.00,27.00,R,A NAMAKI,No
Http://opendatacommunities.org/id/metropolitan-district-council/leeds,Leeds City Council,30/09/2021,Communities and Environment,Customer Access,Supplies and Services,Bought In Professional Services,277,08/09/2021,2109-00086,0.00,18.00,R,A NAMAKI,No
Http://opendatacommunities.org/id/metropolitan-district-council/leeds,Leeds City Council,30/09/2021,Communities and Environment,Customer Access,Supplies and Services,Bought In Professional Services,277,08/09/2021,2109-00087,0.00,18.00,R,A NAMAKI,No
Http://opendatacommunities.org/id/metropolitan-district-council/leeds,Leeds City Council,30/09/2021,Communities and Environment,Customer Access,Supplies and Services,Bought In Professional Services,277,15/09/2021,2109-00088,0.00,18.00,R,A NAMAKI,No
Http://opendatacommunities.org/id/metropolitan-district-council/leeds,Leeds City Council,30/09/2021,Communities and Environment,Customer Access,Supplies and Services,Bought In Professional Services,277,15/09/2021,2109-00089,0.00,18.00,R,A NAMAKI,No
Http://opendatacommunities.org/id/metropolitan-district-council/leeds,Leeds City Council,30/09/2021,Communities and Environment,Customer Access,Supplies and Services,Bought In Professional Services,277,15/09/2021,2109-00090,0.00,18.00,R,A NAMAKI,No
Http://opendatacommunities.org/id/metropolitan-district-council/leeds,Leeds City Council,30/09/2021,Communities and Environment,Customer Access,Supplies and Services,Bought In Professional Services,277,15/09/2021,2109-00091,0.00,18.00,R,A NAMAKI,No
Http://opendatacommunities.org/id/metropolitan-district-council/leeds,Leeds City Council,30/09/2021,Communities and Environment,Customer Access,Supplies and Services,Bought In Professional Services,277,15/09/2021,2109-00092,0.00,18.00,R,A NAMAKI,No
Http://opendatacommunities.org/id/metropolitan-district-council/leeds,Leeds City Council,30/09/2021,Communities and Environment,Customer Access,Supplies and Services,Bought In Professional Services,277,15/09/2021,2109-00093,0.00,18.00,R,A NAMAKI,No
Http://opendatacommunities.org/id/metropolitan-district-council/leeds,Leeds City Council,30/09/2021,Communities and Environment,Customer Access,Supplies and Services,Bought In Professional Services,277,15/09/2021,2109-00094,0.00,18.00,R,A NAMAKI,No
Http://opendatacommunities.org/id/metropolitan-district-council/leeds,Leeds City Council,30/09/2021,Communities and Environment,Customer Access,Supplies and Services,Bought In Professional Services,277,23/09/2021,2109-00095,0.00,18.00,R,A NAMAKI,No
Http://opendatacommunities.org/id/metropolitan-district-council/leeds,Leeds City Council,30/09/2021,Communities and Environment,Customer Access,Supplies and Services,Bought In Professional Services,277,23/09/2021,2109-00096,0.00,18.00,R,A NAMAKI,No
Http://opendatacommunities.org/id/metropolitan-district-council/leeds,Leeds City Council,30/09/2021,Communities and Environment,Customer Access,Supplies and Services,Bought In Professional Services,277,23/09/2021,2109-00097,0.00,18.00,R,A NAMAKI,No
Http://opendatacommunities.org/id/metropolitan-district-council/leeds,Leeds City Council,30/09/2021,Communities and Environment,Customer Access,Supplies and Services,Bought In Professional Services,277,23/09/2021,2109-00098,0.00,9.00,R,A NAMAKI,No
Http://opendatacommunities.org/id/metropolitan-district-council/leeds,Leeds City Council,30/09/2021,Communities and Environment,Customer Access,Supplies and Services,Bought In Professional Services,277,29/09/2021,2109-00099,0.00,18.00,R,A NAMAKI,No
Http://opendatacommunities.org/id/metropolitan-district-council/leeds,Leeds City Council,30/09/2021,Communities and Environment,Customer Access,Supplies and Services,Bought In Professional Services,277,29/09/2021,2109-00100,0.00,18.00,R,A NAMAKI,No
Http://opendatacommunities.org/id/metropolitan-district-council/leeds,Leeds City Council,30/09/2021,Resources and Housing,Commercial Services,Supplies and Services,Other Hired And Contracted Services,265,22/09/2021,2109-00101,0.00,61.60,R,REDACTED PERSONAL DATA,No
Http://opendatacommunities.org/id/metropolitan-district-council/leeds,Leeds City Council,30/09/2021,Communities and Environment,Waste Management,Employees,Training & Development,70,10/09/2021,2109-00102,0.00,570.00,R,A T Nerac Ltd,No
Http://opendatacommunities.org/id/metropolitan-district-council/leeds,Leeds City Council,30/09/2021,Communities and Environment,Waste Management,Employees,Training & Development,70,10/09/2021,2109-00103,0.00,570.00,R,A T Nerac Ltd,No
Http://opendatacommunities.org/id/metropolitan-district-council/leeds,Leeds City Council,30/09/2021,Children and Families,Social Care,Agency Payments,General External Residential Placements,507,03/09/2021,2109-00104,0.00,30114.33,R,A Wilderness Way Ltd,No
Http://opendatacommunities.org/id/metropolitan-district-council/leeds,Leeds City Council,30/09/2021,Children and Families,Social Care,Agency Payments,General External Residential Placements,507,03/09/2021,2109-00105,0.00,-3080.00,R,A Wilderness Way Ltd,No
Http://opendatacommunities.org/id/metropolitan-district-council/leeds,Leeds City Council,30/09/2021,Children and Families,Social Care,Appropriations,Leaving Care Allowances,634,21/09/2021,2109-00106,0.00,340.00,R,A Wilderness Way Ltd,No
Http://opendatacommunities.org/id/metropolitan-district-council/leeds,Leeds City Council,30/09/2021,Resources and Housing,Leeds Building Services,Supplies and Services,Operational Materials,205,06/09/2021,2109-00107,0.00,190.00,R,A1 STAIR LIFT SERVICES,No
Http://opendatacommunities.org/id/metropolitan-district-council/leeds,Leeds City Council,30/09/2021,Resources and Housing,Leeds Building Services,Supplies and Services,Operational Materials,205,09/09/2021,2109-00108,0.00,840.00,R,A1 STAIR LIFT SERVICES,No
Http://opendatacommunities.org/id/metropolitan-district-council/leeds,Leeds City Council,30/09/2021,Resources and Housing,Leeds Building Services,Supplies and Services,Operational Materials,205,28/09/2021,2109-00109,0.00,214.85,R,A1 STAIR LIFT SERVICES,No
Http://opendatacommunities.org/id/metropolitan-district-council/leeds,Leeds City Council,30/09/2021,Resources and Housing,Leeds Building Services,Supplies and Services,Operational Materials,205,28/09/2021,2109-00110,0.00,249.90,R,A1 STAIR LIFT SERVICES,No
Http://opendatacommunities.org/id/metropolitan-district-council/leeds,Leeds City Council,30/09/2021,Resources and Housing,Leeds Building Services,Supplies and Services,Operational Materials,205,28/09/2021,2109-00111,0.00,1080.00,R,A1 STAIR LIFT SERVICES,No
Http://opendatacommunities.org/id/metropolitan-district-council/leeds,Leeds City Council,30/09/2021,Communities and Environment,Parks and Countryside,Supplies and Services,Resaleable Materials,204,16/08/2021,2109-00112,0.00,312.40,R,Aagrah Foods,Yes
Http://opendatacommunities.org/id/metropolitan-district-council/leeds,Leeds City Council,30/09/2021,Communities and Environment,Benefits Welfare and Poverty,Supplies and Services,Grant Related Expenditure,298,17/09/2021,2109-00113,0.00,500.00,R,REDACTED PERSONAL DATA,No
Http://opendatacommunities.org/id/metropolitan-district-council/leeds,Leeds City Council,30/09/2021,Communities and Environment,Benefits Welfare and Poverty,Supplies and Services,Grant Related Expenditure,298,10/09/2021,2109-00114,0.00,500.00,R,REDACTED PERSONAL DATA,No
Http://opendatacommunities.org/id/metropolitan-district-council/leeds,Leeds City Council,30/09/2021,Communities and Environment,Benefits Welfare and Poverty,Supplies and Services,Grant Related Expenditure,298,29/09/2021,2109-00115,0.00,500.00,R,REDACTED PERSONAL DATA,No
Http://opendatacommunities.org/id/metropolitan-district-council/leeds,Leeds City Council,30/09/2021,Communities and Environment,Benefits Welfare and Poverty,Supplies and Services,Grant Related Expenditure,298,29/09/2021,2109-00116,0.00,500.00,R,REDACTED PERSONAL DATA,No
Http://opendatacommunities.org/id/metropolitan-district-council/leeds,Leeds City Council,30/09/2021,Adults and Health,Services For Older People - 65 And Over,Agency Payments,Residential Care Dementia,571,15/09/2021,2109-00117,0.00,1245.20,R,Aaron Court Care Home,No
Http://opendatacommunities.org/id/metropolitan-district-council/leeds,Leeds City Council,30/09/2021,Communities and Environment,Benefits Welfare and Poverty,Supplies and Services,Grant Related Expenditure,298,17/09/2021,2109-00118,0.00,500.00,R,REDACTED PERSONAL DATA,No
Http://opendatacommunities.org/id/metropolitan-district-council/leeds,Leeds City Council,30/09/2021,Communities and Environment,Benefits Welfare and Poverty,Supplies and Services,Grant Related Expenditure,298,20/09/2021,2109-00119,0.00,500.00,R,REDACTED PERSONAL DATA,No
Http://opendatacommunities.org/id/metropolitan-district-council/leeds,Leeds City Council,30/09/2021,Communities and Environment,Benefits Welfare and Poverty,Supplies and Services,Grant Related Expenditure,298,09/09/2021,2109-00120,0.00,500.00,R,REDACTED PERSONAL DATA,No
Http://opendatacommunities.org/id/metropolitan-district-council/leeds,Leeds City Council as Accountable Body,30/09/2021,Social Services Pooled Budgets,Leeds Community Equip Store Pooled Budgt,Supplies and Services,Other Equipment,203,03/09/2021,2109-00121,0.00,1092.00,R,AAT (GB) LTD,No
Http://opendatacommunities.org/id/metropolitan-district-council/leeds,Leeds City Council as Accountable Body,30/09/2021,Social Services Pooled Budgets,Jcs For People With Learning Disabilitie,Supplies and Services,Other Equipment,203,17/09/2021,2109-00122,0.00,1226.00,R,AAT (GB) LTD,No
Http://opendatacommunities.org/id/metropolitan-district-council/leeds,Leeds City Council as Accountable Body,30/09/2021,Social Services Pooled Budgets,Leeds Community Equip Store Pooled Budgt,Supplies and Services,Other Equipment,203,24/09/2021,2109-00123,0.00,464.00,R,AAT (GB) LTD,No
Http://opendatacommunities.org/id/metropolitan-district-council/leeds,Leeds City Council,30/09/2021,Communities and Environment,Customer Access,Supplies and Services,Bought In Professional Services,277,02/09/2021,2109-00124,0.00,18.00,R,Abadit Kiros,No
Http://opendatacommunities.org/id/metropolitan-district-council/leeds,Leeds City Council,30/09/2021,Communities and Environment,Customer Access,Supplies and Services,Bought In Professional Services,277,02/09/2021,2109-00125,0.00,9.00,R,Abadit Kiros,No
Http://opendatacommunities.org/id/metropolitan-district-council/leeds,Leeds City Council,30/09/2021,Communities and Environment,Customer Access,Supplies and Services,Bought In Professional Services,277,08/09/2021,2109-00126,0.00,18.00,R,Abadit Kiros,No
Http://opendatacommunities.org/id/metropolitan-district-council/leeds,Leeds City Council,30/09/2021,Communities and Environment,Customer Access,Supplies and Services,Bought In Professional Services,277,15/09/2021,2109-00127,0.00,18.00,R,Abadit Kiros,No
Http://opendatacommunities.org/id/metropolitan-district-council/leeds,Leeds City Council,30/09/2021,Communities and Environment,Customer Access,Supplies and Services,Bought In Professional Services,277,23/09/2021,2109-00128,0.00,27.00,R,Abadit Kiros,No
Http://opendatacommunities.org/id/metropolitan-district-council/leeds,Leeds City Council,30/09/2021,Communities and Environment,Customer Access,Supplies and Services,Bought In Professional Services,277,23/09/2021,2109-00129,0.00,22.50,R,Abadit Kiros,No
Http://opendatacommunities.org/id/metropolitan-district-council/leeds,Leeds City Council,30/09/2021,Communities and Environment,Benefits Welfare and Poverty,Supplies and Services,Grant Related Expenditure,290,21/09/2021,2109-00130,0.00,500.00,R,REDACTED PERSONAL DATA,No
Http://opendatacommunities.org/id/metropolitan-district-council/leeds,Leeds City Council,30/09/2021,Communities and Environment,Benefits Welfare and Poverty,Supplies and Services,Grant Related Expenditure,298,10/09/2021,2109-00131,0.00,500.00,R,REDACTED PERSONAL DATA,No
Http://opendatacommunities.org/id/metropolitan-district-council/leeds,Leeds City Council,30/09/2021,Communities and Environment,Parks and Countryside,Employees,Basic Pay,1,17/09/2021,2109-00132,0.00,550.00,R,Abbotts Memorials,No
Http://opendatacommunities.org/id/metropolitan-district-council/leeds,Leeds City Council,30/09/2021,Communities and Environment,Parks and Countryside,Supplies and Services,Other Hired And Contracted Services,265,24/09/2021,2109-00133,0.00,2000.00,R,Abbotts Memorials,No
Http://opendatacommunities.org/id/metropolitan-district-council/leeds,Leeds City Council,30/09/2021,Children and Families,Social Care,Agency Payments,General External Residential Placements,507,17/09/2021,2109-00134,0.00,16971.57,R,ABC Care and Educationd LTD,No
Http://opendatacommunities.org/id/metropolitan-district-council/leeds,Leeds City Council,30/09/2021,Children and Families,Social Care,Agency Payments,Services Rendered By Other Organisations,511,01/09/2021,2109-00135,0.00,6009.90,R,ABC NURSERY AT LUFC,No
Http://opendatacommunities.org/id/metropolitan-district-council/leeds,Leeds City Council,30/09/2021,Children and Families,Social Care,Agency Payments,Services Rendered By Other Organisations,511,03/09/2021,2109-00136,0.00,5000.78,R,ABC NURSERY AT LUFC,No
Http://opendatacommunities.org/id/metropolitan-district-council/leeds,Leeds City Council,30/09/2021,Children and Families,Social Care,Agency Payments,Services Rendered By Voluntary Sector,505,21/09/2021,2109-00137,0.00,2223.68,R,ABC NURSERY AT LUFC,No
Http://opendatacommunities.org/id/metropolitan-district-council/leeds,Leeds City Council,30/09/2021,Children and Families,Social Care,Agency Payments,Services Rendered By Other Organisations,511,01/09/2021,2109-00138,0.00,1567.80,R,Abc@D'S Childcare,No
Http://opendatacommunities.org/id/metropolitan-district-council/leeds,Leeds City Council,30/09/2021,Children and Families,Social Care,Agency Payments,Services Rendered By Other Organisations,511,03/09/2021,2109-00139,0.00,7827.30,R,Abc@D'S Childcare,No
Http://opendatacommunities.org/id/metropolitan-district-council/leeds,Leeds City Council,30/09/2021,Children and Families,Social Care,Agency Payments,Services Rendered By Voluntary Sector,505,21/09/2021,2109-00140,0.00,2223.68,R,Abc@D'S Childcare,No
Http://opendatacommunities.org/id/metropolitan-district-council/leeds,Leeds City Council,30/09/2021,Communities and Environment,Elections Licensing and Registration,External Income,Admissions Booking Fees & Ticket Sales,933,16/09/2021,2109-00141,0.00,330.00,R,REDACTED PERSONAL DATA,No
Http://opendatacommunities.org/id/metropolitan-district-council/leeds,Leeds City Council,30/09/2021,City Development,Economic Development,Supplies and Services,Grant Related Expenditure,290,02/09/2021,2109-00142,0.00,750.00,R,Abdul Ghafoor,No
Http://opendatacommunities.org/id/metropolitan-district-council/leeds,Leeds City Council,30/09/2021,Resources and Housing,Sustainable Energy & Climate Change,Capital,OTHER COSTS,7,30/09/2021,2109-00143,0.00,2100.00,C,REDACTED COMMERCIAL CONFIDENTIALITY,No
Http://opendatacommunities.org/id/metropolitan-district-council/leeds,Leeds City Council,30/09/2021,Communities and Environment,Customer Access,Supplies and Services,Bought In Professional Services,277,02/09/2021,2109-00144,0.00,18.00,R,Abdul Kalam,No
Http://opendatacommunities.org/id/metropolitan-district-council/leeds,Leeds City Council,30/09/2021,Communities and Environment,Customer Access,Supplies and Services,Bought In Professional Services,277,15/09/2021,2109-00145,0.00,18.00,R,Abdul Kalam,No
Http://opendatacommunities.org/id/metropolitan-district-council/leeds,Leeds City Council,30/09/2021,Communities and Environment,Customer Access,Supplies and Services,Bought In Professional Services,277,15/09/2021,2109-00146,0.00,18.00,R,Abdul Kalam,No
Http://opendatacommunities.org/id/metropolitan-district-council/leeds,Leeds City Council,30/09/2021,Communities and Environment,Benefits Welfare and Poverty,Supplies and Services,Grant Related Expenditure,298,20/09/2021,2109-00147,0.00,500.00,R,REDACTED PERSONAL DATA,No
Http://opendatacommunities.org/id/metropolitan-district-council/leeds,Leeds City Council,30/09/2021,Communities and Environment,Customer Access,Supplies and Services,Bought In Professional Services,277,02/09/2021,2109-00148,0.00,27.00,R,Abdulahad Denha,No
Http://opendatacommunities.org/id/metropolitan-district-council/leeds,Leeds City Council,30/09/2021,Communities and Environment,Customer Access,Supplies and Services,Bought In Professional Services,277,23/09/2021,2109-00149,0.00,22.50,R,Abdulahad Denha,No
Http://opendatacommunities.org/id/metropolitan-district-council/leeds,Leeds City Council,30/09/2021,Communities and Environment,Customer Access,Supplies and Services,Bought In Professional Services,277,29/09/2021,2109-00150,0.00,18.00,R,Abdulahad Denha,No
Http://opendatacommunities.org/id/metropolitan-district-council/leeds,Leeds City Council,30/09/2021,Communities and Environment,Customer Access,Supplies and Services,Bought In Professional Services,277,02/09/2021,2109-00151,0.00,9.00,R,Abdulrahim Dastyar,No
Http://opendatacommunities.org/id/metropolitan-district-council/leeds,Leeds City Council,30/09/2021,Communities and Environment,Customer Access,Supplies and Services,Bought In Professional Services,277,02/09/2021,2109-00152,0.00,18.00,R,Abdulrahim Dastyar,No
Http://opendatacommunities.org/id/metropolitan-district-council/leeds,Leeds City Council,30/09/2021,Communities and Environment,Customer Access,Supplies and Services,Bought In Professional Services,277,08/09/2021,2109-00153,0.00,18.00,R,Abdulrahim Dastyar,No
Http://opendatacommunities.org/id/metropolitan-district-council/leeds,Leeds City Council,30/09/2021,Communities and Environment,Customer Access,Supplies and Services,Bought In Professional Services,277,08/09/2021,2109-00154,0.00,18.00,R,Abdulrahim Dastyar,No
Http://opendatacommunities.org/id/metropolitan-district-council/leeds,Leeds City Council,30/09/2021,Communities and Environment,Customer Access,Supplies and Services,Bought In Professional Services,277,15/09/2021,2109-00155,0.00,27.00,R,Abdulrahim Dastyar,No
Http://opendatacommunities.org/id/metropolitan-district-council/leeds,Leeds City Council,30/09/2021,Communities and Environment,Customer Access,Supplies and Services,Bought In Professional Services,277,15/09/2021,2109-00156,0.00,18.00,R,Abdulrahim Dastyar,No
Http://opendatacommunities.org/id/metropolitan-district-council/leeds,Leeds City Council,30/09/2021,Communities and Environment,Customer Access,Supplies and Services,Bought In Professional Services,277,15/09/2021,2109-00157,0.00,27.00,R,Abdulrahim Dastyar,No
Http://opendatacommunities.org/id/metropolitan-district-council/leeds,Leeds City Council,30/09/2021,Communities and Environment,Customer Access,Supplies and Services,Bought In Professional Services,277,23/09/2021,2109-00158,0.00,9.00,R,Abdulrahim Dastyar,No
Http://opendatacommunities.org/id/metropolitan-district-council/leeds,Leeds City Council,30/09/2021,Communities and Environment,Customer Access,Supplies and Services,Bought In Professional Services,277,23/09/2021,2109-00159,0.00,22.50,R,Abdulrahim Dastyar,No
Http://opendatacommunities.org/id/metropolitan-district-council/leeds,Leeds City Council,30/09/2021,Communities and Environment,Customer Access,Supplies and Services,Bought In Professional Services,277,23/09/2021,2109-00160,0.00,9.00,R,Abdulrahim Dastyar,No
Http://opendatacommunities.org/id/metropolitan-district-council/leeds,Leeds City Council,30/09/2021,Communities and Environment,Customer Access,Supplies and Services,Bought In Professional Services,277,23/09/2021,2109-00161,0.00,18.00,R,Abdulrahim Dastyar,No
Http://opendatacommunities.org/id/metropolitan-district-council/leeds,Leeds City Council,30/09/2021,Communities and Environment,Customer Access,Supplies and Services,Bought In Professional Services,277,23/09/2021,2109-00162,0.00,27.00,R,Abdulrahim Dastyar,No
Http://opendatacommunities.org/id/metropolitan-district-council/leeds,Leeds City Council,30/09/2021,Communities and Environment,Customer Access,Supplies and Services,Bought In Professional Services,277,30/09/2021,2109-00163,0.00,18.00,R,Abdulrahim Dastyar,No
Http://opendatacommunities.org/id/metropolitan-district-council/leeds,Leeds City Council,30/09/2021,Children and Families,Social Care,Appropriations,16 Plus Top Up Allowance,625,10/09/2021,2109-00164,0.00,30.00,R,REDACTED PERSONAL DATA,No
Http://opendatacommunities.org/id/metropolitan-district-council/leeds,Leeds City Council,30/09/2021,Children and Families,Social Care,Appropriations,16 Plus Top Up Allowance,625,17/09/2021,2109-00165,0.00,30.00,R,REDACTED PERSONAL DATA,No
Http://opendatacommunities.org/id/metropolitan-district-council/leeds,Leeds City Council,30/09/2021,Children and Families,Social Care,Appropriations,16 Plus Top Up Allowance,625,24/09/2021,2109-00166,0.00,30.00,R,REDACTED PERSONAL DATA,No
Http://opendatacommunities.org/id/metropolitan-district-council/leeds,Leeds City Council,30/09/2021,Children and Families,Social Care,Agency Payments,Placement Support,550,14/09/2021,2109-00167,0.00,500.00,R,Aberford Childcare Services,No
Http://opendatacommunities.org/id/metropolitan-district-council/leeds,Leeds City Council,30/09/2021,Adults and Health,Services For Older People - 65 And Over,Agency Payments,Nursing Home,570,15/09/2021,2109-00168,0.00,31151.31,R,Aberford Hall,No
Http://opendatacommunities.org/id/metropolitan-district-council/leeds,Leeds City Council,30/09/2021,Communities and Environment,Customer Access,Supplies and Services,Bought In Professional Services,277,02/09/2021,2109-00169,0.00,21.30,R,Abida Begum,No
Http://opendatacommunities.org/id/metropolitan-district-council/leeds,Leeds City Council,30/09/2021,Communities and Environment,Customer Access,Supplies and Services,Bought In Professional Services,277,15/09/2021,2109-00170,0.00,9.00,R,Abida Begum,No
Http://opendatacommunities.org/id/metropolitan-district-council/leeds,Leeds City Council,30/09/2021,Communities and Environment,Customer Access,Supplies and Services,Bought In Professional Services,277,29/09/2021,2109-00171,0.00,34.50,R,Abida Begum,No
Http://opendatacommunities.org/id/metropolitan-district-council/leeds,Leeds City Council,30/09/2021,Communities and Environment,Benefits Welfare and Poverty,Supplies and Services,Grant Related Expenditure,298,14/09/2021,2109-00172,0.00,500.00,R,REDACTED PERSONAL DATA,No
Http://opendatacommunities.org/id/metropolitan-district-council/leeds,Leeds City Council,30/09/2021,Children and Families,Social Care,Agency Payments,Placement Support,550,16/09/2021,2109-00173,0.00,58.25,R,REDACTED PERSONAL DATA,No
Http://opendatacommunities.org/id/metropolitan-district-council/leeds,Leeds City Council,30/09/2021,Communities and Environment,Benefits Welfare and Poverty,Supplies and Services,Grant Related Expenditure,290,29/09/2021,2109-00174,0.00,500.00,R,REDACTED PERSONAL DATA,No
Http://opendatacommunities.org/id/metropolitan-district-council/leeds,Leeds City Council,30/09/2021,Communities and Environment,Benefits Welfare and Poverty,Supplies and Services,Grant Related Expenditure,298,30/09/2021,2109-00175,0.00,500.00,R,REDACTED PERSONAL DATA,No
Http://opendatacommunities.org/id/metropolitan-district-council/leeds,Leeds City Council,30/09/2021,Communities and Environment,Benefits Welfare and Poverty,Supplies and Services,Grant Related Expenditure,298,24/09/2021,2109-00176,0.00,500.00,R,REDACTED PERSONAL DATA,No
Http://opendatacommunities.org/id/metropolitan-district-council/leeds,Leeds City Council,30/09/2021,Communities and Environment,Benefits Welfare and Poverty,Supplies and Services,Grant Related Expenditure,298,14/09/2021,2109-00177,0.00,500.00,R,REDACTED PERSONAL DATA,No
Http://opendatacommunities.org/id/metropolitan-district-council/leeds,Leeds City Council,30/09/2021,Communities and Environment,Benefits Welfare and Poverty,Supplies and Services,Grant Related Expenditure,298,16/09/2021,2109-00178,0.00,500.00,R,REDACTED PERSONAL DATA,No
Http://opendatacommunities.org/id/metropolitan-district-council/leeds,Leeds City Council,30/09/2021,Children and Families,Social Care,Appropriations,Leaving Care Allowances,634,13/09/2021,2109-00179,0.00,5.13,R,REDACTED PERSONAL DATA,No
Http://opendatacommunities.org/id/metropolitan-district-council/leeds,Leeds City Council,30/09/2021,Children and Families,Social Care,Agency Payments,Direct Work,549,13/09/2021,2109-00180,0.00,5.25,R,REDACTED PERSONAL DATA,No
Http://opendatacommunities.org/id/metropolitan-district-council/leeds,Leeds City Council,30/09/2021,Children and Families,Social Care,Agency Payments,Contact,548,13/09/2021,2109-00181,0.00,2.98,R,REDACTED PERSONAL DATA,No
Http://opendatacommunities.org/id/metropolitan-district-council/leeds,Leeds City Council,30/09/2021,Children and Families,Social Care,Agency Payments,Direct Work,549,13/09/2021,2109-00182,0.00,4.19,R,REDACTED PERSONAL DATA,No
Http://opendatacommunities.org/id/metropolitan-district-council/leeds,Leeds City Council,30/09/2021,Children and Families,Social Care,Appropriations,Leaving Care Allowances,634,16/09/2021,2109-00183,0.00,2.00,R,REDACTED PERSONAL DATA,No
Http://opendatacommunities.org/id/metropolitan-district-council/leeds,Leeds City Council,30/09/2021,Children and Families,Social Care,Agency Payments,Direct Work,549,16/09/2021,2109-00184,0.00,5.39,R,REDACTED PERSONAL DATA,No
Http://opendatacommunities.org/id/metropolitan-district-council/leeds,Leeds City Council,30/09/2021,Children and Families,Social Care,Agency Payments,Direct Work,549,17/09/2021,2109-00185,0.00,5.01,R,REDACTED PERSONAL DATA,No
Http://opendatacommunities.org/id/metropolitan-district-council/leeds,Leeds City Council,30/09/2021,Children and Families,Social Care,Appropriations,Leaving Care Allowances,634,28/09/2021,2109-00186,0.00,140.00,R,REDACTED PERSONAL DATA,No
Http://opendatacommunities.org/id/metropolitan-district-council/leeds,Leeds City Council,30/09/2021,Communities and Environment,Benefits Welfare and Poverty,Supplies and Services,Grant Related Expenditure,290,10/09/2021,2109-00187,0.00,500.00,R,REDACTED PERSONAL DATA,No
Http://opendatacommunities.org/id/metropolitan-district-council/leeds,Leeds City Council,30/09/2021,Communities and Environment,Parks and Countryside,Supplies and Services,Operational Materials,205,30/09/2021,2109-00188,0.00,2988.00,R,Abram Pulman & Sons Limited,No
Http://opendatacommunities.org/id/metropolitan-district-council/leeds,Leeds City Council,30/09/2021,Communities and Environment,Parks and Countryside,Supplies and Services,Operational Materials,205,30/09/2021,2109-00189,0.00,67.00,R,Abram Pulman & Sons Limited,No
Http://opendatacommunities.org/id/metropolitan-district-council/leeds,Leeds City Council,30/09/2021,Children and Families,Social Care,Supplies and Services,General Amenity For Clients/Residents,285,30/07/2021,2109-00190,0.00,104.00,R,Absolute,Yes
Http://opendatacommunities.org/id/metropolitan-district-council/leeds,Leeds City Council,30/09/2021,Children and Families,Social Care,Supplies and Services,General Amenity For Clients/Residents,285,18/08/2021,2109-00191,0.00,236.45,R,Absolute,Yes
Http://opendatacommunities.org/id/metropolitan-district-council/leeds,Leeds City Council,30/09/2021,Adults and Health,Services For Adults Under 65 Mental/Dis,Agency Payments,Fees - Level 4,520,07/09/2021,2109-00192,0.00,175.00,R,Abubaker Denja Mohammed,No
Http://opendatacommunities.org/id/metropolitan-district-council/leeds,Leeds City Council,30/09/2021,Adults and Health,Services For Adults Under 65 Mental/Dis,Agency Payments,Fees - Level 4,520,07/09/2021,2109-00193,0.00,175.00,R,Abubaker Denja Mohammed,No
Http://opendatacommunities.org/id/metropolitan-district-council/leeds,Leeds City Council,30/09/2021,Adults and Health,Services For Adults Under 65 Mental/Dis,Agency Payments,Fees - Level 4,520,07/09/2021,2109-00194,0.00,175.00,R,Abubaker Denja Mohammed,No
Http://opendatacommunities.org/id/metropolitan-district-council/leeds,Leeds City Council,30/09/2021,Adults and Health,Services For Adults Under 65 Mental/Dis,Agency Payments,Fees - Level 4,520,13/09/2021,2109-00195,0.00,175.00,R,Abubaker Denja Mohammed,No
Http://opendatacommunities.org/id/metropolitan-district-council/leeds,Leeds City Council,30/09/2021,Adults and Health,Services For Adults Under 65 Mental/Dis,Agency Payments,Fees - Level 4,520,13/09/2021,2109-00196,0.00,175.00,R,Abubaker Denja Mohammed,No
Http://opendatacommunities.org/id/metropolitan-district-council/leeds,Leeds City Council,30/09/2021,Adults and Health,Services For Adults Under 65 Mental/Dis,Agency Payments,Fees - Level 4,520,17/09/2021,2109-00197,0.00,175.00,R,Abubaker Denja Mohammed,No
Http://opendatacommunities.org/id/metropolitan-district-council/leeds,Leeds City Council,30/09/2021,Resources and Housing,Strategic Housing Partnership & Support,Supplies and Services,Other Hired And Contracted Services,265,13/09/2021,2109-00198,0.00,280.37,R,Accent Foundation Ltd,No
Http://opendatacommunities.org/id/metropolitan-district-council/leeds,Leeds City Council,30/09/2021,Adults and Health,Services For Older People - 65 And Over,Supplies and Services,Operational Furniture And Equipment,203,03/08/2021,2109-00199,0.00,34.79,R,Access Locksmiths,Yes
Http://opendatacommunities.org/id/metropolitan-district-council/leeds,Leeds City Council,30/09/2021,Communities and Environment,Cleaner Neighbourhood Teams,Supplies and Services,Operational Furniture And Equipment,203,23/08/2021,2109-00200,0.00,41.10,R,Access Locksmiths,Yes
Http://opendatacommunities.org/id/metropolitan-district-council/leeds,Leeds City Council,30/09/2021,Strategic Landlord,Housing Management,Supplies and Services,Resaleable Materials,204,01/09/2021,2109-00201,0.00,781.20,R,ACCESS LOCKSMITHS (LEEDS) LIMITED,No
Http://opendatacommunities.org/id/metropolitan-district-council/leeds,Leeds City Council,30/09/2021,Resources and Housing,Leeds Building Services,Supplies and Services,Operational Materials,205,06/09/2021,2109-00202,0.00,55.38,R,ACCESS LOCKSMITHS (LEEDS) LIMITED,No
Http://opendatacommunities.org/id/metropolitan-district-council/leeds,Leeds City Council,30/09/2021,Resources and Housing,Leeds Building Services,Supplies and Services,Operational Materials,205,06/09/2021,2109-00203,0.00,12.46,R,ACCESS LOCKSMITHS (LEEDS) LIMITED,No
Http://opendatacommunities.org/id/metropolitan-district-council/leeds,Leeds City Council,30/09/2021,Resources and Housing,Leeds Building Services,Supplies and Services,Operational Materials,205,06/09/2021,2109-00204,0.00,2.22,R,ACCESS LOCKSMITHS (LEEDS) LIMITED,No
Http://opendatacommunities.org/id/metropolitan-district-council/leeds,Leeds City Council,30/09/2021,Resources and Housing,Leeds Building Services,Supplies and Services,Operational Materials,205,06/09/2021,2109-00205,0.00,46.09,R,ACCESS LOCKSMITHS (LEEDS) LIMITED,No
Http://opendatacommunities.org/id/metropolitan-district-council/leeds,Leeds City Council,30/09/2021,Resources and Housing,Leeds Building Services,Supplies and Services,Operational Materials,205,06/09/2021,2109-00206,0.00,119.90,R,ACCESS LOCKSMITHS (LEEDS) LIMITED,No
Http://opendatacommunities.org/id/metropolitan-district-council/leeds,Leeds City Council,30/09/2021,Resources and Housing,Leeds Building Services,Supplies and Services,Operational Materials,205,06/09/2021,2109-00207,0.00,19.90,R,ACCESS LOCKSMITHS (LEEDS) LIMITED,No
Http://opendatacommunities.org/id/metropolitan-district-council/leeds,Leeds City Council,30/09/2021,Resources and Housing,Leeds Building Services,Supplies and Services,Operational Materials,205,06/09/2021,2109-00208,0.00,7.00,R,ACCESS LOCKSMITHS (LEEDS) LIMITED,No
Http://opendatacommunities.org/id/metropolitan-district-council/leeds,Leeds City Council,30/09/2021,Resources and Housing,Leeds Building Services,Supplies and Services,Operational Materials,205,06/09/2021,2109-00209,0.00,7.00,R,ACCESS LOCKSMITHS (LEEDS) LIMITED,No
Http://opendatacommunities.org/id/metropolitan-district-council/leeds,Leeds City Council,30/09/2021,Resources and Housing,Leeds Building Services,Supplies and Services,Operational Materials,205,06/09/2021,2109-00210,0.00,17.44,R,ACCESS LOCKSMITHS (LEEDS) LIMITED,No
Http://opendatacommunities.org/id/metropolitan-district-council/leeds,Leeds City Council,30/09/2021,Strategic Landlord,Property and Contracts,Premises,General Maintenance,104,07/09/2021,2109-00211,0.00,328.20,R,ACCESS LOCKSMITHS (LEEDS) LIMITED,No
Http://opendatacommunities.org/id/metropolitan-district-council/leeds,Leeds City Council,30/09/2021,Strategic Landlord,Property and Contracts,Premises,General Maintenance,104,07/09/2021,2109-00212,0.00,167.31,R,ACCESS LOCKSMITHS (LEEDS) LIMITED,No
Http://opendatacommunities.org/id/metropolitan-district-council/leeds,Leeds City Council,30/09/2021,Strategic Landlord,Property and Contracts,Premises,General Maintenance,104,09/09/2021,2109-00213,0.00,45.83,R,ACCESS LOCKSMITHS (LEEDS) LIMITED,No
Http://opendatacommunities.org/id/metropolitan-district-council/leeds,Leeds City Council,30/09/2021,Resources and Housing,Leeds Building Services,Supplies and Services,Operational Materials,205,16/09/2021,2109-00214,0.00,154.52,R,ACCESS LOCKSMITHS (LEEDS) LIMITED,No
Http://opendatacommunities.org/id/metropolitan-district-council/leeds,Leeds City Council,30/09/2021,Resources and Housing,Leeds Building Services,Supplies and Services,Operational Materials,205,16/09/2021,2109-00215,0.00,8.33,R,ACCESS LOCKSMITHS (LEEDS) LIMITED,No
Http://opendatacommunities.org/id/metropolitan-district-council/leeds,Leeds City Council,30/09/2021,Strategic Landlord,Property and Contracts,Premises,General Maintenance,104,16/09/2021,2109-00216,0.00,157.91,R,ACCESS LOCKSMITHS (LEEDS) LIMITED,No
Http://opendatacommunities.org/id/metropolitan-district-council/leeds,Leeds City Council,30/09/2021,Strategic Landlord,Property and Contracts,Premises,General Maintenance,104,24/09/2021,2109-00217,0.00,103.75,R,ACCESS LOCKSMITHS (LEEDS) LIMITED,No
Http://opendatacommunities.org/id/metropolitan-district-council/leeds,Leeds City Council,30/09/2021,Resources and Housing,HRA Housing Leeds,Capital,OTHER COSTS,7,24/09/2021,2109-00218,0.00,22.00,C,ACCESS LOCKSMITHS (LEEDS) LIMITED,No
Http://opendatacommunities.org/id/metropolitan-district-council/leeds,Leeds City Council,30/09/2021,Strategic Landlord,Housing Management,Supplies and Services,Operational Furniture And Equipment,203,24/09/2021,2109-00219,0.00,167.90,R,ACCESS LOCKSMITHS (LEEDS) LIMITED,No
Http://opendatacommunities.org/id/metropolitan-district-council/leeds,Leeds City Council,30/09/2021,Resources and Housing,HRA Housing Leeds,Capital,OTHER COSTS,7,24/09/2021,2109-00220,0.00,13.00,C,ACCESS LOCKSMITHS (LEEDS) LIMITED,No
Http://opendatacommunities.org/id/metropolitan-district-council/leeds,Leeds City Council,30/09/2021,Strategic Landlord,Housing Management,Supplies and Services,Resaleable Materials,204,24/09/2021,2109-00221,0.00,49.60,R,ACCESS LOCKSMITHS (LEEDS) LIMITED,No
Http://opendatacommunities.org/id/metropolitan-district-council/leeds,Leeds City Council,30/09/2021,Strategic Landlord,Housing Management,Supplies and Services,Resaleable Materials,204,24/09/2021,2109-00222,0.00,37.20,R,ACCESS LOCKSMITHS (LEEDS) LIMITED,No
Http://opendatacommunities.org/id/metropolitan-district-council/leeds,Leeds City Council,30/09/2021,Strategic Landlord,Housing Management,Supplies and Services,Resaleable Materials,204,24/09/2021,2109-00223,0.00,124.00,R,ACCESS LOCKSMITHS (LEEDS) LIMITED,No
Http://opendatacommunities.org/id/metropolitan-district-council/leeds,Leeds City Council,30/09/2021,Resources and Housing,Leeds Building Services,Supplies and Services,Other Hired And Contracted Services,265,24/09/2021,2109-00224,0.00,1100.00,R,ACCESS LOCKSMITHS (LEEDS) LIMITED,No
Http://opendatacommunities.org/id/metropolitan-district-council/leeds,Leeds City Council,30/09/2021,Strategic Landlord,Housing Management,Supplies and Services,Resaleable Materials,204,28/09/2021,2109-00225,0.00,88.00,R,ACCESS LOCKSMITHS (LEEDS) LIMITED,No
Http://opendatacommunities.org/id/metropolitan-district-council/leeds,Leeds City Council,30/09/2021,City Development,Libraries Arts & Heritage,Supplies and Services,Bought In Professional Services,277,23/09/2021,2109-00226,0.00,8500.00,R,ACCESS MOVING IMAGE LTD,No
Http://opendatacommunities.org/id/metropolitan-district-council/leeds,Leeds City Council,30/09/2021,Insurance,Insurance,Supplies and Services,Insurance Claims,248,13/09/2021,2109-00227,0.00,2273.29,R,Accident Exchange Ltd,No
Http://opendatacommunities.org/id/metropolitan-district-council/leeds,Leeds City Council as Accountable Body,30/09/2021,Social Services Pooled Budgets,Leeds Community Equip Store Pooled Budgt,Supplies and Services,Other Equipment,203,23/09/2021,2109-00228,0.00,200.00,R,Accora,No
Http://opendatacommunities.org/id/metropolitan-district-council/leeds,Leeds City Council as Accountable Body,30/09/2021,Social Services Pooled Budgets,Leeds Community Equip Store Pooled Budgt,Supplies and Services,Other Equipment,203,23/09/2021,2109-00229,0.00,2298.00,R,Accora,No
Http://opendatacommunities.org/id/metropolitan-district-council/leeds,Leeds City Council,30/09/2021,City Development,Recreation,Transport,External Hire -Occasional,304,30/09/2021,2109-00230,0.00,124.50,R,ACE CONTAINER SERVICES LIMITED,No
Http://opendatacommunities.org/id/metropolitan-district-council/leeds,Leeds City Council,30/09/2021,Children and Families,Partnerships & Health,Agency Payments,SEN Placements,566,23/09/2021,2109-00231,0.00,19044.63,R,ACKWORTH SCHOOL,No
Http://opendatacommunities.org/id/metropolitan-district-council/leeds,Leeds City Council,30/09/2021,Children and Families,Social Care,Agency Payments,General External Residential Placements,507,07/09/2021,2109-00232,0.00,15188.70,R,Acorn Care & Education Ltd (Sales),No
Http://opendatacommunities.org/id/metropolitan-district-council/leeds,Leeds City Council,30/09/2021,Children and Families,Social Care,Agency Payments,General External Residential Placements,507,08/09/2021,2109-00233,0.00,-15480.00,R,Acorn Care & Education Ltd (Sales),No
Http://opendatacommunities.org/id/metropolitan-district-council/leeds,Leeds City Council,30/09/2021,Children and Families,Social Care,Agency Payments,General External Residential Placements,507,08/09/2021,2109-00234,0.00,15480.00,R,Acorn Care & Education Ltd (Sales),No
Http://opendatacommunities.org/id/metropolitan-district-council/leeds,Leeds City Council,30/09/2021,Children and Families,Social Care,Agency Payments,General External Residential Placements,507,17/09/2021,2109-00235,0.00,15694.99,R,Acorn Care & Education Ltd (Sales),No
Http://opendatacommunities.org/id/metropolitan-district-council/leeds,Leeds City Council,30/09/2021,Children and Families,Social Care,Agency Payments,General External Residential Placements,507,22/09/2021,2109-00236,0.00,15694.99,R,Acorn Care & Education Ltd (Sales),No
Http://opendatacommunities.org/id/metropolitan-district-council/leeds,Leeds City Council,30/09/2021,Children and Families,Social Care,Agency Payments,General External Residential Placements,507,22/09/2021,2109-00237,0.00,15188.70,R,Acorn Care & Education Ltd (Sales),No
Http://opendatacommunities.org/id/metropolitan-district-council/leeds,Leeds City Council,30/09/2021,Children and Families,Social Care,Agency Payments,General External Residential Placements,507,22/09/2021,2109-00238,0.00,15694.99,R,Acorn Care & Education Ltd (Sales),No
Http://opendatacommunities.org/id/metropolitan-district-council/leeds,Leeds City Council,30/09/2021,Children and Families,Social Care,Agency Payments,General External Residential Placements,507,22/09/2021,2109-00239,0.00,15694.99,R,Acorn Care & Education Ltd (Sales),No
Http://opendatacommunities.org/id/metropolitan-district-council/leeds,Leeds City Council,30/09/2021,Children and Families,Social Care,Agency Payments,General External Residential Placements,507,24/09/2021,2109-00240,0.00,15188.70,R,Acorn Care & Education Ltd (Sales),No
Http://opendatacommunities.org/id/metropolitan-district-council/leeds,Leeds City Council,30/09/2021,Children and Families,Social Care,Agency Payments,General External Residential Placements,507,24/09/2021,2109-00241,0.00,14176.12,R,Acorn Care & Education Ltd (Sales),No
Http://opendatacommunities.org/id/metropolitan-district-council/leeds,Leeds City Council,30/09/2021,Children and Families,Social Care,Agency Payments,General External Residential Placements,507,24/09/2021,2109-00242,0.00,15694.99,R,Acorn Care & Education Ltd (Sales),No
Http://opendatacommunities.org/id/metropolitan-district-council/leeds,Leeds City Council,30/09/2021,Children and Families,Social Care,Agency Payments,Independent Fostering Agencies,509,24/09/2021,2109-00243,0.00,1574.88,R,Acorn House (Fostering Services) Ltd,No
Http://opendatacommunities.org/id/metropolitan-district-council/leeds,Leeds City Council,30/09/2021,Children and Families,Social Care,Agency Payments,Independent Fostering Agencies,509,24/09/2021,2109-00244,0.00,1496.52,R,Acorn House (Fostering Services) Ltd,No
Http://opendatacommunities.org/id/metropolitan-district-council/leeds,Leeds City Council,30/09/2021,Adults and Health,Services For Older People - 65 And Over,Agency Payments,Residential Care Dementia,571,15/09/2021,2109-00245,0.00,1640.48,R,Acorn Nursing Home,No
Http://opendatacommunities.org/id/metropolitan-district-council/leeds,Leeds City Council,30/09/2021,Adults and Health,Other Adult Services,Agency Payments,Residential - Drugs & Alcohol,583,03/09/2021,2109-00246,0.00,2435.71,R,Acorn Treatment & Housing,No
Http://opendatacommunities.org/id/metropolitan-district-council/leeds,Leeds City Council,30/09/2021,Adults and Health,Other Adult Services,Agency Payments,Residential - Drugs & Alcohol,583,30/09/2021,2109-00247,0.00,2435.71,R,Acorn Treatment & Housing,No
Http://opendatacommunities.org/id/metropolitan-district-council/leeds,Leeds City Council,30/09/2021,Children and Families,Social Care,Agency Payments,Services Rendered By Other Organisations,511,01/09/2021,2109-00248,0.00,1567.80,R,ACORNS NURSERY,No
Http://opendatacommunities.org/id/metropolitan-district-council/leeds,Leeds City Council,30/09/2021,Children and Families,Social Care,Agency Payments,Services Rendered By Other Organisations,511,03/09/2021,2109-00249,0.00,4783.35,R,ACORNS NURSERY,No
Http://opendatacommunities.org/id/metropolitan-district-council/leeds,Leeds City Council,30/09/2021,Children and Families,Social Care,Agency Payments,Services Rendered By Voluntary Sector,505,21/09/2021,2109-00250,0.00,2223.68,R,ACORNS NURSERY,No
Http://opendatacommunities.org/id/metropolitan-district-council/leeds,Leeds City Council,30/09/2021,City Development,Libraries Arts & Heritage,Supplies and Services,Books & Audio-Visual Materials,206,10/09/2021,2109-00251,0.00,1200.00,R,Acoustiguide Ltd,No
Http://opendatacommunities.org/id/metropolitan-district-council/leeds,Leeds City Council,30/09/2021,Adults and Health,Services For Older People - 65 And Over,Agency Payments,Nursing Home,570,15/09/2021,2109-00252,0.00,28660.60,R,Acre Green,No
Http://opendatacommunities.org/id/metropolitan-district-council/leeds,Leeds City Council,30/09/2021,Adults and Health,Services For Older People - 65 And Over,Agency Payments,Residential,580,15/09/2021,2109-00253,0.00,3927.20,R,Acre Green,No
Http://opendatacommunities.org/id/metropolitan-district-council/leeds,Leeds City Council,30/09/2021,Adults and Health,Services For Older People Under 65 P/Dis,Agency Payments,Nursing Home,570,15/09/2021,2109-00254,0.00,1970.40,R,Acre Green,No
Http://opendatacommunities.org/id/metropolitan-district-council/leeds,Leeds City Council,30/09/2021,Adults and Health,Services For Older People Under 65 P/Dis,Agency Payments,Residential,580,15/09/2021,2109-00255,0.00,1767.20,R,Acre Green,No
Http://opendatacommunities.org/id/metropolitan-district-council/leeds,Leeds City Council,30/09/2021,Children and Families,Social Care,Agency Payments,Services Rendered By Other Organisations,511,01/09/2021,2109-00256,0.00,2090.40,R,Acre Wood Day Nursery,No
Http://opendatacommunities.org/id/metropolitan-district-council/leeds,Leeds City Council,30/09/2021,Children and Families,Social Care,Agency Payments,Services Rendered By Other Organisations,511,03/09/2021,2109-00257,0.00,10035.00,R,Acre Wood Day Nursery,No
Http://opendatacommunities.org/id/metropolitan-district-council/leeds,Leeds City Council,30/09/2021,City Development,Libraries Arts & Heritage,Supplies and Services,Operational Materials,205,09/08/2021,2109-00258,0.00,43.92,R,Actavo Direct,Yes
Http://opendatacommunities.org/id/metropolitan-district-council/leeds,Leeds City Council,30/09/2021,Resources and Housing,Leeds Building Services,Supplies and Services,Other Hired And Contracted Services,265,28/09/2021,2109-00259,0.00,23.61,R,Actavo Hire And Sales Uk Limited,No
Http://opendatacommunities.org/id/metropolitan-district-council/leeds,Leeds City Council,30/09/2021,Resources and Housing,Leeds Building Services,Supplies and Services,Operational Materials,205,28/09/2021,2109-00260,0.00,80.23,R,Actavo Hire And Sales Uk Limited,No
Http://opendatacommunities.org/id/metropolitan-district-council/leeds,Leeds City Council,30/09/2021,Resources and Housing,Leeds Building Services,Supplies and Services,Other Hired And Contracted Services,265,28/09/2021,2109-00261,0.00,26.23,R,Actavo Hire And Sales Uk Limited,No
Http://opendatacommunities.org/id/metropolitan-district-council/leeds,Leeds City Council,30/09/2021,Resources and Housing,Leeds Building Services,Supplies and Services,Operational Materials,205,28/09/2021,2109-00262,0.00,82.90,R,Actavo Hire And Sales Uk Limited,No
Http://opendatacommunities.org/id/metropolitan-district-council/leeds,Leeds City Council,30/09/2021,Resources and Housing,Leeds Building Services,Supplies and Services,Other Hired And Contracted Services,265,28/09/2021,2109-00263,0.00,27.10,R,Actavo Hire And Sales Uk Limited,No
Http://opendatacommunities.org/id/metropolitan-district-council/leeds,Leeds City Council,30/09/2021,Resources and Housing,Leeds Building Services,Supplies and Services,Operational Materials,205,28/09/2021,2109-00264,0.00,80.23,R,Actavo Hire And Sales Uk Limited,No
Http://opendatacommunities.org/id/metropolitan-district-council/leeds,Leeds City Council,30/09/2021,Resources and Housing,Leeds Building Services,Supplies and Services,Other Hired And Contracted Services,265,28/09/2021,2109-00265,0.00,26.23,R,Actavo Hire And Sales Uk Limited,No
Http://opendatacommunities.org/id/metropolitan-district-council/leeds,Leeds City Council,30/09/2021,Resources and Housing,Leeds Building Services,Supplies and Services,Operational Materials,205,28/09/2021,2109-00266,0.00,35.82,R,Actavo Hire And Sales Uk Limited,No
Http://opendatacommunities.org/id/metropolitan-district-council/leeds,Leeds City Council,30/09/2021,Resources and Housing,Leeds Building Services,Supplies and Services,Operational Materials,205,28/09/2021,2109-00267,0.00,10.00,R,Actavo Hire And Sales Uk Limited,No
Http://opendatacommunities.org/id/metropolitan-district-council/leeds,Leeds City Council,30/09/2021,Resources and Housing,Leeds Building Services,Supplies and Services,Operational Materials,205,28/09/2021,2109-00268,0.00,82.90,R,Actavo Hire And Sales Uk Limited,No
Http://opendatacommunities.org/id/metropolitan-district-council/leeds,Leeds City Council,30/09/2021,Resources and Housing,Leeds Building Services,Supplies and Services,Operational Materials,205,30/09/2021,2109-00269,0.00,82.90,R,Actavo Hire And Sales Uk Limited,No
Http://opendatacommunities.org/id/metropolitan-district-council/leeds,Leeds City Council,30/09/2021,Children and Families,Social Care,Agency Payments,Services Rendered By Other Organisations,511,01/09/2021,2109-00270,0.00,522.60,R,ACTIVE KIDS YEADON LLP,No
Http://opendatacommunities.org/id/metropolitan-district-council/leeds,Leeds City Council,30/09/2021,Children and Families,Social Care,Agency Payments,Services Rendered By Other Organisations,511,03/09/2021,2109-00271,0.00,7037.00,R,ACTIVE KIDS YEADON LLP,No
Http://opendatacommunities.org/id/metropolitan-district-council/leeds,Leeds City Council,30/09/2021,Adults and Health,Services For Adults Under 65 Mental/Dis,Agency Payments,Sheltered Accommodation,569,15/09/2021,2109-00272,0.00,15773.16,R,Active Pathways,No
Http://opendatacommunities.org/id/metropolitan-district-council/leeds,Leeds City Council as Accountable Body,30/09/2021,Social Services Pooled Budgets,Jcs For People With Learning Disabilitie,Agency Payments,Sheltered Accommodation,569,15/09/2021,2109-00273,0.00,12452.52,R,Active Pathways,No
Http://opendatacommunities.org/id/metropolitan-district-council/leeds,Leeds City Council,30/09/2021,Communities and Environment,Waste Management,Supplies and Services,Recycling & Reuse Charges,234,01/09/2021,2109-00274,0.00,938.88,R,Acumen Waste Services Ltd,No
Http://opendatacommunities.org/id/metropolitan-district-council/leeds,Leeds City Council,30/09/2021,Communities and Environment,Waste Management,Supplies and Services,Recycling & Reuse Charges,234,01/09/2021,2109-00275,0.00,984.24,R,Acumen Waste Services Ltd,No
Http://opendatacommunities.org/id/metropolitan-district-council/leeds,Leeds City Council,30/09/2021,Communities and Environment,Waste Management,Supplies and Services,Recycling & Reuse Charges,234,01/09/2021,2109-00276,0.00,967.68,R,Acumen Waste Services Ltd,No
Http://opendatacommunities.org/id/metropolitan-district-council/leeds,Leeds City Council,30/09/2021,Communities and Environment,Waste Management,Supplies and Services,Recycling & Reuse Charges,234,01/09/2021,2109-00277,0.00,1007.28,R,Acumen Waste Services Ltd,No
Http://opendatacommunities.org/id/metropolitan-district-council/leeds,Leeds City Council,30/09/2021,Communities and Environment,Waste Management,Supplies and Services,Recycling & Reuse Charges,234,01/09/2021,2109-00278,0.00,995.04,R,Acumen Waste Services Ltd,No
Http://opendatacommunities.org/id/metropolitan-district-council/leeds,Leeds City Council,30/09/2021,Communities and Environment,Waste Management,Supplies and Services,Recycling & Reuse Charges,234,01/09/2021,2109-00279,0.00,1008.00,R,Acumen Waste Services Ltd,No
Http://opendatacommunities.org/id/metropolitan-district-council/leeds,Leeds City Council,30/09/2021,Communities and Environment,Waste Management,Supplies and Services,Recycling & Reuse Charges,234,01/09/2021,2109-00280,0.00,1013.76,R,Acumen Waste Services Ltd,No
Http://opendatacommunities.org/id/metropolitan-district-council/leeds,Leeds City Council,30/09/2021,Communities and Environment,Waste Management,Supplies and Services,Waste Disposal Charges,236,01/09/2021,2109-00281,0.00,1256.20,R,Acumen Waste Services Ltd,No
Http://opendatacommunities.org/id/metropolitan-district-council/leeds,Leeds City Council,30/09/2021,Communities and Environment,Waste Management,Supplies and Services,Waste Disposal Charges,236,01/09/2021,2109-00282,0.00,250.00,R,Acumen Waste Services Ltd,No
Http://opendatacommunities.org/id/metropolitan-district-council/leeds,Leeds City Council,30/09/2021,Communities and Environment,Waste Management,Supplies and Services,Recycling & Reuse Charges,234,01/09/2021,2109-00283,0.00,1015.92,R,Acumen Waste Services Ltd,No
Http://opendatacommunities.org/id/metropolitan-district-council/leeds,Leeds City Council,30/09/2021,Communities and Environment,Waste Management,Supplies and Services,Recycling & Reuse Charges,234,10/09/2021,2109-00284,0.00,961.20,R,Acumen Waste Services Ltd,No
Http://opendatacommunities.org/id/metropolitan-district-council/leeds,Leeds City Council,30/09/2021,Communities and Environment,Waste Management,Supplies and Services,Recycling & Reuse Charges,234,10/09/2021,2109-00285,0.00,988.56,R,Acumen Waste Services Ltd,No
Http://opendatacommunities.org/id/metropolitan-district-council/leeds,Leeds City Council,30/09/2021,Communities and Environment,Waste Management,Supplies and Services,Recycling & Reuse Charges,234,10/09/2021,2109-00286,0.00,3924.72,R,Acumen Waste Services Ltd,No
Http://opendatacommunities.org/id/metropolitan-district-council/leeds,Leeds City Council,30/09/2021,Communities and Environment,Waste Management,Supplies and Services,Recycling & Reuse Charges,234,10/09/2021,2109-00287,0.00,961.20,R,Acumen Waste Services Ltd,No
Http://opendatacommunities.org/id/metropolitan-district-council/leeds,Leeds City Council,30/09/2021,Communities and Environment,Waste Management,Supplies and Services,Recycling & Reuse Charges,234,10/09/2021,2109-00288,0.00,982.08,R,Acumen Waste Services Ltd,No
Http://opendatacommunities.org/id/metropolitan-district-council/leeds,Leeds City Council,30/09/2021,Communities and Environment,Waste Management,Supplies and Services,Recycling & Reuse Charges,234,10/09/2021,2109-00289,0.00,998.64,R,Acumen Waste Services Ltd,No
Http://opendatacommunities.org/id/metropolitan-district-council/leeds,Leeds City Council,30/09/2021,Communities and Environment,Waste Management,Supplies and Services,Recycling & Reuse Charges,234,17/09/2021,2109-00290,0.00,962.64,R,Acumen Waste Services Ltd,No
Http://opendatacommunities.org/id/metropolitan-district-council/leeds,Leeds City Council,30/09/2021,Communities and Environment,Waste Management,Supplies and Services,Recycling & Reuse Charges,234,17/09/2021,2109-00291,0.00,964.80,R,Acumen Waste Services Ltd,No
Http://opendatacommunities.org/id/metropolitan-district-council/leeds,Leeds City Council,30/09/2021,Communities and Environment,Waste Management,Supplies and Services,Recycling & Reuse Charges,234,17/09/2021,2109-00292,0.00,846.00,R,Acumen Waste Services Ltd,No
Http://opendatacommunities.org/id/metropolitan-district-council/leeds,Leeds City Council,30/09/2021,Communities and Environment,Waste Management,Supplies and Services,Recycling & Reuse Charges,234,17/09/2021,2109-00293,0.00,892.08,R,Acumen Waste Services Ltd,No
Http://opendatacommunities.org/id/metropolitan-district-council/leeds,Leeds City Council,30/09/2021,Communities and Environment,Waste Management,Supplies and Services,Recycling & Reuse Charges,234,17/09/2021,2109-00294,0.00,966.24,R,Acumen Waste Services Ltd,No
Http://opendatacommunities.org/id/metropolitan-district-council/leeds,Leeds City Council,30/09/2021,Communities and Environment,Waste Management,Supplies and Services,Recycling & Reuse Charges,234,17/09/2021,2109-00295,0.00,995.04,R,Acumen Waste Services Ltd,No
Http://opendatacommunities.org/id/metropolitan-district-council/leeds,Leeds City Council,30/09/2021,Communities and Environment,Waste Management,Supplies and Services,Recycling & Reuse Charges,234,17/09/2021,2109-00296,0.00,1014.48,R,Acumen Waste Services Ltd,No
Http://opendatacommunities.org/id/metropolitan-district-council/leeds,Leeds City Council,30/09/2021,Communities and Environment,Waste Management,Supplies and Services,Recycling & Reuse Charges,234,17/09/2021,2109-00297,0.00,995.76,R,Acumen Waste Services Ltd,No
Http://opendatacommunities.org/id/metropolitan-district-council/leeds,Leeds City Council,30/09/2021,Communities and Environment,Waste Management,Supplies and Services,Recycling & Reuse Charges,234,24/09/2021,2109-00298,0.00,1010.88,R,Acumen Waste Services Ltd,No
Http://opendatacommunities.org/id/metropolitan-district-council/leeds,Leeds City Council,30/09/2021,Communities and Environment,Waste Management,Supplies and Services,Recycling & Reuse Charges,234,24/09/2021,2109-00299,0.00,954.00,R,Acumen Waste Services Ltd,No
Http://opendatacommunities.org/id/metropolitan-district-council/leeds,Leeds City Council,30/09/2021,Communities and Environment,Waste Management,Supplies and Services,Recycling & Reuse Charges,234,24/09/2021,2109-00300,0.00,974.16,R,Acumen Waste Services Ltd,No
Http://opendatacommunities.org/id/metropolitan-district-council/leeds,Leeds City Council,30/09/2021,Communities and Environment,Waste Management,Supplies and Services,Waste Disposal Charges,236,27/09/2021,2109-00301,0.00,250.00,R,Acumen Waste Services Ltd,No
Http://opendatacommunities.org/id/metropolitan-district-council/leeds,Leeds City Council,30/09/2021,Communities and Environment,Waste Management,Supplies and Services,Waste Disposal Charges,236,27/09/2021,2109-00302,0.00,250.00,R,Acumen Waste Services Ltd,No
Http://opendatacommunities.org/id/metropolitan-district-council/leeds,Leeds City Council,30/09/2021,Communities and Environment,Waste Management,Supplies and Services,Waste Disposal Charges,236,27/09/2021,2109-00303,0.00,250.00,R,Acumen Waste Services Ltd,No
Http://opendatacommunities.org/id/metropolitan-district-council/leeds,Leeds City Council,30/09/2021,Communities and Environment,Waste Management,Supplies and Services,Waste Disposal Charges,236,27/09/2021,2109-00304,0.00,1718.70,R,Acumen Waste Services Ltd,No
Http://opendatacommunities.org/id/metropolitan-district-council/leeds,Leeds City Council,30/09/2021,Communities and Environment,Waste Management,Supplies and Services,Waste Disposal Charges,236,27/09/2021,2109-00305,0.00,7113.70,R,Acumen Waste Services Ltd,No
Http://opendatacommunities.org/id/metropolitan-district-council/leeds,Leeds City Council,30/09/2021,Communities and Environment,Waste Management,Supplies and Services,Waste Disposal Charges,236,29/09/2021,2109-00306,0.00,1137.00,R,Acumen Waste Services Ltd,No
Http://opendatacommunities.org/id/metropolitan-district-council/leeds,Leeds City Council,30/09/2021,Communities and Environment,Waste Management,Supplies and Services,Waste Disposal Charges,236,30/09/2021,2109-00307,0.00,450.00,R,Acumen Waste Services Ltd,No
Http://opendatacommunities.org/id/metropolitan-district-council/leeds,Leeds City Council,30/09/2021,Communities and Environment,Waste Management,Supplies and Services,Waste Disposal Charges,236,30/09/2021,2109-00308,0.00,2354.65,R,Acumen Waste Services Ltd,No
Http://opendatacommunities.org/id/metropolitan-district-council/leeds,Leeds City Council,30/09/2021,Communities and Environment,Parks and Countryside,Supplies and Services,Resaleable Materials,204,03/09/2021,2109-00309,0.00,188.40,R,ACUSHNET EUROPE LIMITED,No
Http://opendatacommunities.org/id/metropolitan-district-council/leeds,Leeds City Council,30/09/2021,Communities and Environment,Parks and Countryside,Supplies and Services,Resaleable Materials,204,10/09/2021,2109-00310,0.00,406.00,R,ACUSHNET EUROPE LIMITED,No
Http://opendatacommunities.org/id/metropolitan-district-council/leeds,Leeds City Council,30/09/2021,Communities and Environment,Parks and Countryside,Supplies and Services,Resaleable Materials,204,24/09/2021,2109-00311,0.00,833.00,R,ACUSHNET EUROPE LIMITED,No
Http://opendatacommunities.org/id/metropolitan-district-council/leeds,Leeds City Council,30/09/2021,Resources and Housing,Shared Services,Supplies and Services,Other Hired And Contracted Services,265,08/09/2021,2109-00312,0.00,68.82,R,AD3 Envelope Printers Limited,No
Http://opendatacommunities.org/id/metropolitan-district-council/leeds,Leeds City Council,30/09/2021,Resources and Housing,Shared Services,Supplies and Services,Operational Materials,205,30/09/2021,2109-00313,0.00,1131.75,R,AD3 Envelope Printers Limited,No
Http://opendatacommunities.org/id/metropolitan-district-council/leeds,Leeds City Council,30/09/2021,Resources and Housing,Shared Services,Supplies and Services,Other Hired And Contracted Services,265,30/09/2021,2109-00314,0.00,394.00,R,AD3 Envelope Printers Limited,No
Http://opendatacommunities.org/id/metropolitan-district-council/leeds,Leeds City Council,30/09/2021,Resources and Housing,Strategic Housing Partnership & Support,Supplies and Services,Other Hired And Contracted Services,265,29/09/2021,2109-00315,0.00,604.10,R,Adair Paxton LLP,No
Http://opendatacommunities.org/id/metropolitan-district-council/leeds,Leeds City Council,30/09/2021,Communities and Environment,Benefits Welfare and Poverty,Supplies and Services,Grant Related Expenditure,290,06/09/2021,2109-00316,0.00,500.00,R,REDACTED PERSONAL DATA,No
Http://opendatacommunities.org/id/metropolitan-district-council/leeds,Leeds City Council,30/09/2021,Communities and Environment,Benefits Welfare and Poverty,Supplies and Services,Grant Related Expenditure,298,10/09/2021,2109-00317,0.00,500.00,R,REDACTED PERSONAL DATA,No
Http://opendatacommunities.org/id/metropolitan-district-council/leeds,Leeds City Council,30/09/2021,Communities and Environment,Benefits Welfare and Poverty,Supplies and Services,Grant Related Expenditure,298,14/09/2021,2109-00318,0.00,500.00,R,REDACTED PERSONAL DATA,No
Http://opendatacommunities.org/id/metropolitan-district-council/leeds,Leeds City Council,30/09/2021,Communities and Environment,Benefits Welfare and Poverty,Supplies and Services,Grant Related Expenditure,298,29/09/2021,2109-00319,0.00,500.00,R,REDACTED PERSONAL DATA,No
Http://opendatacommunities.org/id/metropolitan-district-council/leeds,Leeds City Council,30/09/2021,Communities and Environment,Benefits Welfare and Poverty,Supplies and Services,Grant Related Expenditure,298,02/09/2021,2109-00320,0.00,500.00,R,REDACTED PERSONAL DATA,No
Http://opendatacommunities.org/id/metropolitan-district-council/leeds,Leeds City Council,30/09/2021,Communities and Environment,Benefits Welfare and Poverty,Supplies and Services,Grant Related Expenditure,298,23/09/2021,2109-00321,0.00,500.00,R,REDACTED PERSONAL DATA,No
Http://opendatacommunities.org/id/metropolitan-district-council/leeds,Leeds City Council,30/09/2021,Communities and Environment,Benefits Welfare and Poverty,Supplies and Services,Grant Related Expenditure,290,29/09/2021,2109-00322,0.00,500.00,R,REDACTED PERSONAL DATA,No
Http://opendatacommunities.org/id/metropolitan-district-council/leeds,Leeds City Council,30/09/2021,Communities and Environment,Benefits Welfare and Poverty,Supplies and Services,Grant Related Expenditure,298,01/09/2021,2109-00323,0.00,500.00,R,REDACTED PERSONAL DATA,No
Http://opendatacommunities.org/id/metropolitan-district-council/leeds,Leeds City Council,30/09/2021,Children and Families,Social Care,Agency Payments,Section 17,551,10/09/2021,2109-00324,0.00,1024.56,R,REDACTED PERSONAL DATA,No
Http://opendatacommunities.org/id/metropolitan-district-council/leeds,Leeds City Council,30/09/2021,Communities and Environment,Benefits Welfare and Poverty,Supplies and Services,Grant Related Expenditure,290,29/09/2021,2109-00325,0.00,500.00,R,REDACTED PERSONAL DATA,No
Http://opendatacommunities.org/id/metropolitan-district-council/leeds,Leeds City Council,30/09/2021,Communities and Environment,Benefits Welfare and Poverty,Supplies and Services,Grant Related Expenditure,298,06/09/2021,2109-00326,0.00,500.00,R,REDACTED PERSONAL DATA,No
Http://opendatacommunities.org/id/metropolitan-district-council/leeds,Leeds City Council,30/09/2021,Children and Families,Social Care,Appropriations,Leaving Care Allowances,634,03/09/2021,2109-00327,0.00,70.00,R,REDACTED PERSONAL DATA,No
Http://opendatacommunities.org/id/metropolitan-district-council/leeds,Leeds City Council,30/09/2021,Children and Families,Social Care,Appropriations,Leaving Care Allowances,634,10/09/2021,2109-00328,0.00,70.00,R,REDACTED PERSONAL DATA,No
Http://opendatacommunities.org/id/metropolitan-district-council/leeds,Leeds City Council,30/09/2021,Children and Families,Social Care,Appropriations,Leaving Care Allowances,634,17/09/2021,2109-00329,0.00,70.00,R,REDACTED PERSONAL DATA,No
Http://opendatacommunities.org/id/metropolitan-district-council/leeds,Leeds City Council,30/09/2021,Children and Families,Social Care,Appropriations,Leaving Care Allowances,634,24/09/2021,2109-00330,0.00,70.00,R,REDACTED PERSONAL DATA,No
Http://opendatacommunities.org/id/metropolitan-district-council/leeds,Leeds City Council,30/09/2021,Children and Families,Social Care,Appropriations,Leaving Care Grants,635,28/09/2021,2109-00331,0.00,150.00,R,REDACTED PERSONAL DATA,No
Http://opendatacommunities.org/id/metropolitan-district-council/leeds,Leeds City Council,30/09/2021,Communities and Environment,Benefits Welfare and Poverty,Supplies and Services,Grant Related Expenditure,298,20/09/2021,2109-00332,0.00,500.00,R,REDACTED PERSONAL DATA,No
Http://opendatacommunities.org/id/metropolitan-district-council/leeds,Leeds City Council,30/09/2021,Communities and Environment,Benefits Welfare and Poverty,Supplies and Services,Grant Related Expenditure,298,17/09/2021,2109-00333,0.00,500.00,R,REDACTED PERSONAL DATA,No
Http://opendatacommunities.org/id/metropolitan-district-council/leeds,Leeds City Council,30/09/2021,Adults and Health,Services For Older People - 65 And Over,Agency Payments,Nursing Home,570,15/09/2021,2109-00334,0.00,2648.00,R,Adbolton Hall,No
Http://opendatacommunities.org/id/metropolitan-district-council/leeds,Leeds City Council,30/09/2021,City Development,Libraries Arts & Heritage,Supplies and Services,Other Hired And Contracted Services,265,23/09/2021,2109-00335,0.00,1300.00,R,Add-A-Tone Productions Ltd,No
Http://opendatacommunities.org/id/metropolitan-district-council/leeds,Leeds City Council,30/09/2021,Resources and Housing,PPPU and Procurement,Supplies and Services,Other Hired And Contracted Services,265,24/09/2021,2109-00336,0.00,3500.00,R,Addleshaw Goddard LLP,No
Http://opendatacommunities.org/id/metropolitan-district-council/leeds,Leeds City Council,30/09/2021,Resources and Housing,Human Resources,Employees,Occupational Health,85,28/09/2021,2109-00337,0.00,50.00,R,Addlestone & Partners,No
Http://opendatacommunities.org/id/metropolitan-district-council/leeds,Leeds City Council,30/09/2021,Resources and Housing,Technology,Employees,Agency Staff,8,09/08/2021,2109-00338,0.00,20168.49,R,Adecco Alfred Marks,Yes
Http://opendatacommunities.org/id/metropolitan-district-council/leeds,Leeds City Council,30/09/2021,Resources and Housing,Technology,Employees,Agency Staff,8,19/08/2021,2109-00339,0.00,4319.47,R,Adecco Alfred Marks,Yes
Http://opendatacommunities.org/id/metropolitan-district-council/leeds,Leeds City Council,30/09/2021,Resources and Housing,Technology,Supplies and Services,Computer Software & Equipment,214,19/08/2021,2109-00340,0.00,6735.21,R,Adecco Alfred Marks,Yes
Http://opendatacommunities.org/id/metropolitan-district-council/leeds,Leeds City Council,30/09/2021,Resources and Housing,Technology,Employees,Agency Staff,8,25/08/2021,2109-00341,0.00,13569.39,R,Adecco Alfred Marks,Yes
Http://opendatacommunities.org/id/metropolitan-district-council/leeds,Leeds City Council,30/09/2021,Resources and Housing,Technology,Supplies and Services,Computer Software & Equipment,214,25/08/2021,2109-00342,0.00,5147.06,R,Adecco Alfred Marks,Yes
Http://opendatacommunities.org/id/metropolitan-district-council/leeds,Leeds City Council,30/09/2021,Children and Families,Social Care,Agency Payments,Allowances,546,16/09/2021,2109-00343,0.00,100.00,R,REDACTED PERSONAL DATA,No
Http://opendatacommunities.org/id/metropolitan-district-council/leeds,Leeds City Council,30/09/2021,Children and Families,Social Care,Agency Payments,Services Rendered By Other Organisations,511,01/09/2021,2109-00344,0.00,261.30,R,ADEL PRE SCHOOL,No
Http://opendatacommunities.org/id/metropolitan-district-council/leeds,Leeds City Council,30/09/2021,Children and Families,Social Care,Agency Payments,Services Rendered By Voluntary Sector,505,03/09/2021,2109-00345,0.00,4626.14,R,ADEL PRE SCHOOL,No
Http://opendatacommunities.org/id/metropolitan-district-council/leeds,Leeds City Council,30/09/2021,Communities and Environment,Car Parking Services,Transport,Fuel (Non LCC Supplies),321,12/08/2021,2109-00346,0.00,5.53,R,Adel Sf Connect,Yes
Http://opendatacommunities.org/id/metropolitan-district-council/leeds,Leeds City Council,30/09/2021,Children and Families,Social Care,Agency Payments,Contact,548,03/09/2021,2109-00347,0.00,6.70,R,REDACTED PERSONAL DATA,No
Http://opendatacommunities.org/id/metropolitan-district-council/leeds,Leeds City Council,30/09/2021,Children and Families,Social Care,Agency Payments,Contact,548,09/09/2021,2109-00348,0.00,6.70,R,REDACTED PERSONAL DATA,No
Http://opendatacommunities.org/id/metropolitan-district-council/leeds,Leeds City Council,30/09/2021,Children and Families,Social Care,Agency Payments,Contact,548,16/09/2021,2109-00349,0.00,6.70,R,REDACTED PERSONAL DATA,No
Http://opendatacommunities.org/id/metropolitan-district-council/leeds,Leeds City Council,30/09/2021,City Development,Recreation,Supplies and Services,Bought In Professional Services,277,17/09/2021,2109-00350,0.00,120.00,R,Adele Battersby,No
Http://opendatacommunities.org/id/metropolitan-district-council/leeds,Leeds City Council,30/09/2021,City Development,Recreation,Supplies and Services,Bought In Professional Services,277,30/09/2021,2109-00351,0.00,320.00,R,Adele Battersby,No
Http://opendatacommunities.org/id/metropolitan-district-council/leeds,Leeds City Council,30/09/2021,City Development,Recreation,Supplies and Services,Bought In Professional Services,277,30/09/2021,2109-00352,0.00,60.00,R,Adele Battersby,No
Http://opendatacommunities.org/id/metropolitan-district-council/leeds,Leeds City Council,30/09/2021,Children and Families,Social Care,Agency Payments,Services Rendered By Other Organisations,511,02/09/2021,2109-00353,0.00,522.60,R,REDACTED PERSONAL DATA,No
Http://opendatacommunities.org/id/metropolitan-district-council/leeds,Leeds City Council,30/09/2021,Children and Families,Social Care,Agency Payments,Services Rendered By Other Organisations,511,02/09/2021,2109-00354,0.00,1087.13,R,REDACTED PERSONAL DATA,No
Http://opendatacommunities.org/id/metropolitan-district-council/leeds,Leeds City Council,30/09/2021,Communities and Environment,Benefits Welfare and Poverty,Supplies and Services,Grant Related Expenditure,298,08/09/2021,2109-00355,0.00,500.00,R,REDACTED PERSONAL DATA,No
Http://opendatacommunities.org/id/metropolitan-district-council/leeds,Leeds City Council,30/09/2021,Children and Families,Social Care,Agency Payments,Contact,548,03/09/2021,2109-00356,0.00,24.90,R,REDACTED PERSONAL DATA,No
Http://opendatacommunities.org/id/metropolitan-district-council/leeds,Leeds City Council,30/09/2021,Children and Families,Social Care,Agency Payments,Contact,548,10/09/2021,2109-00357,0.00,24.90,R,REDACTED PERSONAL DATA,No
Http://opendatacommunities.org/id/metropolitan-district-council/leeds,Leeds City Council,30/09/2021,Children and Families,Social Care,Agency Payments,Contact,548,22/09/2021,2109-00358,0.00,49.80,R,REDACTED PERSONAL DATA,No
Http://opendatacommunities.org/id/metropolitan-district-council/leeds,Leeds City Council,30/09/2021,Children and Families,Social Care,Agency Payments,Section 17,551,03/09/2021,2109-00359,0.00,79.20,R,REDACTED PERSONAL DATA,No
Http://opendatacommunities.org/id/metropolitan-district-council/leeds,Leeds City Council,30/09/2021,Children and Families,Social Care,Agency Payments,Section 17,551,10/09/2021,2109-00360,0.00,79.20,R,REDACTED PERSONAL DATA,No
Http://opendatacommunities.org/id/metropolitan-district-council/leeds,Leeds City Council,30/09/2021,Children and Families,Social Care,Agency Payments,Section 17,551,17/09/2021,2109-00361,0.00,79.20,R,REDACTED PERSONAL DATA,No
Http://opendatacommunities.org/id/metropolitan-district-council/leeds,Leeds City Council,30/09/2021,Children and Families,Social Care,Agency Payments,Section 17,551,24/09/2021,2109-00362,0.00,79.20,R,REDACTED PERSONAL DATA,No
Http://opendatacommunities.org/id/metropolitan-district-council/leeds,Leeds City Council,30/09/2021,Resources and Housing,Leeds Building Services,Supplies and Services,Operational Materials,205,10/09/2021,2109-00363,0.00,1141.83,R,ADI Global,No
Http://opendatacommunities.org/id/metropolitan-district-council/leeds,Leeds City Council,30/09/2021,Resources and Housing,Leeds Building Services,Supplies and Services,Operational Materials,205,10/09/2021,2109-00364,0.00,918.65,R,ADI Global,No
Http://opendatacommunities.org/id/metropolitan-district-council/leeds,Leeds City Council,30/09/2021,Resources and Housing,Leeds Building Services,Supplies and Services,Operational Materials,205,10/09/2021,2109-00365,0.00,276.46,R,ADI Global,No
Http://opendatacommunities.org/id/metropolitan-district-council/leeds,Leeds City Council,30/09/2021,Resources and Housing,Leeds Building Services,Supplies and Services,Operational Materials,205,10/09/2021,2109-00366,0.00,110.18,R,ADI Global,No
Http://opendatacommunities.org/id/metropolitan-district-council/leeds,Leeds City Council,30/09/2021,Resources and Housing,Leeds Building Services,Supplies and Services,Operational Materials,205,17/09/2021,2109-00367,0.00,34.53,R,ADI Global,No
Http://opendatacommunities.org/id/metropolitan-district-council/leeds,Leeds City Council,30/09/2021,Resources and Housing,Leeds Building Services,Supplies and Services,Operational Materials,205,17/09/2021,2109-00368,0.00,738.24,R,ADI Global,No
Http://opendatacommunities.org/id/metropolitan-district-council/leeds,Leeds City Council,30/09/2021,Resources and Housing,Leeds Building Services,Supplies and Services,Operational Materials,205,17/09/2021,2109-00369,0.00,36.10,R,ADI Global,No
Http://opendatacommunities.org/id/metropolitan-district-council/leeds,Leeds City Council,30/09/2021,Resources and Housing,Leeds Building Services,Supplies and Services,Operational Materials,205,17/09/2021,2109-00370,0.00,355.86,R,ADI Global,No
Http://opendatacommunities.org/id/metropolitan-district-council/leeds,Leeds City Council,30/09/2021,Resources and Housing,Leeds Building Services,Supplies and Services,Operational Materials,205,17/09/2021,2109-00371,0.00,105.45,R,ADI Global,No
Http://opendatacommunities.org/id/metropolitan-district-council/leeds,Leeds City Council,30/09/2021,Resources and Housing,Leeds Building Services,Supplies and Services,Operational Materials,205,22/09/2021,2109-00372,0.00,40.47,R,ADI Global,No
Http://opendatacommunities.org/id/metropolitan-district-council/leeds,Leeds City Council,30/09/2021,Resources and Housing,Leeds Building Services,Supplies and Services,Operational Materials,205,22/09/2021,2109-00373,0.00,183.98,R,ADI Global,No
Http://opendatacommunities.org/id/metropolitan-district-council/leeds,Leeds City Council,30/09/2021,Resources and Housing,Leeds Building Services,Supplies and Services,Operational Materials,205,24/09/2021,2109-00374,0.00,735.33,R,ADI Global,No
Http://opendatacommunities.org/id/metropolitan-district-council/leeds,Leeds City Council,30/09/2021,Resources and Housing,Leeds Building Services,Supplies and Services,Operational Materials,205,24/09/2021,2109-00375,0.00,100.36,R,ADI Global,No
Http://opendatacommunities.org/id/metropolitan-district-council/leeds,Leeds City Council,30/09/2021,Resources and Housing,Leeds Building Services,Supplies and Services,Operational Materials,205,24/09/2021,2109-00376,0.00,90.60,R,ADI Global,No
Http://opendatacommunities.org/id/metropolitan-district-council/leeds,Leeds City Council,30/09/2021,Insurance,Insurance,Supplies and Services,Insurance Claims,248,13/09/2021,2109-00377,0.00,240.00,R,Admiral Law,No
Http://opendatacommunities.org/id/metropolitan-district-council/leeds,Leeds City Council,30/09/2021,City Development,Libraries Arts & Heritage,Supplies and Services,Computer Software & Equipment,214,02/08/2021,2109-00378,0.00,41.62,R,Adobe Creative Cloud,Yes
Http://opendatacommunities.org/id/metropolitan-district-council/leeds,Leeds City Council,30/09/2021,City Development,Libraries Arts & Heritage,Supplies and Services,Computer Software & Equipment,214,24/08/2021,2109-00379,0.00,8.32,R,Adobe Photogphy Plan,Yes
Http://opendatacommunities.org/id/metropolitan-district-council/leeds,Leeds City Council,30/09/2021,Children and Families,Social Care,Agency Payments,Independent Fostering Agencies,509,03/09/2021,2109-00380,0.00,3565.00,R,Adolescent And Childrens Trust,No
Http://opendatacommunities.org/id/metropolitan-district-council/leeds,Leeds City Council,30/09/2021,Children and Families,Social Care,Agency Payments,Independent Fostering Agencies,509,03/09/2021,2109-00381,0.00,3565.00,R,Adolescent And Childrens Trust,No
Http://opendatacommunities.org/id/metropolitan-district-council/leeds,Leeds City Council,30/09/2021,Children and Families,Social Care,Agency Payments,Independent Fostering Agencies,509,03/09/2021,2109-00382,0.00,3565.00,R,Adolescent And Childrens Trust,No
Http://opendatacommunities.org/id/metropolitan-district-council/leeds,Leeds City Council,30/09/2021,Children and Families,Social Care,Agency Payments,Independent Fostering Agencies,509,03/09/2021,2109-00383,0.00,3751.00,R,Adolescent And Childrens Trust,No
Http://opendatacommunities.org/id/metropolitan-district-council/leeds,Leeds City Council,30/09/2021,Children and Families,Social Care,Agency Payments,Independent Fostering Agencies,509,03/09/2021,2109-00384,0.00,3751.00,R,Adolescent And Childrens Trust,No
Http://opendatacommunities.org/id/metropolitan-district-council/leeds,Leeds City Council,30/09/2021,Children and Families,Social Care,Agency Payments,Independent Fostering Agencies,509,03/09/2021,2109-00385,0.00,3565.00,R,Adolescent And Childrens Trust,No
Http://opendatacommunities.org/id/metropolitan-district-council/leeds,Leeds City Council,30/09/2021,Children and Families,Social Care,Agency Payments,Independent Fostering Agencies,509,03/09/2021,2109-00386,0.00,888.00,R,Adolescent And Childrens Trust,No
Http://opendatacommunities.org/id/metropolitan-district-council/leeds,Leeds City Council,30/09/2021,Children and Families,Social Care,Agency Payments,Independent Fostering Agencies,509,03/09/2021,2109-00387,0.00,3751.00,R,Adolescent And Childrens Trust,No
Http://opendatacommunities.org/id/metropolitan-district-council/leeds,Leeds City Council,30/09/2021,Children and Families,Social Care,Agency Payments,Independent Fostering Agencies,509,03/09/2021,2109-00388,0.00,3751.00,R,Adolescent And Childrens Trust,No
Http://opendatacommunities.org/id/metropolitan-district-council/leeds,Leeds City Council,30/09/2021,Children and Families,Social Care,Agency Payments,Independent Fostering Agencies,509,30/09/2021,2109-00389,0.00,3565.00,R,Adolescent And Childrens Trust,No
Http://opendatacommunities.org/id/metropolitan-district-council/leeds,Leeds City Council,30/09/2021,Children and Families,Social Care,Agency Payments,Independent Fostering Agencies,509,30/09/2021,2109-00390,0.00,3565.00,R,Adolescent And Childrens Trust,No
Http://opendatacommunities.org/id/metropolitan-district-council/leeds,Leeds City Council,30/09/2021,Children and Families,Social Care,Agency Payments,Independent Fostering Agencies,509,30/09/2021,2109-00391,0.00,3565.00,R,Adolescent And Childrens Trust,No
Http://opendatacommunities.org/id/metropolitan-district-council/leeds,Leeds City Council,30/09/2021,Children and Families,Social Care,Agency Payments,Independent Fostering Agencies,509,30/09/2021,2109-00392,0.00,3751.00,R,Adolescent And Childrens Trust,No
Http://opendatacommunities.org/id/metropolitan-district-council/leeds,Leeds City Council,30/09/2021,Children and Families,Social Care,Agency Payments,Independent Fostering Agencies,509,30/09/2021,2109-00393,0.00,3751.00,R,Adolescent And Childrens Trust,No
Http://opendatacommunities.org/id/metropolitan-district-council/leeds,Leeds City Council,30/09/2021,Children and Families,Social Care,Agency Payments,Independent Fostering Agencies,509,30/09/2021,2109-00394,0.00,3565.00,R,Adolescent And Childrens Trust,No
Http://opendatacommunities.org/id/metropolitan-district-council/leeds,Leeds City Council,30/09/2021,Children and Families,Social Care,Agency Payments,Independent Fostering Agencies,509,30/09/2021,2109-00395,0.00,3751.00,R,Adolescent And Childrens Trust,No
Http://opendatacommunities.org/id/metropolitan-district-council/leeds,Leeds City Council,30/09/2021,Children and Families,Social Care,Agency Payments,Independent Fostering Agencies,509,30/09/2021,2109-00396,0.00,3751.00,R,Adolescent And Childrens Trust,No
Http://opendatacommunities.org/id/metropolitan-district-council/leeds,Leeds City Council,30/09/2021,Children and Families,Social Care,Agency Payments,Independent Fostering Agencies,509,30/09/2021,2109-00397,0.00,3551.67,R,Adolescent And Childrens Trust,No
Http://opendatacommunities.org/id/metropolitan-district-council/leeds,Leeds City Council,30/09/2021,Children and Families,Social Care,Agency Payments,Independent Fostering Agencies,509,30/09/2021,2109-00398,0.00,847.00,R,Adolescent And Childrens Trust,No
Http://opendatacommunities.org/id/metropolitan-district-council/leeds,Leeds City Council,30/09/2021,Communities and Environment,Benefits Welfare and Poverty,Supplies and Services,Grant Related Expenditure,290,27/09/2021,2109-00399,0.00,500.00,R,REDACTED PERSONAL DATA,No
Http://opendatacommunities.org/id/metropolitan-district-council/leeds,Leeds City Council,30/09/2021,Adults and Health,Services For Adults Under 65 Mental/Dis,Agency Payments,Home Care,568,01/09/2021,2109-00400,0.00,165.00,R,Adopt Healthcare,No
Http://opendatacommunities.org/id/metropolitan-district-council/leeds,Leeds City Council,30/09/2021,Adults and Health,Other Adult Services,Agency Payments,Nursing Care Dementia,574,02/09/2021,2109-00401,0.00,64.66,R,Adopt Healthcare,No
Http://opendatacommunities.org/id/metropolitan-district-council/leeds,Leeds City Council,30/09/2021,Adults and Health,Services For Adults Under 65 Mental/Dis,Agency Payments,Home Care,568,08/09/2021,2109-00402,0.00,165.00,R,Adopt Healthcare,No
Http://opendatacommunities.org/id/metropolitan-district-council/leeds,Leeds City Council,30/09/2021,Adults and Health,Services For Adults Under 65 Mental/Dis,Agency Payments,Home Care,568,15/09/2021,2109-00403,0.00,181.50,R,Adopt Healthcare,No
Http://opendatacommunities.org/id/metropolitan-district-council/leeds,Leeds City Council,30/09/2021,Adults and Health,Services For Adults Under 65 Mental/Dis,Agency Payments,Home Care,568,22/09/2021,2109-00404,0.00,198.00,R,Adopt Healthcare,No
Http://opendatacommunities.org/id/metropolitan-district-council/leeds,Leeds City Council,30/09/2021,Adults and Health,Services For Adults Under 65 Mental/Dis,Agency Payments,Home Care,568,30/09/2021,2109-00405,0.00,165.00,R,Adopt Healthcare,No
Http://opendatacommunities.org/id/metropolitan-district-council/leeds,Leeds City Council,30/09/2021,Communities and Environment,Benefits Welfare and Poverty,Supplies and Services,Grant Related Expenditure,298,16/09/2021,2109-00406,0.00,500.00,R,REDACTED PERSONAL DATA,No
Http://opendatacommunities.org/id/metropolitan-district-council/leeds,Leeds City Council,30/09/2021,Communities and Environment,Benefits Welfare and Poverty,Supplies and Services,Grant Related Expenditure,298,17/09/2021,2109-00407,0.00,500.00,R,REDACTED PERSONAL DATA,No
Http://opendatacommunities.org/id/metropolitan-district-council/leeds,Leeds City Council,30/09/2021,Children and Families,Social Care,Agency Payments,Placement Support,550,03/09/2021,2109-00408,0.00,21.15,R,REDACTED PERSONAL DATA,No
Http://opendatacommunities.org/id/metropolitan-district-council/leeds,Leeds City Council,30/09/2021,Children and Families,Social Care,Agency Payments,Placement Support,550,10/09/2021,2109-00409,0.00,21.15,R,REDACTED PERSONAL DATA,No
Http://opendatacommunities.org/id/metropolitan-district-council/leeds,Leeds City Council,30/09/2021,Children and Families,Social Care,Agency Payments,Placement Support,550,17/09/2021,2109-00410,0.00,21.15,R,REDACTED PERSONAL DATA,No
Http://opendatacommunities.org/id/metropolitan-district-council/leeds,Leeds City Council,30/09/2021,Children and Families,Social Care,Agency Payments,Placement Support,550,24/09/2021,2109-00411,0.00,21.15,R,REDACTED PERSONAL DATA,No
Http://opendatacommunities.org/id/metropolitan-district-council/leeds,Leeds City Council as Accountable Body,30/09/2021,Social Services Pooled Budgets,Jcs For People With Learning Disabilitie,Agency Payments,Residential,580,17/09/2021,2109-00412,0.00,2609.36,R,ADRIAN HOUSE,No
Http://opendatacommunities.org/id/metropolitan-district-council/leeds,Leeds City Council,30/09/2021,Communities and Environment,Benefits Welfare and Poverty,Supplies and Services,Grant Related Expenditure,298,03/09/2021,2109-00413,0.00,500.00,R,REDACTED PERSONAL DATA,No
Http://opendatacommunities.org/id/metropolitan-district-council/leeds,Leeds City Council,30/09/2021,City Development,Recreation,Supplies and Services,Other Hired And Contracted Services,265,03/09/2021,2109-00414,0.00,140.00,R,ADVANCE STOCKS LTD,No
Http://opendatacommunities.org/id/metropolitan-district-council/leeds,Leeds City Council,30/09/2021,Children and Families,Social Care,Internal Recharges,Legal Disbursements,411,02/09/2021,2109-00415,0.00,414.80,R,ADVANCED CHILD CARE ASSESSMENTS LTD,No
Http://opendatacommunities.org/id/metropolitan-district-council/leeds,Leeds City Council,30/09/2021,Children and Families,Social Care,Internal Recharges,Legal Disbursements,411,10/09/2021,2109-00416,0.00,587.20,R,ADVANCED CHILD CARE ASSESSMENTS LTD,No
Http://opendatacommunities.org/id/metropolitan-district-council/leeds,Leeds City Council,30/09/2021,Children and Families,Social Care,Internal Recharges,Legal Disbursements,411,17/09/2021,2109-00417,0.00,587.20,R,ADVANCED CHILD CARE ASSESSMENTS LTD,No
Http://opendatacommunities.org/id/metropolitan-district-council/leeds,Leeds City Council as Accountable Body,30/09/2021,Social Services Pooled Budgets,Jcs For People With Learning Disabilitie,Agency Payments,Home Care,568,01/09/2021,2109-00418,0.00,4225.90,R,Advantage Healthcare Ltd,No
Http://opendatacommunities.org/id/metropolitan-district-council/leeds,Leeds City Council as Accountable Body,30/09/2021,Social Services Pooled Budgets,Jcs For People With Learning Disabilitie,Agency Payments,Home Care,568,03/09/2021,2109-00419,0.00,1954.40,R,Advantage Healthcare Ltd,No
Http://opendatacommunities.org/id/metropolitan-district-council/leeds,Leeds City Council,30/09/2021,Adults and Health,Other Adult Services,Agency Payments,Nursing Home,570,06/09/2021,2109-00420,0.00,1146.32,R,Advantage Healthcare Ltd,No
Http://opendatacommunities.org/id/metropolitan-district-council/leeds,Leeds City Council,30/09/2021,Adults and Health,Other Adult Services,Agency Payments,Home Care,568,06/09/2021,2109-00421,0.00,398.13,R,Advantage Healthcare Ltd,No
Http://opendatacommunities.org/id/metropolitan-district-council/leeds,Leeds City Council,30/09/2021,Adults and Health,Other Adult Services,Agency Payments,Nursing Care Dementia,574,06/09/2021,2109-00422,0.00,1499.83,R,Advantage Healthcare Ltd,No
Http://opendatacommunities.org/id/metropolitan-district-council/leeds,Leeds City Council as Accountable Body,30/09/2021,Social Services Pooled Budgets,Jcs For People With Learning Disabilitie,Agency Payments,Home Care,568,09/09/2021,2109-00423,0.00,2501.25,R,Advantage Healthcare Ltd,No
Http://opendatacommunities.org/id/metropolitan-district-council/leeds,Leeds City Council as Accountable Body,30/09/2021,Social Services Pooled Budgets,Jcs For People With Learning Disabilitie,Agency Payments,Home Care,568,09/09/2021,2109-00424,0.00,2803.13,R,Advantage Healthcare Ltd,No
Http://opendatacommunities.org/id/metropolitan-district-council/leeds,Leeds City Council as Accountable Body,30/09/2021,Social Services Pooled Budgets,Jcs For People With Learning Disabilitie,Agency Payments,Home Care,568,10/09/2021,2109-00425,0.00,1294.30,R,Advantage Healthcare Ltd,No
Http://opendatacommunities.org/id/metropolitan-district-council/leeds,Leeds City Council as Accountable Body,30/09/2021,Social Services Pooled Budgets,Jcs For People With Learning Disabilitie,Agency Payments,Home Care,568,10/09/2021,2109-00426,0.00,1638.76,R,Advantage Healthcare Ltd,No
Http://opendatacommunities.org/id/metropolitan-district-council/leeds,Leeds City Council as Accountable Body,30/09/2021,Social Services Pooled Budgets,Jcs For People With Learning Disabilitie,Agency Payments,Home Care,568,17/09/2021,2109-00427,0.00,1294.30,R,Advantage Healthcare Ltd,No
Http://opendatacommunities.org/id/metropolitan-district-council/leeds,Leeds City Council as Accountable Body,30/09/2021,Social Services Pooled Budgets,Jcs For People With Learning Disabilitie,Agency Payments,Home Care,568,23/09/2021,2109-00428,0.00,1649.19,R,Advantage Healthcare Ltd,No
Http://opendatacommunities.org/id/metropolitan-district-council/leeds,Leeds City Council as Accountable Body,30/09/2021,Social Services Pooled Budgets,Jcs For People With Learning Disabilitie,Agency Payments,Home Care,568,24/09/2021,2109-00429,0.00,4267.34,R,Advantage Healthcare Ltd,No
Http://opendatacommunities.org/id/metropolitan-district-council/leeds,Leeds City Council as Accountable Body,30/09/2021,Social Services Pooled Budgets,Jcs For People With Learning Disabilitie,Agency Payments,Home Care,568,24/09/2021,2109-00430,0.00,2415.00,R,Advantage Healthcare Ltd,No
Http://opendatacommunities.org/id/metropolitan-district-council/leeds,Leeds City Council,30/09/2021,Children and Families,Social Care,Supplies and Services,Operational Furniture And Equipment,203,12/08/2021,2109-00431,0.00,1296.70,R,Adventure Climb Rescue,Yes
Http://opendatacommunities.org/id/metropolitan-district-council/leeds,Leeds City Council,30/09/2021,Children and Families,Social Care,Supplies and Services,Operational Materials,205,16/08/2021,2109-00432,0.00,160.72,R,Adventure Climb Rescue,Yes
Http://opendatacommunities.org/id/metropolitan-district-council/leeds,Leeds City Council as Accountable Body,30/09/2021,Social Services Pooled Budgets,Jcs For People With Learning Disabilitie,Agency Payments,Residential,580,15/09/2021,2109-00433,0.00,17105.76,R,ADVITAM LTD,No
Http://opendatacommunities.org/id/metropolitan-district-council/leeds,Leeds City Council,30/09/2021,Adults and Health,Services For Older People - 65 And Over,Agency Payments,Payments To Voluntary Organisations,561,23/09/2021,2109-00434,0.00,103916.67,R,Advonet,No
Http://opendatacommunities.org/id/metropolitan-district-council/leeds,Leeds City Council,30/09/2021,City Development,Highways,Supplies and Services,Other Hired And Contracted Services,265,01/09/2021,2109-00435,0.00,1790.50,R,Aecom Limited,No
Http://opendatacommunities.org/id/metropolitan-district-council/leeds,Leeds City Council,30/09/2021,City Development,Highways,Capital,OTHER COSTS,7,06/09/2021,2109-00436,0.00,109991.91,C,Aecom Limited,No
Http://opendatacommunities.org/id/metropolitan-district-council/leeds,Leeds City Council,30/09/2021,City Development,Highways,Capital,OTHER COSTS,7,06/09/2021,2109-00437,0.00,159710.89,C,Aecom Limited,No
Http://opendatacommunities.org/id/metropolitan-district-council/leeds,Leeds City Council,30/09/2021,City Development,Highways,Supplies and Services,Other Hired And Contracted Services,265,10/09/2021,2109-00438,0.00,2801.33,R,Aecom Limited,No
Http://opendatacommunities.org/id/metropolitan-district-council/leeds,Leeds City Council,30/09/2021,City Development,Highways,Capital,OTHER COSTS,7,17/09/2021,2109-00439,0.00,3150.00,C,Aecom Limited,No
Http://opendatacommunities.org/id/metropolitan-district-council/leeds,Leeds City Council,30/09/2021,City Development,Highways,Capital,OTHER COSTS,7,21/09/2021,2109-00440,0.00,27507.00,C,Aecom Limited,No
Http://opendatacommunities.org/id/metropolitan-district-council/leeds,Leeds City Council,30/09/2021,City Development,Highways,Capital,OTHER COSTS,7,23/09/2021,2109-00441,0.00,52687.89,C,Aecom Limited,No
Http://opendatacommunities.org/id/metropolitan-district-council/leeds,Leeds City Council,30/09/2021,City Development,Asset Management,Capital,OTHER COSTS,7,24/09/2021,2109-00442,0.00,13745.88,C,Aecom Limited,No
Http://opendatacommunities.org/id/metropolitan-district-council/leeds,Leeds City Council,30/09/2021,City Development,Highways,Capital,OTHER COSTS,7,28/09/2021,2109-00443,0.00,57100.00,C,Aecom Limited,No
Http://opendatacommunities.org/id/metropolitan-district-council/leeds,Leeds City Council,30/09/2021,City Development,Highways,Capital,OTHER COSTS,7,30/09/2021,2109-00444,0.00,1571.46,C,Aecom Limited,No
Http://opendatacommunities.org/id/metropolitan-district-council/leeds,Leeds City Council,30/09/2021,Adults and Health,Services For Adults Under 65 Mental/Dis,Agency Payments,Home Care,568,01/09/2021,2109-00445,0.00,1273.00,R,Aegis Care Solutions Ltd,No
Http://opendatacommunities.org/id/metropolitan-district-council/leeds,Leeds City Council,30/09/2021,Adults and Health,Services For Adults Under 65 Mental/Dis,Agency Payments,Home Care,568,01/09/2021,2109-00446,0.00,3958.20,R,Aegis Care Solutions Ltd,No
Http://opendatacommunities.org/id/metropolitan-district-council/leeds,Leeds City Council,30/09/2021,Adults and Health,Services For Adults Under 65 Mental/Dis,Agency Payments,Home Care,568,01/09/2021,2109-00447,0.00,2006.01,R,Aegis Care Solutions Ltd,No
Http://opendatacommunities.org/id/metropolitan-district-council/leeds,Leeds City Council,30/09/2021,Adults and Health,Services For Adults Under 65 Mental/Dis,Agency Payments,Home Care,568,01/09/2021,2109-00448,0.00,1309.50,R,Aegis Care Solutions Ltd,No
Http://opendatacommunities.org/id/metropolitan-district-council/leeds,Leeds City Council,30/09/2021,Adults and Health,Services For Adults Under 65 Mental/Dis,Agency Payments,Home Care,568,01/09/2021,2109-00449,0.00,1192.60,R,Aegis Care Solutions Ltd,No
Http://opendatacommunities.org/id/metropolitan-district-council/leeds,Leeds City Council,30/09/2021,Adults and Health,Services For Adults Under 65 Mental/Dis,Agency Payments,Home Care,568,01/09/2021,2109-00450,0.00,1518.60,R,Aegis Care Solutions Ltd,No
Http://opendatacommunities.org/id/metropolitan-district-council/leeds,Leeds City Council,30/09/2021,Adults and Health,Services For Adults Under 65 Mental/Dis,Agency Payments,Home Care,568,01/09/2021,2109-00451,0.00,356.00,R,Aegis Care Solutions Ltd,No
Http://opendatacommunities.org/id/metropolitan-district-council/leeds,Leeds City Council,30/09/2021,Adults and Health,Services For Adults Under 65 Mental/Dis,Agency Payments,Home Care,568,01/09/2021,2109-00452,0.00,1139.60,R,Aegis Care Solutions Ltd,No
Http://opendatacommunities.org/id/metropolitan-district-council/leeds,Leeds City Council,30/09/2021,Adults and Health,Services For Adults Under 65 Mental/Dis,Agency Payments,Home Care,568,01/09/2021,2109-00453,0.00,320.40,R,Aegis Care Solutions Ltd,No
Http://opendatacommunities.org/id/metropolitan-district-council/leeds,Leeds City Council,30/09/2021,Adults and Health,Services For Older People - 65 And Over,Agency Payments,Home Care,568,02/09/2021,2109-00454,0.00,24773.90,R,Aegis Care Solutions Ltd,No
Http://opendatacommunities.org/id/metropolitan-district-council/leeds,Leeds City Council,30/09/2021,Adults and Health,Services For Older People - 65 And Over,Agency Payments,HCAIT Other,577,02/09/2021,2109-00455,0.00,311.04,R,Aegis Care Solutions Ltd,No
Http://opendatacommunities.org/id/metropolitan-district-council/leeds,Leeds City Council,30/09/2021,Adults and Health,Services For Older People Under 65 P/Dis,Agency Payments,Home Care,568,02/09/2021,2109-00456,0.00,9006.42,R,Aegis Care Solutions Ltd,No
Http://opendatacommunities.org/id/metropolitan-district-council/leeds,Leeds City Council,30/09/2021,Adults and Health,Services For Older People Under 65 P/Dis,Agency Payments,HCAIT Community Support,575,02/09/2021,2109-00457,0.00,29.16,R,Aegis Care Solutions Ltd,No
Http://opendatacommunities.org/id/metropolitan-district-council/leeds,Leeds City Council as Accountable Body,30/09/2021,Social Services Pooled Budgets,Jcs For People With Learning Disabilitie,Agency Payments,Home Care,568,02/09/2021,2109-00458,0.00,1977.92,R,Aegis Care Solutions Ltd,No
Http://opendatacommunities.org/id/metropolitan-district-council/leeds,Leeds City Council,30/09/2021,Adults and Health,Services For Older People - 65 And Over,Agency Payments,Home Care,568,15/09/2021,2109-00459,0.00,23177.55,R,Aegis Care Solutions Ltd,No
Http://opendatacommunities.org/id/metropolitan-district-council/leeds,Leeds City Council,30/09/2021,Adults and Health,Services For Older People - 65 And Over,Agency Payments,HCAIT Other,577,15/09/2021,2109-00460,0.00,233.28,R,Aegis Care Solutions Ltd,No
Http://opendatacommunities.org/id/metropolitan-district-council/leeds,Leeds City Council,30/09/2021,Adults and Health,Services For Older People Under 65 P/Dis,Agency Payments,Home Care,568,15/09/2021,2109-00461,0.00,7369.70,R,Aegis Care Solutions Ltd,No
Http://opendatacommunities.org/id/metropolitan-district-council/leeds,Leeds City Council as Accountable Body,30/09/2021,Social Services Pooled Budgets,Jcs For People With Learning Disabilitie,Agency Payments,Home Care,568,15/09/2021,2109-00462,0.00,1977.92,R,Aegis Care Solutions Ltd,No
Http://opendatacommunities.org/id/metropolitan-district-council/leeds,Leeds City Council,30/09/2021,City Development,Libraries Arts & Heritage,Supplies and Services,Advertising,211,02/09/2021,2109-00463,0.00,650.00,R,Aesthetica Magazine Ltd,No
Http://opendatacommunities.org/id/metropolitan-district-council/leeds,Leeds City Council as Accountable Body,30/09/2021,Social Services Pooled Budgets,Jcs For People With Learning Disabilitie,Agency Payments,Day Centre,564,03/09/2021,2109-00464,0.00,1080.00,R,Affinity Trust,No
Http://opendatacommunities.org/id/metropolitan-district-council/leeds,Leeds City Council as Accountable Body,30/09/2021,Social Services Pooled Budgets,Jcs For People With Learning Disabilitie,Agency Payments,Day Centre,564,03/09/2021,2109-00465,0.00,720.00,R,Affinity Trust,No
Http://opendatacommunities.org/id/metropolitan-district-council/leeds,Leeds City Council as Accountable Body,30/09/2021,Social Services Pooled Budgets,Jcs For People With Learning Disabilitie,Agency Payments,Day Centre,564,03/09/2021,2109-00466,0.00,2011.20,R,Affinity Trust,No
Http://opendatacommunities.org/id/metropolitan-district-council/leeds,Leeds City Council as Accountable Body,30/09/2021,Social Services Pooled Budgets,Jcs For People With Learning Disabilitie,Agency Payments,Day Centre,564,10/09/2021,2109-00467,0.00,15266.88,R,Affinity Trust,No
Http://opendatacommunities.org/id/metropolitan-district-council/leeds,Leeds City Council,30/09/2021,Adults and Health,Services For Older People - 65 And Over,Agency Payments,Home Care,568,10/09/2021,2109-00468,0.00,535.68,R,Affinity Trust,No
Http://opendatacommunities.org/id/metropolitan-district-council/leeds,Leeds City Council as Accountable Body,30/09/2021,Social Services Pooled Budgets,Jcs For People With Learning Disabilitie,Agency Payments,Day Centre,564,15/09/2021,2109-00469,0.00,31708.22,R,Affinity Trust,No
Http://opendatacommunities.org/id/metropolitan-district-council/leeds,Leeds City Council,30/09/2021,Adults and Health,Services For Older People - 65 And Over,Agency Payments,Home Care,568,22/09/2021,2109-00470,0.00,391.51,R,Affinity Trust,No
Http://opendatacommunities.org/id/metropolitan-district-council/leeds,Leeds City Council as Accountable Body,30/09/2021,Social Services Pooled Budgets,Jcs For People With Learning Disabilitie,Agency Payments,Day Centre,564,24/09/2021,2109-00471,0.00,31708.22,R,Affinity Trust,No
Http://opendatacommunities.org/id/metropolitan-district-council/leeds,Leeds City Council,30/09/2021,Adults and Health,Services For Older People - 65 And Over,Agency Payments,Home Care,568,27/09/2021,2109-00472,0.00,535.68,R,Affinity Trust,No
Http://opendatacommunities.org/id/metropolitan-district-council/leeds,Leeds City Council,30/09/2021,Adults and Health,Assessment And Care Management,Agency Payments,Home Care,568,28/09/2021,2109-00473,0.00,415.48,R,Affinity Trust,No
Http://opendatacommunities.org/id/metropolitan-district-council/leeds,Leeds City Council,30/09/2021,Adults and Health,Assessment And Care Management,Agency Payments,Home Care,568,28/09/2021,2109-00474,0.00,669.60,R,Affinity Trust,No
Http://opendatacommunities.org/id/metropolitan-district-council/leeds,Leeds City Council,30/09/2021,Adults and Health,Services For Adults Under 65 Mental/Dis,Agency Payments,HCAIT Community Support,575,29/09/2021,2109-00475,0.00,334.80,R,Affinity Trust,No
Http://opendatacommunities.org/id/metropolitan-district-council/leeds,Leeds City Council,30/09/2021,Adults and Health,Services For Adults Under 65 Mental/Dis,Agency Payments,HCAIT Community Support,575,29/09/2021,2109-00476,0.00,334.80,R,Affinity Trust,No
Http://opendatacommunities.org/id/metropolitan-district-council/leeds,Leeds City Council as Accountable Body,30/09/2021,Social Services Pooled Budgets,Jcs For People With Learning Disabilitie,Agency Payments,Sheltered Accommodation,569,15/09/2021,2109-00477,0.00,133012.48,R,Affinity Trust North Divisional Office,No
Http://opendatacommunities.org/id/metropolitan-district-council/leeds,Leeds City Council,30/09/2021,Communities and Environment,Parks and Countryside,Transport,Hire Of Movable Plant & Machinery,315,20/08/2021,2109-00478,0.00,950.00,R,Afi Uplift,Yes
Http://opendatacommunities.org/id/metropolitan-district-council/leeds,Leeds City Council,30/09/2021,Communities and Environment,Parks and Countryside,Transport,Hire Of Movable Plant & Machinery,315,20/08/2021,2109-00479,0.00,950.00,R,Afi Uplift,Yes
Http://opendatacommunities.org/id/metropolitan-district-council/leeds,Leeds City Council,30/09/2021,Communities and Environment,Parks and Countryside,Transport,Hire Of Movable Plant & Machinery,315,20/08/2021,2109-00480,0.00,950.00,R,Afi Uplift,Yes
Http://opendatacommunities.org/id/metropolitan-district-council/leeds,Leeds City Council,30/09/2021,Communities and Environment,Parks and Countryside,Transport,Hire Of Movable Plant & Machinery,315,20/08/2021,2109-00481,0.00,950.00,R,Afi Uplift,Yes
Http://opendatacommunities.org/id/metropolitan-district-council/leeds,Leeds City Council,30/09/2021,Communities and Environment,Parks and Countryside,Transport,Hire Of Movable Plant & Machinery,315,20/08/2021,2109-00482,0.00,950.00,R,Afi Uplift,Yes
Http://opendatacommunities.org/id/metropolitan-district-council/leeds,Leeds City Council,30/09/2021,Communities and Environment,Benefits Welfare and Poverty,Supplies and Services,Grant Related Expenditure,298,03/09/2021,2109-00483,0.00,500.00,R,REDACTED PERSONAL DATA,No
Http://opendatacommunities.org/id/metropolitan-district-council/leeds,Leeds City Council,30/09/2021,Resources and Housing,Commercial Services,Supplies and Services,Compensation Claims,200,06/09/2021,2109-00484,0.00,644.80,R,REDACTED PERSONAL DATA,No
Http://opendatacommunities.org/id/metropolitan-district-council/leeds,Leeds City Council,30/09/2021,Communities and Environment,Benefits Welfare and Poverty,Supplies and Services,Grant Related Expenditure,298,15/09/2021,2109-00485,0.00,500.00,R,REDACTED PERSONAL DATA,No
Http://opendatacommunities.org/id/metropolitan-district-council/leeds,Leeds City Council,30/09/2021,Communities and Environment,Benefits Welfare and Poverty,Supplies and Services,Grant Related Expenditure,290,22/09/2021,2109-00486,0.00,500.00,R,REDACTED PERSONAL DATA,No
Http://opendatacommunities.org/id/metropolitan-district-council/leeds,Leeds City Council,30/09/2021,Communities and Environment,Communities,Supplies and Services,Other Hired And Contracted Services,265,21/09/2021,2109-00487,0.00,1235.00,R,REDACTED PERSONAL DATA,No
Http://opendatacommunities.org/id/metropolitan-district-council/leeds,Leeds City Council,30/09/2021,Communities and Environment,Benefits Welfare and Poverty,Supplies and Services,Grant Related Expenditure,290,09/09/2021,2109-00488,0.00,500.00,R,REDACTED PERSONAL DATA,No
Http://opendatacommunities.org/id/metropolitan-district-council/leeds,Leeds City Council,30/09/2021,Communities and Environment,Benefits Welfare and Poverty,Supplies and Services,Grant Related Expenditure,290,14/09/2021,2109-00489,0.00,500.00,R,REDACTED PERSONAL DATA,No
Http://opendatacommunities.org/id/metropolitan-district-council/leeds,Leeds City Council,30/09/2021,Communities and Environment,Benefits Welfare and Poverty,Supplies and Services,Grant Related Expenditure,290,01/09/2021,2109-00490,0.00,500.00,R,REDACTED PERSONAL DATA,No
Http://opendatacommunities.org/id/metropolitan-district-council/leeds,Leeds City Council,30/09/2021,Communities and Environment,Benefits Welfare and Poverty,Supplies and Services,Grant Related Expenditure,298,24/09/2021,2109-00491,0.00,500.00,R,REDACTED PERSONAL DATA,No
Http://opendatacommunities.org/id/metropolitan-district-council/leeds,Leeds City Council,30/09/2021,Communities and Environment,Customer Access,Supplies and Services,Bought In Professional Services,277,15/09/2021,2109-00492,0.00,9.00,R,Ahmed Moustafa Moustafa Mousa,No
Http://opendatacommunities.org/id/metropolitan-district-council/leeds,Leeds City Council,30/09/2021,Communities and Environment,Customer Access,Supplies and Services,Bought In Professional Services,277,23/09/2021,2109-00493,0.00,22.20,R,Ahmed Moustafa Moustafa Mousa,No
Http://opendatacommunities.org/id/metropolitan-district-council/leeds,Leeds City Council,30/09/2021,Communities and Environment,Benefits Welfare and Poverty,Supplies and Services,Grant Related Expenditure,290,21/09/2021,2109-00494,0.00,500.00,R,REDACTED PERSONAL DATA,No
Http://opendatacommunities.org/id/metropolitan-district-council/leeds,Leeds City Council,30/09/2021,Communities and Environment,Benefits Welfare and Poverty,Supplies and Services,Grant Related Expenditure,298,02/09/2021,2109-00495,0.00,500.00,R,REDACTED PERSONAL DATA,No
Http://opendatacommunities.org/id/metropolitan-district-council/leeds,Leeds City Council,30/09/2021,Communities and Environment,Benefits Welfare and Poverty,Supplies and Services,Grant Related Expenditure,290,06/09/2021,2109-00496,0.00,500.00,R,REDACTED PERSONAL DATA,No
Http://opendatacommunities.org/id/metropolitan-district-council/leeds,Leeds City Council,30/09/2021,Communities and Environment,Benefits Welfare and Poverty,Supplies and Services,Grant Related Expenditure,290,06/09/2021,2109-00497,0.00,500.00,R,REDACTED PERSONAL DATA,No
Http://opendatacommunities.org/id/metropolitan-district-council/leeds,Leeds City Council as Accountable Body,30/09/2021,Social Services Pooled Budgets,Leeds Community Equip Store Pooled Budgt,Supplies and Services,Other Equipment,203,03/09/2021,2109-00498,0.00,210.00,R,AIDAPT BATHROOMS LTD,No
Http://opendatacommunities.org/id/metropolitan-district-council/leeds,Leeds City Council as Accountable Body,30/09/2021,Social Services Pooled Budgets,Leeds Community Equip Store Pooled Budgt,Supplies and Services,Other Equipment,203,03/09/2021,2109-00499,0.00,480.00,R,AIDAPT BATHROOMS LTD,No
Http://opendatacommunities.org/id/metropolitan-district-council/leeds,Leeds City Council as Accountable Body,30/09/2021,Social Services Pooled Budgets,Leeds Community Equip Store Pooled Budgt,Supplies and Services,Other Equipment,203,15/09/2021,2109-00500,0.00,640.00,R,AIDAPT BATHROOMS LTD,No
Http://opendatacommunities.org/id/metropolitan-district-council/leeds,Leeds City Council as Accountable Body,30/09/2021,Social Services Pooled Budgets,Leeds Community Equip Store Pooled Budgt,Supplies and Services,Other Equipment,203,17/09/2021,2109-00501,0.00,1653.00,R,AIDAPT BATHROOMS LTD,No
Http://opendatacommunities.org/id/metropolitan-district-council/leeds,Leeds City Council as Accountable Body,30/09/2021,Social Services Pooled Budgets,Leeds Community Equip Store Pooled Budgt,Supplies and Services,Other Equipment,203,21/09/2021,2109-00502,0.00,480.00,R,AIDAPT BATHROOMS LTD,No
Http://opendatacommunities.org/id/metropolitan-district-council/leeds,Leeds City Council as Accountable Body,30/09/2021,Social Services Pooled Budgets,Leeds Community Equip Store Pooled Budgt,Supplies and Services,Other Equipment,203,21/09/2021,2109-00503,0.00,1854.00,R,AIDAPT BATHROOMS LTD,No
Http://opendatacommunities.org/id/metropolitan-district-council/leeds,Leeds City Council as Accountable Body,30/09/2021,Social Services Pooled Budgets,Leeds Community Equip Store Pooled Budgt,Supplies and Services,Other Equipment,203,21/09/2021,2109-00504,0.00,1520.00,R,AIDAPT BATHROOMS LTD,No
Http://opendatacommunities.org/id/metropolitan-district-council/leeds,Leeds City Council as Accountable Body,30/09/2021,Social Services Pooled Budgets,Leeds Community Equip Store Pooled Budgt,Supplies and Services,Other Equipment,203,30/09/2021,2109-00505,0.00,387.20,R,AIDAPT BATHROOMS LTD,No
Http://opendatacommunities.org/id/metropolitan-district-council/leeds,Leeds City Council as Accountable Body,30/09/2021,Social Services Pooled Budgets,Leeds Community Equip Store Pooled Budgt,Supplies and Services,Other Equipment,203,30/09/2021,2109-00506,0.00,126.00,R,AIDAPT BATHROOMS LTD,No
Http://opendatacommunities.org/id/metropolitan-district-council/leeds,Leeds City Council,30/09/2021,Communities and Environment,Benefits Welfare and Poverty,Supplies and Services,Grant Related Expenditure,298,07/09/2021,2109-00507,0.00,500.00,R,REDACTED PERSONAL DATA,No
Http://opendatacommunities.org/id/metropolitan-district-council/leeds,Leeds City Council,30/09/2021,Communities and Environment,Benefits Welfare and Poverty,Supplies and Services,Grant Related Expenditure,298,20/09/2021,2109-00508,0.00,500.00,R,REDACTED PERSONAL DATA,No
Http://opendatacommunities.org/id/metropolitan-district-council/leeds,Leeds City Council,30/09/2021,City Development,Libraries Arts & Heritage,Employees,Professional Subscriptions,89,30/09/2021,2109-00509,0.00,2000.00,R,AIMediaData Limited,No
Http://opendatacommunities.org/id/metropolitan-district-council/leeds,Leeds City Council,30/09/2021,Communities and Environment,Benefits Welfare and Poverty,Supplies and Services,Grant Related Expenditure,298,01/09/2021,2109-00510,0.00,500.00,R,REDACTED PERSONAL DATA,No
Http://opendatacommunities.org/id/metropolitan-district-council/leeds,Leeds City Council,30/09/2021,Communities and Environment,Benefits Welfare and Poverty,Supplies and Services,Grant Related Expenditure,298,29/09/2021,2109-00511,0.00,500.00,R,REDACTED PERSONAL DATA,No
Http://opendatacommunities.org/id/metropolitan-district-council/leeds,Leeds City Council,30/09/2021,Communities and Environment,Environmental Health,Supplies and Services,Other Hired And Contracted Services,265,30/09/2021,2109-00512,0.00,11.25,R,AIR LIQUIDE UK,No
Http://opendatacommunities.org/id/metropolitan-district-council/leeds,Leeds City Council,30/09/2021,Communities and Environment,Environmental Health,Supplies and Services,Other Hired And Contracted Services,265,30/09/2021,2109-00513,0.00,17.38,R,AIR LIQUIDE UK,No
Http://opendatacommunities.org/id/metropolitan-district-council/leeds,Leeds City Council,30/09/2021,Children and Families,Social Care,Supplies and Services,Subsistence,256,03/08/2021,2109-00514,0.00,160.57,R,Airbnb * Hmezw4a3pe,Yes
Http://opendatacommunities.org/id/metropolitan-district-council/leeds,Leeds City Council,30/09/2021,Communities and Environment,Parks and Countryside,Supplies and Services,Other Hired And Contracted Services,265,17/09/2021,2109-00515,0.00,617.00,R,Aire Valley Tree Services Ltd,No
Http://opendatacommunities.org/id/metropolitan-district-council/leeds,Leeds City Council,30/09/2021,Communities and Environment,Parks and Countryside,Supplies and Services,Other Hired And Contracted Services,265,17/09/2021,2109-00516,0.00,215.00,R,Aire Valley Tree Services Ltd,No
Http://opendatacommunities.org/id/metropolitan-district-council/leeds,Leeds City Council,30/09/2021,Adults and Health,Services For Older People - 65 And Over,Agency Payments,Residential Care Dementia,571,15/09/2021,2109-00517,0.00,38571.68,R,Aire View Residential Home,No
Http://opendatacommunities.org/id/metropolitan-district-council/leeds,Leeds City Council,30/09/2021,Adults and Health,Services For Older People - 65 And Over,Agency Payments,Residential,580,15/09/2021,2109-00518,0.00,13797.95,R,Aire View Residential Home,No
Http://opendatacommunities.org/id/metropolitan-district-council/leeds,Leeds City Council,30/09/2021,Adults and Health,Services For Older People - 65 And Over,Agency Payments,Residential Care Dementia,571,15/09/2021,2109-00519,0.00,2234.86,R,Airedale Care Home,No
Http://opendatacommunities.org/id/metropolitan-district-council/leeds,Leeds City Council,30/09/2021,Adults and Health,Services For Older People - 65 And Over,Agency Payments,Residential,580,15/09/2021,2109-00520,0.00,22270.11,R,Airedale Care Home,No
Http://opendatacommunities.org/id/metropolitan-district-council/leeds,Leeds City Council,30/09/2021,City Development,Asset Management Services,Premises,Repairs & Adapts - Buildings,191,24/09/2021,2109-00521,0.00,26532.00,R,AIREDALE CATERING EQUIPMENT LTD,No
Http://opendatacommunities.org/id/metropolitan-district-council/leeds,Leeds City Council,30/09/2021,City Development,Employment & Skills,Agency Payments,Contributions To Partnerships,544,27/09/2021,2109-00522,0.00,4689.80,R,Airnow Cybersecurity Limited,No
Http://opendatacommunities.org/id/metropolitan-district-council/leeds,Leeds City Council,30/09/2021,Adults and Health,Services For Adults Under 65 Mental/Dis,Transport,Public Transport Expenses,310,02/08/2021,2109-00523,0.00,14.15,R,Airpay 38169359-Amber Car,Yes
Http://opendatacommunities.org/id/metropolitan-district-council/leeds,Leeds City Council,30/09/2021,Adults and Health,Assessment And Care Management,Transport,Public Transport Expenses,310,27/08/2021,2109-00524,0.00,3.95,R,Airpay 38537863-Amber Car,Yes
Http://opendatacommunities.org/id/metropolitan-district-council/leeds,Leeds City Council,30/09/2021,Communities and Environment,Benefits Welfare and Poverty,Supplies and Services,Grant Related Expenditure,290,23/09/2021,2109-00525,0.00,500.00,R,REDACTED PERSONAL DATA,No
Http://opendatacommunities.org/id/metropolitan-district-council/leeds,Leeds City Council,30/09/2021,Adults and Health,Services For Adults Under 65 Mental/Dis,Agency Payments,Fees - Level 4,520,01/09/2021,2109-00526,0.00,175.00,R,AIT Mitra Limited,No
Http://opendatacommunities.org/id/metropolitan-district-council/leeds,Leeds City Council,30/09/2021,Adults and Health,Services For Adults Under 65 Mental/Dis,Agency Payments,Fees - Level 4,520,01/09/2021,2109-00527,0.00,175.00,R,AIT Mitra Limited,No
Http://opendatacommunities.org/id/metropolitan-district-council/leeds,Leeds City Council,30/09/2021,Adults and Health,Services For Adults Under 65 Mental/Dis,Agency Payments,Fees - Level 4,520,01/09/2021,2109-00528,0.00,175.00,R,AIT Mitra Limited,No
Http://opendatacommunities.org/id/metropolitan-district-council/leeds,Leeds City Council,30/09/2021,Adults and Health,Services For Adults Under 65 Mental/Dis,Agency Payments,Fees - Level 4,520,01/09/2021,2109-00529,0.00,175.00,R,AIT Mitra Limited,No
Http://opendatacommunities.org/id/metropolitan-district-council/leeds,Leeds City Council,30/09/2021,Adults and Health,Services For Adults Under 65 Mental/Dis,Agency Payments,Fees - Level 4,520,01/09/2021,2109-00530,0.00,175.00,R,AIT Mitra Limited,No
Http://opendatacommunities.org/id/metropolitan-district-council/leeds,Leeds City Council,30/09/2021,Adults and Health,Services For Adults Under 65 Mental/Dis,Agency Payments,Fees - Level 4,520,01/09/2021,2109-00531,0.00,175.00,R,AIT Mitra Limited,No
Http://opendatacommunities.org/id/metropolitan-district-council/leeds,Leeds City Council,30/09/2021,Adults and Health,Services For Adults Under 65 Mental/Dis,Agency Payments,Fees - Level 4,520,01/09/2021,2109-00532,0.00,175.00,R,AIT Mitra Limited,No
Http://opendatacommunities.org/id/metropolitan-district-council/leeds,Leeds City Council,30/09/2021,Adults and Health,Services For Adults Under 65 Mental/Dis,Agency Payments,Fees - Level 4,520,10/09/2021,2109-00533,0.00,175.00,R,AIT Mitra Limited,No
Http://opendatacommunities.org/id/metropolitan-district-council/leeds,Leeds City Council,30/09/2021,Adults and Health,Services For Adults Under 65 Mental/Dis,Agency Payments,Fees - Level 4,520,22/09/2021,2109-00534,0.00,175.00,R,AIT Mitra Limited,No
Http://opendatacommunities.org/id/metropolitan-district-council/leeds,Leeds City Council,30/09/2021,Adults and Health,Services For Adults Under 65 Mental/Dis,Agency Payments,Fees - Level 4,520,22/09/2021,2109-00535,0.00,175.00,R,AIT Mitra Limited,No
Http://opendatacommunities.org/id/metropolitan-district-council/leeds,Leeds City Council,30/09/2021,Adults and Health,Services For Adults Under 65 Mental/Dis,Agency Payments,Fees - Level 4,520,22/09/2021,2109-00536,0.00,175.00,R,AIT Mitra Limited,No
Http://opendatacommunities.org/id/metropolitan-district-council/leeds,Leeds City Council,30/09/2021,Adults and Health,Services For Adults Under 65 Mental/Dis,Agency Payments,Fees - Level 4,520,24/09/2021,2109-00537,0.00,175.00,R,AIT Mitra Limited,No
Http://opendatacommunities.org/id/metropolitan-district-council/leeds,Leeds City Council,30/09/2021,Adults and Health,Services For Adults Under 65 Mental/Dis,Agency Payments,Fees - Level 4,520,24/09/2021,2109-00538,0.00,175.00,R,AIT Mitra Limited,No
Http://opendatacommunities.org/id/metropolitan-district-council/leeds,Leeds City Council,30/09/2021,Adults and Health,Services For Adults Under 65 Mental/Dis,Agency Payments,Fees - Level 4,520,24/09/2021,2109-00539,0.00,175.00,R,AIT Mitra Limited,No
Http://opendatacommunities.org/id/metropolitan-district-council/leeds,Leeds City Council,30/09/2021,Adults and Health,Services For Adults Under 65 Mental/Dis,Agency Payments,Fees - Level 4,520,24/09/2021,2109-00540,0.00,175.00,R,AIT Mitra Limited,No
Http://opendatacommunities.org/id/metropolitan-district-council/leeds,Leeds City Council,30/09/2021,Adults and Health,Services For Adults Under 65 Mental/Dis,Agency Payments,Fees - Level 4,520,24/09/2021,2109-00541,0.00,175.00,R,AIT Mitra Limited,No
Http://opendatacommunities.org/id/metropolitan-district-council/leeds,Leeds City Council,30/09/2021,Adults and Health,Services For Adults Under 65 Mental/Dis,Agency Payments,Fees - Level 4,520,24/09/2021,2109-00542,0.00,175.00,R,AIT Mitra Limited,No
Http://opendatacommunities.org/id/metropolitan-district-council/leeds,Leeds City Council,30/09/2021,Adults and Health,Services For Adults Under 65 Mental/Dis,Agency Payments,Fees - Level 4,520,24/09/2021,2109-00543,0.00,175.00,R,AIT Mitra Limited,No
Http://opendatacommunities.org/id/metropolitan-district-council/leeds,Leeds City Council,30/09/2021,Adults and Health,Services For Adults Under 65 Mental/Dis,Agency Payments,Fees - Level 4,520,24/09/2021,2109-00544,0.00,175.00,R,AIT Mitra Limited,No
Http://opendatacommunities.org/id/metropolitan-district-council/leeds,Leeds City Council as Accountable Body,30/09/2021,Social Services Pooled Budgets,Jcs For People With Learning Disabilitie,Agency Payments,Residential,580,15/09/2021,2109-00545,0.00,6707.12,R,AITCH care homes,No
Http://opendatacommunities.org/id/metropolitan-district-council/leeds,Leeds City Council,30/09/2021,Resources and Housing,Leeds Building Services,Premises,Cleaning Maintenance & Toiletries,127,02/09/2021,2109-00546,0.00,152.00,R,AJM FIXINGS & POWER TOOLS LTD,No
Http://opendatacommunities.org/id/metropolitan-district-council/leeds,Leeds City Council,30/09/2021,Resources and Housing,Leeds Building Services,Supplies and Services,Operational Furniture And Equipment,203,02/09/2021,2109-00547,0.00,381.90,R,AJM FIXINGS & POWER TOOLS LTD,No
Http://opendatacommunities.org/id/metropolitan-district-council/leeds,Leeds City Council,30/09/2021,Resources and Housing,Leeds Building Services,Supplies and Services,STORES - CENTRAL AND OTHER DEPOTS,005,02/09/2021,2109-00548,0.00,114.90,R,AJM FIXINGS & POWER TOOLS LTD,No
Http://opendatacommunities.org/id/metropolitan-district-council/leeds,Leeds City Council,30/09/2021,Resources and Housing,Leeds Building Services,Supplies and Services,Operational Furniture And Equipment,203,17/09/2021,2109-00549,0.00,52.20,R,AJM FIXINGS & POWER TOOLS LTD,No
Http://opendatacommunities.org/id/metropolitan-district-council/leeds,Leeds City Council,30/09/2021,Resources and Housing,Leeds Building Services,Supplies and Services,STORES - CENTRAL AND OTHER DEPOTS,005,17/09/2021,2109-00550,0.00,4950.00,R,AJM FIXINGS & POWER TOOLS LTD,No
Http://opendatacommunities.org/id/metropolitan-district-council/leeds,Leeds City Council,30/09/2021,Resources and Housing,Leeds Building Services,Supplies and Services,Operational Furniture And Equipment,203,17/09/2021,2109-00551,0.00,77.49,R,AJM FIXINGS & POWER TOOLS LTD,No
Http://opendatacommunities.org/id/metropolitan-district-council/leeds,Leeds City Council,30/09/2021,Resources and Housing,Leeds Building Services,Supplies and Services,STORES - CENTRAL AND OTHER DEPOTS,005,17/09/2021,2109-00552,0.00,117.20,R,AJM FIXINGS & POWER TOOLS LTD,No
Http://opendatacommunities.org/id/metropolitan-district-council/leeds,Leeds City Council,30/09/2021,Resources and Housing,Leeds Building Services,Supplies and Services,Operational Furniture And Equipment,203,17/09/2021,2109-00553,0.00,192.74,R,AJM FIXINGS & POWER TOOLS LTD,No
Http://opendatacommunities.org/id/metropolitan-district-council/leeds,Leeds City Council,30/09/2021,Resources and Housing,Leeds Building Services,Supplies and Services,Operational Furniture And Equipment,203,17/09/2021,2109-00554,0.00,34.80,R,AJM FIXINGS & POWER TOOLS LTD,No
Http://opendatacommunities.org/id/metropolitan-district-council/leeds,Leeds City Council,30/09/2021,Resources and Housing,Leeds Building Services,Premises,Cleaning Maintenance & Toiletries,127,17/09/2021,2109-00555,0.00,237.88,R,AJM FIXINGS & POWER TOOLS LTD,No
Http://opendatacommunities.org/id/metropolitan-district-council/leeds,Leeds City Council,30/09/2021,Resources and Housing,Leeds Building Services,Supplies and Services,Operational Furniture And Equipment,203,17/09/2021,2109-00556,0.00,552.08,R,AJM FIXINGS & POWER TOOLS LTD,No
Http://opendatacommunities.org/id/metropolitan-district-council/leeds,Leeds City Council,30/09/2021,Resources and Housing,Leeds Building Services,Supplies and Services,Operational Furniture And Equipment,203,17/09/2021,2109-00557,0.00,122.60,R,AJM FIXINGS & POWER TOOLS LTD,No
Http://opendatacommunities.org/id/metropolitan-district-council/leeds,Leeds City Council,30/09/2021,Resources and Housing,Leeds Building Services,Supplies and Services,Operational Furniture And Equipment,203,17/09/2021,2109-00558,0.00,387.45,R,AJM FIXINGS & POWER TOOLS LTD,No
Http://opendatacommunities.org/id/metropolitan-district-council/leeds,Leeds City Council,30/09/2021,Resources and Housing,Leeds Building Services,Supplies and Services,STORES - CENTRAL AND OTHER DEPOTS,005,17/09/2021,2109-00559,0.00,220.80,R,AJM FIXINGS & POWER TOOLS LTD,No
Http://opendatacommunities.org/id/metropolitan-district-council/leeds,Leeds City Council,30/09/2021,Adults and Health,Social Services Support Services,Employees,Training & Development,70,16/09/2021,2109-00560,0.00,7500.00,R,Akd Solutions Ltd,No
Http://opendatacommunities.org/id/metropolitan-district-council/leeds,Leeds City Council,30/09/2021,Communities and Environment,Benefits Welfare and Poverty,Supplies and Services,Grant Related Expenditure,298,14/09/2021,2109-00561,0.00,500.00,R,REDACTED PERSONAL DATA,No
Http://opendatacommunities.org/id/metropolitan-district-council/leeds,Leeds City Council,30/09/2021,Resources and Housing,Democratic Services,Premises,Grounds Maintenance Work,111,31/07/2021,2109-00562,0.00,35.00,R,Alan Brown Flowers,Yes
Http://opendatacommunities.org/id/metropolitan-district-council/leeds,Leeds City Council,30/09/2021,Communities and Environment,Benefits Welfare and Poverty,Supplies and Services,Grant Related Expenditure,298,06/09/2021,2109-00563,0.00,500.00,R,REDACTED PERSONAL DATA,No
Http://opendatacommunities.org/id/metropolitan-district-council/leeds,Leeds City Council,30/09/2021,Communities and Environment,Benefits Welfare and Poverty,Supplies and Services,Grant Related Expenditure,298,29/09/2021,2109-00564,0.00,500.00,R,REDACTED PERSONAL DATA,No
Http://opendatacommunities.org/id/metropolitan-district-council/leeds,Leeds City Council,30/09/2021,Communities and Environment,Benefits Welfare and Poverty,Supplies and Services,Grant Related Expenditure,290,09/09/2021,2109-00565,0.00,500.00,R,REDACTED PERSONAL DATA,No
Http://opendatacommunities.org/id/metropolitan-district-council/leeds,Leeds City Council,30/09/2021,Communities and Environment,Benefits Welfare and Poverty,Supplies and Services,Grant Related Expenditure,298,07/09/2021,2109-00566,0.00,500.00,R,REDACTED PERSONAL DATA,No
Http://opendatacommunities.org/id/metropolitan-district-council/leeds,Leeds City Council,30/09/2021,Communities and Environment,Benefits Welfare and Poverty,Supplies and Services,Grant Related Expenditure,298,30/09/2021,2109-00567,0.00,500.00,R,REDACTED PERSONAL DATA,No
Http://opendatacommunities.org/id/metropolitan-district-council/leeds,Leeds City Council,30/09/2021,Communities and Environment,Communities,Supplies and Services,Subsistence,256,16/08/2021,2109-00568,0.00,60.50,R,Albaba,Yes
Http://opendatacommunities.org/id/metropolitan-district-council/leeds,Leeds City Council,30/09/2021,Children and Families,Social Care,Supplies and Services,Food & Drink,231,29/08/2021,2109-00569,0.00,3.20,R,Albert Square Stores,Yes
Http://opendatacommunities.org/id/metropolitan-district-council/leeds,Leeds City Council,30/09/2021,Communities and Environment,Communities,Supplies and Services,Computer Software & Equipment,214,20/09/2021,2109-00570,0.00,1228.33,R,Alcium Software Ltd,No
Http://opendatacommunities.org/id/metropolitan-district-council/leeds,Leeds City Council,30/09/2021,Communities and Environment,Communities,Supplies and Services,Computer Software & Equipment,214,22/09/2021,2109-00571,0.00,1228.33,R,Alcium Software Ltd,No
Http://opendatacommunities.org/id/metropolitan-district-council/leeds,Leeds City Council,30/09/2021,Children and Families,Social Care,Appropriations,Leaving Care Allowances,634,06/08/2021,2109-00572,0.00,18.92,R,Aldi,Yes
Http://opendatacommunities.org/id/metropolitan-district-council/leeds,Leeds City Council,30/09/2021,Children and Families,Social Care,Supplies and Services,Food & Drink,231,24/08/2021,2109-00573,0.00,2.98,R,Aldi,Yes
Http://opendatacommunities.org/id/metropolitan-district-council/leeds,Leeds City Council,30/09/2021,Communities and Environment,Customer Access,Supplies and Services,Grant Related Expenditure,290,21/08/2021,2109-00574,0.00,6.67,R,Aldi 40 779,Yes
Http://opendatacommunities.org/id/metropolitan-district-council/leeds,Leeds City Council,30/09/2021,Children and Families,Social Care,Premises,Cleaning Maintenance & Toiletries,127,23/08/2021,2109-00575,0.00,14.12,R,Aldi 40 779,Yes
Http://opendatacommunities.org/id/metropolitan-district-council/leeds,Leeds City Council,30/09/2021,Children and Families,Social Care,Supplies and Services,Food & Drink,231,02/08/2021,2109-00576,0.00,6.72,R,Aldi 49 779,Yes
Http://opendatacommunities.org/id/metropolitan-district-council/leeds,Leeds City Council,30/09/2021,Children and Families,Social Care,Agency Payments,Section 17,551,27/08/2021,2109-00577,0.00,16.28,R,Aldi 49 779,Yes
Http://opendatacommunities.org/id/metropolitan-district-council/leeds,Leeds City Council,30/09/2021,Communities and Environment,Parks and Countryside,Supplies and Services,Food & Drink,231,18/08/2021,2109-00578,0.00,5.97,R,Aldi 63779,Yes
Http://opendatacommunities.org/id/metropolitan-district-council/leeds,Leeds City Council,30/09/2021,Children and Families,Social Care,Agency Payments,Section 17,551,13/08/2021,2109-00579,0.00,33.85,R,Aldi 71 779,Yes
Http://opendatacommunities.org/id/metropolitan-district-council/leeds,Leeds City Council,30/09/2021,Resources and Housing,Commercial Services,Supplies and Services,Food & Drink,231,16/08/2021,2109-00580,0.00,7.74,R,Aldi 779-126,Yes
Http://opendatacommunities.org/id/metropolitan-district-council/leeds,Leeds City Council,30/09/2021,Children and Families,Social Care,Supplies and Services,Food & Drink,231,05/08/2021,2109-00581,0.00,10.37,R,Aldi 81 774,Yes
Http://opendatacommunities.org/id/metropolitan-district-council/leeds,Leeds City Council,30/09/2021,Children and Families,Social Care,Supplies and Services,Food & Drink,231,22/08/2021,2109-00582,0.00,37.68,R,Aldi 85 779,Yes
Http://opendatacommunities.org/id/metropolitan-district-council/leeds,Leeds City Council,30/09/2021,Children and Families,Social Care,Supplies and Services,Food & Drink,231,05/08/2021,2109-00583,0.00,2.97,R,Aldi 88 779,Yes
Http://opendatacommunities.org/id/metropolitan-district-council/leeds,Leeds City Council,30/09/2021,Children and Families,Social Care,Supplies and Services,Food & Drink,231,24/08/2021,2109-00584,0.00,36.40,R,Aldi 89 779,Yes
Http://opendatacommunities.org/id/metropolitan-district-council/leeds,Leeds City Council,30/09/2021,Children and Families,Social Care,Supplies and Services,Food & Drink,231,05/08/2021,2109-00585,0.00,20.17,R,Aldi Stores,Yes
Http://opendatacommunities.org/id/metropolitan-district-council/leeds,Leeds City Council,30/09/2021,City Development,Recreation,Supplies and Services,Food & Drink,231,13/08/2021,2109-00586,0.00,2.91,R,Aldi Stores,Yes
Http://opendatacommunities.org/id/metropolitan-district-council/leeds,Leeds City Council,30/09/2021,Resources and Housing,Strategic Housing Partnership & Support,Supplies and Services,Other Hired And Contracted Services,265,17/08/2021,2109-00587,0.00,52.42,R,Aldi Stores,Yes
Http://opendatacommunities.org/id/metropolitan-district-council/leeds,Leeds City Council,30/09/2021,Communities and Environment,Customer Access,Supplies and Services,Grant Related Expenditure,290,24/08/2021,2109-00588,0.00,13.79,R,Aldi Stores,Yes
Http://opendatacommunities.org/id/metropolitan-district-council/leeds,Leeds City Council,30/09/2021,Communities and Environment,Benefits Welfare and Poverty,Supplies and Services,Grant Related Expenditure,298,23/09/2021,2109-00589,0.00,500.00,R,REDACTED PERSONAL DATA,No
Http://opendatacommunities.org/id/metropolitan-district-council/leeds,Leeds City Council,30/09/2021,Communities and Environment,Benefits Welfare and Poverty,Supplies and Services,Grant Related Expenditure,290,30/09/2021,2109-00590,0.00,500.00,R,REDACTED PERSONAL DATA,No
Http://opendatacommunities.org/id/metropolitan-district-council/leeds,Leeds City Council,30/09/2021,Communities and Environment,Customer Access,Supplies and Services,Bought In Professional Services,277,23/09/2021,2109-00591,0.00,9.00,R,Alena Zueva,No
Http://opendatacommunities.org/id/metropolitan-district-council/leeds,Leeds City Council,30/09/2021,Communities and Environment,Customer Access,Supplies and Services,Bought In Professional Services,277,29/09/2021,2109-00592,0.00,25.50,R,Alena Zueva,No
Http://opendatacommunities.org/id/metropolitan-district-council/leeds,Leeds City Council,30/09/2021,Communities and Environment,Benefits Welfare and Poverty,Supplies and Services,Grant Related Expenditure,290,10/09/2021,2109-00593,0.00,500.00,R,REDACTED PERSONAL DATA,No
Http://opendatacommunities.org/id/metropolitan-district-council/leeds,Leeds City Council,30/09/2021,Children and Families,Social Care,Supplies and Services,General Amenity For Clients/Residents,285,03/09/2021,2109-00594,0.00,20.01,R,REDACTED PERSONAL DATA,No
Http://opendatacommunities.org/id/metropolitan-district-council/leeds,Leeds City Council,30/09/2021,Children and Families,Social Care,Transport,Public Transport Expenses,310,03/09/2021,2109-00595,0.00,8.40,R,REDACTED PERSONAL DATA,No
Http://opendatacommunities.org/id/metropolitan-district-council/leeds,Leeds City Council,30/09/2021,Children and Families,Social Care,Supplies and Services,General Amenity For Clients/Residents,285,16/09/2021,2109-00596,0.00,24.35,R,REDACTED PERSONAL DATA,No
Http://opendatacommunities.org/id/metropolitan-district-council/leeds,Leeds City Council,30/09/2021,Children and Families,Social Care,Transport,Public Transport Expenses,310,16/09/2021,2109-00597,0.00,4.24,R,REDACTED PERSONAL DATA,No
Http://opendatacommunities.org/id/metropolitan-district-council/leeds,Leeds City Council,30/09/2021,City Development,Libraries Arts & Heritage,Supplies and Services,Publication And Promotion,267,24/09/2021,2109-00598,0.00,450.00,R,Alex Finney,No
Http://opendatacommunities.org/id/metropolitan-district-council/leeds,Leeds City Council,30/09/2021,Communities and Environment,Benefits Welfare and Poverty,Supplies and Services,Grant Related Expenditure,298,13/09/2021,2109-00599,0.00,500.00,R,REDACTED PERSONAL DATA,No
Http://opendatacommunities.org/id/metropolitan-district-council/leeds,Leeds City Council,30/09/2021,Communities and Environment,Benefits Welfare and Poverty,Supplies and Services,Grant Related Expenditure,298,15/09/2021,2109-00600,0.00,500.00,R,REDACTED PERSONAL DATA,No
Http://opendatacommunities.org/id/metropolitan-district-council/leeds,Leeds City Council,30/09/2021,Children and Families,Social Care,Internal Recharges,Legal Disbursements,411,09/09/2021,2109-00601,0.00,595.00,R,Alex Taylor,No
Http://opendatacommunities.org/id/metropolitan-district-council/leeds,Leeds City Council,30/09/2021,Resources and Housing,Commercial Services,Supplies and Services,Other Hired And Contracted Services,265,03/09/2021,2109-00602,0.00,120.00,R,ALEX WAGG,No
Http://opendatacommunities.org/id/metropolitan-district-council/leeds,Leeds City Council,30/09/2021,Resources and Housing,Commercial Services,Supplies and Services,Other Hired And Contracted Services,265,03/09/2021,2109-00603,0.00,80.00,R,ALEX WAGG,No
Http://opendatacommunities.org/id/metropolitan-district-council/leeds,Leeds City Council,30/09/2021,Resources and Housing,Commercial Services,Supplies and Services,Other Hired And Contracted Services,265,03/09/2021,2109-00604,0.00,60.00,R,ALEX WAGG,No
Http://opendatacommunities.org/id/metropolitan-district-council/leeds,Leeds City Council,30/09/2021,Resources and Housing,Commercial Services,Supplies and Services,Other Hired And Contracted Services,265,15/09/2021,2109-00605,0.00,560.00,R,ALEX WAGG,No
Http://opendatacommunities.org/id/metropolitan-district-council/leeds,Leeds City Council,30/09/2021,Resources and Housing,Commercial Services,Supplies and Services,Other Hired And Contracted Services,265,17/09/2021,2109-00606,0.00,70.00,R,ALEX WAGG,No
Http://opendatacommunities.org/id/metropolitan-district-council/leeds,Leeds City Council,30/09/2021,Resources and Housing,Commercial Services,Supplies and Services,Other Hired And Contracted Services,265,17/09/2021,2109-00607,0.00,70.00,R,ALEX WAGG,No
Http://opendatacommunities.org/id/metropolitan-district-council/leeds,Leeds City Council,30/09/2021,Resources and Housing,Commercial Services,Supplies and Services,Other Hired And Contracted Services,265,17/09/2021,2109-00608,0.00,70.00,R,ALEX WAGG,No
Http://opendatacommunities.org/id/metropolitan-district-council/leeds,Leeds City Council,30/09/2021,Resources and Housing,Commercial Services,Supplies and Services,Other Hired And Contracted Services,265,17/09/2021,2109-00609,0.00,70.00,R,ALEX WAGG,No
Http://opendatacommunities.org/id/metropolitan-district-council/leeds,Leeds City Council,30/09/2021,Resources and Housing,Commercial Services,Supplies and Services,Other Hired And Contracted Services,265,17/09/2021,2109-00610,0.00,70.00,R,ALEX WAGG,No
Http://opendatacommunities.org/id/metropolitan-district-council/leeds,Leeds City Council,30/09/2021,Resources and Housing,Commercial Services,Transport,Vehicle Spares,345,17/09/2021,2109-00611,0.00,215.00,R,ALEX WAGG,No
Http://opendatacommunities.org/id/metropolitan-district-council/leeds,Leeds City Council,30/09/2021,Resources and Housing,Commercial Services,Supplies and Services,Other Hired And Contracted Services,265,17/09/2021,2109-00612,0.00,70.00,R,ALEX WAGG,No
Http://opendatacommunities.org/id/metropolitan-district-council/leeds,Leeds City Council,30/09/2021,Resources and Housing,Commercial Services,Supplies and Services,Other Hired And Contracted Services,265,17/09/2021,2109-00613,0.00,70.00,R,ALEX WAGG,No
Http://opendatacommunities.org/id/metropolitan-district-council/leeds,Leeds City Council,30/09/2021,Resources and Housing,Commercial Services,Supplies and Services,Other Hired And Contracted Services,265,17/09/2021,2109-00614,0.00,70.00,R,ALEX WAGG,No
Http://opendatacommunities.org/id/metropolitan-district-council/leeds,Leeds City Council,30/09/2021,Resources and Housing,Commercial Services,Supplies and Services,Other Hired And Contracted Services,265,17/09/2021,2109-00615,0.00,70.00,R,ALEX WAGG,No
Http://opendatacommunities.org/id/metropolitan-district-council/leeds,Leeds City Council,30/09/2021,City Development,Recreation,External Income,Sporting & Other Recreational Fees,928,06/09/2021,2109-00616,0.00,40.00,R,REDACTED PERSONAL DATA,No
Http://opendatacommunities.org/id/metropolitan-district-council/leeds,Leeds City Council,30/09/2021,Communities and Environment,Benefits Welfare and Poverty,Supplies and Services,Grant Related Expenditure,298,10/09/2021,2109-00617,0.00,500.00,R,REDACTED PERSONAL DATA,No
Http://opendatacommunities.org/id/metropolitan-district-council/leeds,Leeds City Council,30/09/2021,Adults and Health,Services For Older People - 65 And Over,Agency Payments,Residential Care Dementia,571,15/09/2021,2109-00618,0.00,16384.24,R,ALEXANDER RESIDENTIAL HOME,No
Http://opendatacommunities.org/id/metropolitan-district-council/leeds,Leeds City Council,30/09/2021,Adults and Health,Services For Older People - 65 And Over,Agency Payments,Residential,580,15/09/2021,2109-00619,0.00,14833.96,R,ALEXANDER RESIDENTIAL HOME,No
Http://opendatacommunities.org/id/metropolitan-district-council/leeds,Leeds City Council,30/09/2021,Adults and Health,Services For Older People Under 65 P/Dis,Agency Payments,Residential Care Dementia,571,15/09/2021,2109-00620,0.00,2094.40,R,ALEXANDER RESIDENTIAL HOME,No
Http://opendatacommunities.org/id/metropolitan-district-council/leeds,Leeds City Council,30/09/2021,Children and Families,Social Care,Supplies and Services,General Amenity For Clients/Residents,285,03/09/2021,2109-00621,0.00,18.40,R,REDACTED PERSONAL DATA,No
Http://opendatacommunities.org/id/metropolitan-district-council/leeds,Leeds City Council,30/09/2021,Children and Families,Social Care,Transport,Public Transport Expenses,310,03/09/2021,2109-00622,0.00,32.00,R,REDACTED PERSONAL DATA,No
Http://opendatacommunities.org/id/metropolitan-district-council/leeds,Leeds City Council,30/09/2021,Children and Families,Social Care,Supplies and Services,General Amenity For Clients/Residents,285,30/09/2021,2109-00623,0.00,25.75,R,REDACTED PERSONAL DATA,No
Http://opendatacommunities.org/id/metropolitan-district-council/leeds,Leeds City Council,30/09/2021,Children and Families,Social Care,Transport,Public Transport Expenses,310,30/09/2021,2109-00624,0.00,32.00,R,REDACTED PERSONAL DATA,No
Http://opendatacommunities.org/id/metropolitan-district-council/leeds,Leeds City Council,30/09/2021,City Development,Recreation,External Income,Swimming Bath Charges,923,09/09/2021,2109-00625,0.00,49.90,R,REDACTED PERSONAL DATA,No
Http://opendatacommunities.org/id/metropolitan-district-council/leeds,Leeds City Council,30/09/2021,City Development,Recreation,External Income,Swimming Bath Charges,923,13/09/2021,2109-00626,0.00,24.95,R,REDACTED PERSONAL DATA,No
Http://opendatacommunities.org/id/metropolitan-district-council/leeds,Leeds City Council,30/09/2021,Communities and Environment,Customer Access,Supplies and Services,Bought In Professional Services,277,15/09/2021,2109-00627,0.00,54.00,R,Alexandra Costenco,No
Http://opendatacommunities.org/id/metropolitan-district-council/leeds,Leeds City Council,30/09/2021,Communities and Environment,Customer Access,Supplies and Services,Bought In Professional Services,277,15/09/2021,2109-00628,0.00,36.00,R,Alexandra Costenco,No
Http://opendatacommunities.org/id/metropolitan-district-council/leeds,Leeds City Council,30/09/2021,Communities and Environment,Customer Access,Supplies and Services,Bought In Professional Services,277,15/09/2021,2109-00629,0.00,54.00,R,Alexandra Costenco,No
Http://opendatacommunities.org/id/metropolitan-district-council/leeds,Leeds City Council,30/09/2021,Communities and Environment,Customer Access,Supplies and Services,Bought In Professional Services,277,23/09/2021,2109-00630,0.00,40.50,R,Alexandra Costenco,No
Http://opendatacommunities.org/id/metropolitan-district-council/leeds,Leeds City Council,30/09/2021,Communities and Environment,Customer Access,Supplies and Services,Bought In Professional Services,277,29/09/2021,2109-00631,0.00,54.00,R,Alexandra Costenco,No
Http://opendatacommunities.org/id/metropolitan-district-council/leeds,Leeds City Council,30/09/2021,Communities and Environment,Customer Access,Supplies and Services,Bought In Professional Services,277,29/09/2021,2109-00632,0.00,36.00,R,Alexandra Costenco,No
Http://opendatacommunities.org/id/metropolitan-district-council/leeds,Leeds City Council,30/09/2021,Communities and Environment,Customer Access,Supplies and Services,Bought In Professional Services,277,29/09/2021,2109-00633,0.00,18.00,R,Alexandra Costenco,No
Http://opendatacommunities.org/id/metropolitan-district-council/leeds,Leeds City Council,30/09/2021,Adults and Health,Services For Older People - 65 And Over,Agency Payments,Residential Care Dementia,571,15/09/2021,2109-00634,0.00,5646.96,R,ALEXANDRA COURT,No
Http://opendatacommunities.org/id/metropolitan-district-council/leeds,Leeds City Council,30/09/2021,Adults and Health,Services For Older People - 65 And Over,Agency Payments,Residential,580,15/09/2021,2109-00635,0.00,1217.33,R,ALEXANDRA COURT,No
Http://opendatacommunities.org/id/metropolitan-district-council/leeds,Leeds City Council,30/09/2021,Communities and Environment,Benefits Welfare and Poverty,Supplies and Services,Grant Related Expenditure,290,06/09/2021,2109-00636,0.00,500.00,R,REDACTED PERSONAL DATA,No
Http://opendatacommunities.org/id/metropolitan-district-council/leeds,Leeds City Council,30/09/2021,City Development,Libraries Arts & Heritage,Supplies and Services,Other Hired And Contracted Services,265,21/09/2021,2109-00637,0.00,225.00,R,Alexandra Glew,No
Http://opendatacommunities.org/id/metropolitan-district-council/leeds,Leeds City Council,30/09/2021,City Development,Libraries Arts & Heritage,Supplies and Services,Committee Expenses,254,27/09/2021,2109-00638,0.00,225.00,R,Alexandra Glew,No
Http://opendatacommunities.org/id/metropolitan-district-council/leeds,Leeds City Council,30/09/2021,City Development,Libraries Arts & Heritage,Supplies and Services,Other Hired And Contracted Services,265,27/09/2021,2109-00639,0.00,487.50,R,Alexandra Glew,No
Http://opendatacommunities.org/id/metropolitan-district-council/leeds,Leeds City Council,30/09/2021,Children and Families,Social Care,Agency Payments,Services Rendered By Other Organisations,511,01/09/2021,2109-00640,0.00,522.86,R,REDACTED PERSONAL DATA,No
Http://opendatacommunities.org/id/metropolitan-district-council/leeds,Leeds City Council,30/09/2021,Children and Families,Social Care,Agency Payments,Services Rendered By Other Organisations,511,03/09/2021,2109-00641,0.00,1304.55,R,REDACTED PERSONAL DATA,No
Http://opendatacommunities.org/id/metropolitan-district-council/leeds,Leeds City Council,30/09/2021,Communities and Environment,Benefits Welfare and Poverty,Supplies and Services,Grant Related Expenditure,298,17/09/2021,2109-00642,0.00,500.00,R,REDACTED PERSONAL DATA,No
Http://opendatacommunities.org/id/metropolitan-district-council/leeds,Leeds City Council,30/09/2021,Adults and Health,Services For Older People - 65 And Over,Supplies and Services,Clothing & Uniforms,241,17/07/2021,2109-00643,0.00,-9.99,R,Alexandra Website,Yes
Http://opendatacommunities.org/id/metropolitan-district-council/leeds,Leeds City Council,30/09/2021,Adults and Health,Services For Older People - 65 And Over,Supplies and Services,Clothing & Uniforms,241,17/07/2021,2109-00644,0.00,-59.94,R,Alexandra Website,Yes
Http://opendatacommunities.org/id/metropolitan-district-council/leeds,Leeds City Council,30/09/2021,Communities and Environment,Benefits Welfare and Poverty,Supplies and Services,Grant Related Expenditure,298,20/09/2021,2109-00645,0.00,500.00,R,REDACTED PERSONAL DATA,No
Http://opendatacommunities.org/id/metropolitan-district-council/leeds,Leeds City Council,30/09/2021,Resources and Housing,Leeds Building Services,Supplies and Services,Other Hired And Contracted Services,265,03/09/2021,2109-00646,0.00,850.00,R,Alfred Bagnall & Sons (Leeds) Ltd,No
Http://opendatacommunities.org/id/metropolitan-district-council/leeds,Leeds City Council,30/09/2021,Resources and Housing,Leeds Building Services,Supplies and Services,Other Hired And Contracted Services,265,30/09/2021,2109-00647,0.00,6260.64,R,Alfred Bagnall & Sons (Leeds) Ltd,No
Http://opendatacommunities.org/id/metropolitan-district-council/leeds,Leeds City Council,30/09/2021,Communities and Environment,Benefits Welfare and Poverty,Supplies and Services,Grant Related Expenditure,290,02/09/2021,2109-00648,0.00,500.00,R,REDACTED PERSONAL DATA,No
Http://opendatacommunities.org/id/metropolitan-district-council/leeds,Leeds City Council,30/09/2021,Communities and Environment,Benefits Welfare and Poverty,Supplies and Services,Grant Related Expenditure,298,20/09/2021,2109-00649,0.00,500.00,R,REDACTED PERSONAL DATA,No
Http://opendatacommunities.org/id/metropolitan-district-council/leeds,Leeds City Council,30/09/2021,Communities and Environment,Benefits Welfare and Poverty,Supplies and Services,Grant Related Expenditure,298,23/09/2021,2109-00650,0.00,500.00,R,REDACTED PERSONAL DATA,No
Http://opendatacommunities.org/id/metropolitan-district-council/leeds,Leeds City Council,30/09/2021,Communities and Environment,Benefits Welfare and Poverty,Supplies and Services,Grant Related Expenditure,298,14/09/2021,2109-00651,0.00,500.00,R,REDACTED PERSONAL DATA,No
Http://opendatacommunities.org/id/metropolitan-district-council/leeds,Leeds City Council,30/09/2021,Communities and Environment,Benefits Welfare and Poverty,Supplies and Services,Grant Related Expenditure,290,27/09/2021,2109-00652,0.00,500.00,R,REDACTED PERSONAL DATA,No
Http://opendatacommunities.org/id/metropolitan-district-council/leeds,Leeds City Council,30/09/2021,Communities and Environment,Customer Access,Supplies and Services,Bought In Professional Services,277,02/09/2021,2109-00653,0.00,14.00,R,Ali Pourakaberian,No
Http://opendatacommunities.org/id/metropolitan-district-council/leeds,Leeds City Council,30/09/2021,Communities and Environment,Customer Access,Supplies and Services,Bought In Professional Services,277,02/09/2021,2109-00654,0.00,9.00,R,Ali Pourakaberian,No
Http://opendatacommunities.org/id/metropolitan-district-council/leeds,Leeds City Council,30/09/2021,Communities and Environment,Customer Access,Supplies and Services,Bought In Professional Services,277,02/09/2021,2109-00655,0.00,27.00,R,Ali Pourakaberian,No
Http://opendatacommunities.org/id/metropolitan-district-council/leeds,Leeds City Council,30/09/2021,Communities and Environment,Customer Access,Supplies and Services,Bought In Professional Services,277,02/09/2021,2109-00656,0.00,18.00,R,Ali Pourakaberian,No
Http://opendatacommunities.org/id/metropolitan-district-council/leeds,Leeds City Council,30/09/2021,Communities and Environment,Customer Access,Supplies and Services,Bought In Professional Services,277,08/09/2021,2109-00657,0.00,18.00,R,Ali Pourakaberian,No
Http://opendatacommunities.org/id/metropolitan-district-council/leeds,Leeds City Council,30/09/2021,Communities and Environment,Customer Access,Supplies and Services,Bought In Professional Services,277,08/09/2021,2109-00658,0.00,27.00,R,Ali Pourakaberian,No
Http://opendatacommunities.org/id/metropolitan-district-council/leeds,Leeds City Council,30/09/2021,Communities and Environment,Customer Access,Supplies and Services,Bought In Professional Services,277,08/09/2021,2109-00659,0.00,27.00,R,Ali Pourakaberian,No
Http://opendatacommunities.org/id/metropolitan-district-council/leeds,Leeds City Council,30/09/2021,Communities and Environment,Customer Access,Supplies and Services,Bought In Professional Services,277,15/09/2021,2109-00660,0.00,9.00,R,Ali Pourakaberian,No
Http://opendatacommunities.org/id/metropolitan-district-council/leeds,Leeds City Council,30/09/2021,Communities and Environment,Customer Access,Supplies and Services,Bought In Professional Services,277,15/09/2021,2109-00661,0.00,27.00,R,Ali Pourakaberian,No
Http://opendatacommunities.org/id/metropolitan-district-council/leeds,Leeds City Council,30/09/2021,Communities and Environment,Customer Access,Supplies and Services,Bought In Professional Services,277,23/09/2021,2109-00662,0.00,27.00,R,Ali Pourakaberian,No
Http://opendatacommunities.org/id/metropolitan-district-council/leeds,Leeds City Council,30/09/2021,Communities and Environment,Customer Access,Supplies and Services,Bought In Professional Services,277,23/09/2021,2109-00663,0.00,27.00,R,Ali Pourakaberian,No
Http://opendatacommunities.org/id/metropolitan-district-council/leeds,Leeds City Council,30/09/2021,Communities and Environment,Customer Access,Supplies and Services,Bought In Professional Services,277,29/09/2021,2109-00664,0.00,27.00,R,Ali Pourakaberian,No
Http://opendatacommunities.org/id/metropolitan-district-council/leeds,Leeds City Council,30/09/2021,Communities and Environment,Benefits Welfare and Poverty,Supplies and Services,Grant Related Expenditure,290,03/09/2021,2109-00665,0.00,500.00,R,REDACTED PERSONAL DATA,No
Http://opendatacommunities.org/id/metropolitan-district-council/leeds,Leeds City Council,30/09/2021,City Development,Recreation,Supplies and Services,Bought In Professional Services,277,24/09/2021,2109-00666,0.00,80.00,R,Alice M Richardson,No
Http://opendatacommunities.org/id/metropolitan-district-council/leeds,Leeds City Council,30/09/2021,City Development,Recreation,Supplies and Services,Bought In Professional Services,277,24/09/2021,2109-00667,0.00,60.00,R,Alice M Richardson,No
Http://opendatacommunities.org/id/metropolitan-district-council/leeds,Leeds City Council,30/09/2021,Communities and Environment,Benefits Welfare and Poverty,Supplies and Services,Grant Related Expenditure,298,22/09/2021,2109-00668,0.00,500.00,R,REDACTED PERSONAL DATA,No
Http://opendatacommunities.org/id/metropolitan-district-council/leeds,Leeds City Council,30/09/2021,Communities and Environment,Benefits Welfare and Poverty,Supplies and Services,Grant Related Expenditure,298,13/09/2021,2109-00669,0.00,500.00,R,REDACTED PERSONAL DATA,No
Http://opendatacommunities.org/id/metropolitan-district-council/leeds,Leeds City Council,30/09/2021,Communities and Environment,Benefits Welfare and Poverty,Supplies and Services,Grant Related Expenditure,298,29/09/2021,2109-00670,0.00,500.00,R,REDACTED PERSONAL DATA,No
Http://opendatacommunities.org/id/metropolitan-district-council/leeds,Leeds City Council,30/09/2021,Communities and Environment,Benefits Welfare and Poverty,Supplies and Services,Grant Related Expenditure,298,21/09/2021,2109-00671,0.00,500.00,R,REDACTED PERSONAL DATA,No
Http://opendatacommunities.org/id/metropolitan-district-council/leeds,Leeds City Council,30/09/2021,Children and Families,Social Care,Agency Payments,Services Rendered By Other Organisations,511,03/09/2021,2109-00672,0.00,590.07,R,REDACTED PERSONAL DATA,No
Http://opendatacommunities.org/id/metropolitan-district-council/leeds,Leeds City Council,30/09/2021,Children and Families,Social Care,Agency Payments,Direct Work,549,28/09/2021,2109-00673,0.00,33.00,R,REDACTED PERSONAL DATA,No
Http://opendatacommunities.org/id/metropolitan-district-council/leeds,Leeds City Council,30/09/2021,Communities and Environment,Customer Access,Supplies and Services,Operational Materials,205,19/08/2021,2109-00674,0.00,5026.00,R,Alison Handling Services,Yes
Http://opendatacommunities.org/id/metropolitan-district-council/leeds,Leeds City Council,30/09/2021,Strategic Landlord,Property and Contracts,Supplies and Services,Insurance Claims,248,03/09/2021,2109-00675,0.00,7750.00,R,Alison Law Solicitors,No
Http://opendatacommunities.org/id/metropolitan-district-council/leeds,Leeds City Council,30/09/2021,Strategic Landlord,Property and Contracts,Supplies and Services,Insurance Claims,248,03/09/2021,2109-00676,0.00,7000.00,R,Alison Law Solicitors,No
Http://opendatacommunities.org/id/metropolitan-district-council/leeds,Leeds City Council,30/09/2021,Strategic Landlord,Property and Contracts,Supplies and Services,Insurance Claims,248,03/09/2021,2109-00677,0.00,5750.00,R,Alison Law Solicitors,No
Http://opendatacommunities.org/id/metropolitan-district-council/leeds,Leeds City Council,30/09/2021,Communities and Environment,Benefits Welfare and Poverty,Supplies and Services,Grant Related Expenditure,298,01/09/2021,2109-00678,0.00,500.00,R,REDACTED PERSONAL DATA,No
Http://opendatacommunities.org/id/metropolitan-district-council/leeds,Leeds City Council,30/09/2021,Communities and Environment,Benefits Welfare and Poverty,Supplies and Services,Grant Related Expenditure,298,17/09/2021,2109-00679,0.00,500.00,R,REDACTED PERSONAL DATA,No
Http://opendatacommunities.org/id/metropolitan-district-council/leeds,Leeds City Council,30/09/2021,Children and Families,Social Care,Supplies and Services,Postages,212,10/09/2021,2109-00680,0.00,2.71,R,REDACTED PERSONAL DATA,No
Http://opendatacommunities.org/id/metropolitan-district-council/leeds,Leeds City Council,30/09/2021,Children and Families,Social Care,Supplies and Services,Other Hired And Contracted Services,265,10/09/2021,2109-00681,0.00,58.50,R,REDACTED PERSONAL DATA,No
Http://opendatacommunities.org/id/metropolitan-district-council/leeds,Leeds City Council,30/09/2021,Children and Families,Social Care,Transport,Car & Motorcycle Allowances,311,10/09/2021,2109-00682,0.00,19.80,R,REDACTED PERSONAL DATA,No
Http://opendatacommunities.org/id/metropolitan-district-council/leeds,Leeds City Council,30/09/2021,Communities and Environment,Benefits Welfare and Poverty,Supplies and Services,Grant Related Expenditure,298,15/09/2021,2109-00683,0.00,500.00,R,REDACTED PERSONAL DATA,No
Http://opendatacommunities.org/id/metropolitan-district-council/leeds,Leeds City Council,30/09/2021,Communities and Environment,Benefits Welfare and Poverty,Supplies and Services,Grant Related Expenditure,290,08/09/2021,2109-00684,0.00,500.00,R,REDACTED PERSONAL DATA,No
Http://opendatacommunities.org/id/metropolitan-district-council/leeds,Leeds City Council,30/09/2021,Communities and Environment,Benefits Welfare and Poverty,Supplies and Services,Grant Related Expenditure,290,08/09/2021,2109-00685,0.00,500.00,R,REDACTED PERSONAL DATA,No
Http://opendatacommunities.org/id/metropolitan-district-council/leeds,Leeds City Council,30/09/2021,Adults and Health,Other Adult Services,Agency Payments,Nursing Home,570,16/09/2021,2109-00686,0.00,314.50,R,All Seasons Home Care,No
Http://opendatacommunities.org/id/metropolitan-district-council/leeds,Leeds City Council,30/09/2021,Children and Families,Social Care,Agency Payments,Services Rendered By Other Organisations,511,01/09/2021,2109-00687,0.00,574.86,R,All Stars Childcare,No
Http://opendatacommunities.org/id/metropolitan-district-council/leeds,Leeds City Council,30/09/2021,Children and Families,Social Care,Agency Payments,Services Rendered By Other Organisations,511,03/09/2021,2109-00688,0.00,10871.25,R,All Stars Childcare,No
Http://opendatacommunities.org/id/metropolitan-district-council/leeds,Leeds City Council as Accountable Body,30/09/2021,Social Services Pooled Budgets,Jcs For People With Learning Disabilitie,Agency Payments,Sheltered Accommodation,569,15/09/2021,2109-00689,0.00,20859.48,R,Allerton Avenue,No
Http://opendatacommunities.org/id/metropolitan-district-council/leeds,Leeds City Council,30/09/2021,Adults and Health,Services For Older People - 65 And Over,Agency Payments,Nursing Care Dementia,574,15/09/2021,2109-00690,0.00,2390.08,R,ALLERTON PARK N H,No
Http://opendatacommunities.org/id/metropolitan-district-council/leeds,Leeds City Council,30/09/2021,Strategic Accounts,Miscellaneous,Supplies and Services,Non-Recurring Grants,227,13/09/2021,2109-00691,0.00,300.00,R,Alliance Boxing Club,No
Http://opendatacommunities.org/id/metropolitan-district-council/leeds,Leeds City Council,30/09/2021,Children and Families,Social Care,Supplies and Services,Food & Drink,231,05/08/2021,2109-00692,0.00,11.75,R,Alliance Disposables,Yes
Http://opendatacommunities.org/id/metropolitan-district-council/leeds,Leeds City Council,30/09/2021,Resources and Housing,Commercial Services,Supplies and Services,Operational Materials,205,03/09/2021,2109-00693,0.00,2799.54,R,ALLIANCE DISPOSABLES LTD,No
Http://opendatacommunities.org/id/metropolitan-district-council/leeds,Leeds City Council,30/09/2021,Resources and Housing,Commercial Services,Supplies and Services,Operational Materials,205,08/09/2021,2109-00694,0.00,927.03,R,ALLIANCE DISPOSABLES LTD,No
Http://opendatacommunities.org/id/metropolitan-district-council/leeds,Leeds City Council,30/09/2021,Resources and Housing,Commercial Services,Supplies and Services,Operational Materials,205,20/09/2021,2109-00695,0.00,122.35,R,ALLIANCE DISPOSABLES LTD,No
Http://opendatacommunities.org/id/metropolitan-district-council/leeds,Leeds City Council,30/09/2021,Resources and Housing,Commercial Services,Supplies and Services,Operational Materials,205,23/09/2021,2109-00696,0.00,1101.15,R,ALLIANCE DISPOSABLES LTD,No
Http://opendatacommunities.org/id/metropolitan-district-council/leeds,Leeds City Council,30/09/2021,Resources and Housing,Commercial Services,Supplies and Services,Operational Materials,205,29/09/2021,2109-00697,0.00,61.86,R,ALLIANCE DISPOSABLES LTD,No
Http://opendatacommunities.org/id/metropolitan-district-council/leeds,Leeds City Council,30/09/2021,City Development,Highways,Supplies and Services,Other Hired And Contracted Services,265,29/09/2021,2109-00698,0.00,18183.95,R,ALLIED EXPLORATION & GEOTECHNICS LTD,No
Http://opendatacommunities.org/id/metropolitan-district-council/leeds,Leeds City Council as Accountable Body,30/09/2021,Social Services Pooled Budgets,Jcs For People With Learning Disabilitie,Agency Payments,Home Care,568,02/09/2021,2109-00699,0.00,1256.96,R,Allied Healthcare,No
Http://opendatacommunities.org/id/metropolitan-district-council/leeds,Leeds City Council,30/09/2021,Adults and Health,Services For Older People - 65 And Over,Agency Payments,Home Care,568,08/09/2021,2109-00700,0.00,1709.76,R,Allied Healthcare,No
Http://opendatacommunities.org/id/metropolitan-district-council/leeds,Leeds City Council,30/09/2021,Adults and Health,Services For Older People - 65 And Over,Agency Payments,HCAIT Other,577,08/09/2021,2109-00701,0.00,98.64,R,Allied Healthcare,No
Http://opendatacommunities.org/id/metropolitan-district-council/leeds,Leeds City Council,30/09/2021,Adults and Health,Services For Older People Under 65 P/Dis,Agency Payments,Home Care,568,08/09/2021,2109-00702,0.00,641.16,R,Allied Healthcare,No
Http://opendatacommunities.org/id/metropolitan-district-council/leeds,Leeds City Council,30/09/2021,Adults and Health,Services For Adults Under 65 Mental/Dis,Agency Payments,Home Care,568,08/09/2021,2109-00703,0.00,1978.98,R,Allied Healthcare,No
Http://opendatacommunities.org/id/metropolitan-district-council/leeds,Leeds City Council,30/09/2021,Adults and Health,Services For Older People - 65 And Over,Agency Payments,Home Care,568,08/09/2021,2109-00704,0.00,48471.20,R,Allied Healthcare,No
Http://opendatacommunities.org/id/metropolitan-district-council/leeds,Leeds City Council,30/09/2021,Adults and Health,Services For Older People - 65 And Over,Agency Payments,HCAIT Community Support,575,08/09/2021,2109-00705,0.00,212.16,R,Allied Healthcare,No
Http://opendatacommunities.org/id/metropolitan-district-council/leeds,Leeds City Council,30/09/2021,Adults and Health,Services For Older People - 65 And Over,Agency Payments,HCAIT Other,577,08/09/2021,2109-00706,0.00,2111.76,R,Allied Healthcare,No
Http://opendatacommunities.org/id/metropolitan-district-council/leeds,Leeds City Council,30/09/2021,Adults and Health,Services For Older People Under 65 P/Dis,Agency Payments,Home Care,568,08/09/2021,2109-00707,0.00,11553.88,R,Allied Healthcare,No
Http://opendatacommunities.org/id/metropolitan-district-council/leeds,Leeds City Council as Accountable Body,30/09/2021,Social Services Pooled Budgets,Jcs For People With Learning Disabilitie,Agency Payments,Home Care,568,22/09/2021,2109-00708,0.00,149.20,R,Allied Healthcare,No
Http://opendatacommunities.org/id/metropolitan-district-council/leeds,Leeds City Council as Accountable Body,30/09/2021,Social Services Pooled Budgets,Jcs For People With Learning Disabilitie,Agency Payments,Home Care,568,24/09/2021,2109-00709,0.00,1256.96,R,Allied Healthcare,No
Http://opendatacommunities.org/id/metropolitan-district-council/leeds,Leeds City Council,30/09/2021,Adults and Health,Services For Older People - 65 And Over,Agency Payments,Home Care,568,29/09/2021,2109-00710,0.00,1312.74,R,Allied Healthcare,No
Http://opendatacommunities.org/id/metropolitan-district-council/leeds,Leeds City Council,30/09/2021,Resources and Housing,Shared Services,Supplies and Services,Other Hired And Contracted Services,265,30/09/2021,2109-00711,0.00,-3133.43,R,Allied Publicity Services,No
Http://opendatacommunities.org/id/metropolitan-district-council/leeds,Leeds City Council,30/09/2021,Resources and Housing,Shared Services,Supplies and Services,Printing,215,30/09/2021,2109-00712,0.00,2744.12,R,Allied Publicity Services,No
Http://opendatacommunities.org/id/metropolitan-district-council/leeds,Leeds City Council,30/09/2021,Resources and Housing,Shared Services,Supplies and Services,Printing,215,30/09/2021,2109-00713,0.00,3263.90,R,Allied Publicity Services,No
Http://opendatacommunities.org/id/metropolitan-district-council/leeds,Leeds City Council,30/09/2021,Children and Families,Social Care,Agency Payments,Services Rendered By Other Organisations,511,03/09/2021,2109-00714,0.00,217.43,R,REDACTED PERSONAL DATA,No
Http://opendatacommunities.org/id/metropolitan-district-council/leeds,Leeds City Council,30/09/2021,Children and Families,Social Care,Agency Payments,Placement Support,550,01/09/2021,2109-00715,0.00,182.50,R,Allpay,No
Http://opendatacommunities.org/id/metropolitan-district-council/leeds,Leeds City Council,30/09/2021,Children and Families,Social Care,Agency Payments,Section 17,551,01/09/2021,2109-00716,0.00,990.43,R,Allpay,No
Http://opendatacommunities.org/id/metropolitan-district-council/leeds,Leeds City Council,30/09/2021,Children and Families,Social Care,Appropriations,16 Plus Top Up Allowance,625,01/09/2021,2109-00717,0.00,80.00,R,Allpay,No
Http://opendatacommunities.org/id/metropolitan-district-council/leeds,Leeds City Council,30/09/2021,Children and Families,Social Care,Appropriations,Leaving Care Allowances,634,01/09/2021,2109-00718,0.00,1740.00,R,Allpay,No
Http://opendatacommunities.org/id/metropolitan-district-council/leeds,Leeds City Council,30/09/2021,Children and Families,Social Care,Appropriations,Leaving Care Grants,635,01/09/2021,2109-00719,0.00,140.00,R,Allpay,No
Http://opendatacommunities.org/id/metropolitan-district-council/leeds,Leeds City Council,30/09/2021,Children and Families,Social Care,Agency Payments,Section 17,551,02/09/2021,2109-00720,0.00,421.00,R,Allpay,No
Http://opendatacommunities.org/id/metropolitan-district-council/leeds,Leeds City Council,30/09/2021,Children and Families,Social Care,Appropriations,Leaving Care Allowances,634,02/09/2021,2109-00721,0.00,180.00,R,Allpay,No
Http://opendatacommunities.org/id/metropolitan-district-council/leeds,Leeds City Council,30/09/2021,Children and Families,Social Care,Appropriations,Leaving Care Allowances,634,02/09/2021,2109-00722,0.00,70.00,R,Allpay,No
Http://opendatacommunities.org/id/metropolitan-district-council/leeds,Leeds City Council,30/09/2021,Children and Families,Social Care,Agency Payments,Placement Support,550,02/09/2021,2109-00723,0.00,60.00,R,Allpay,No
Http://opendatacommunities.org/id/metropolitan-district-council/leeds,Leeds City Council,30/09/2021,Children and Families,Social Care,Appropriations,Leaving Care Allowances,634,03/09/2021,2109-00724,0.00,309.00,R,Allpay,No
Http://opendatacommunities.org/id/metropolitan-district-council/leeds,Leeds City Council,30/09/2021,Children and Families,Social Care,Agency Payments,Section 17,551,06/09/2021,2109-00725,0.00,84.20,R,Allpay,No
Http://opendatacommunities.org/id/metropolitan-district-council/leeds,Leeds City Council,30/09/2021,Children and Families,Social Care,Appropriations,Leaving Care Allowances,634,06/09/2021,2109-00726,0.00,80.00,R,Allpay,No
Http://opendatacommunities.org/id/metropolitan-district-council/leeds,Leeds City Council,30/09/2021,Children and Families,Social Care,Appropriations,Leaving Care Allowances,634,08/09/2021,2109-00727,0.00,80.00,R,Allpay,No
Http://opendatacommunities.org/id/metropolitan-district-council/leeds,Leeds City Council,30/09/2021,Children and Families,Social Care,Agency Payments,Placement Support,550,08/09/2021,2109-00728,0.00,182.50,R,Allpay,No
Http://opendatacommunities.org/id/metropolitan-district-council/leeds,Leeds City Council,30/09/2021,Children and Families,Social Care,Agency Payments,Section 17,551,08/09/2021,2109-00729,0.00,1191.12,R,Allpay,No
Http://opendatacommunities.org/id/metropolitan-district-council/leeds,Leeds City Council,30/09/2021,Children and Families,Social Care,Appropriations,16 Plus Top Up Allowance,625,08/09/2021,2109-00730,0.00,80.00,R,Allpay,No
Http://opendatacommunities.org/id/metropolitan-district-council/leeds,Leeds City Council,30/09/2021,Children and Families,Social Care,Appropriations,Leaving Care Allowances,634,08/09/2021,2109-00731,0.00,1948.90,R,Allpay,No
Http://opendatacommunities.org/id/metropolitan-district-council/leeds,Leeds City Council,30/09/2021,Children and Families,Social Care,Appropriations,Leaving Care Grants,635,08/09/2021,2109-00732,0.00,140.00,R,Allpay,No
Http://opendatacommunities.org/id/metropolitan-district-council/leeds,Leeds City Council,30/09/2021,Children and Families,Social Care,Agency Payments,Section 17,551,09/09/2021,2109-00733,0.00,82.20,R,Allpay,No
Http://opendatacommunities.org/id/metropolitan-district-council/leeds,Leeds City Council,30/09/2021,Children and Families,Social Care,Agency Payments,Section 17,551,09/09/2021,2109-00734,0.00,168.40,R,Allpay,No
Http://opendatacommunities.org/id/metropolitan-district-council/leeds,Leeds City Council,30/09/2021,Children and Families,Social Care,Appropriations,Leaving Care Grants,635,10/09/2021,2109-00735,0.00,70.00,R,Allpay,No
Http://opendatacommunities.org/id/metropolitan-district-council/leeds,Leeds City Council,30/09/2021,Children and Families,Social Care,Appropriations,16 Plus Top Up Allowance,625,13/09/2021,2109-00736,0.00,20.00,R,Allpay,No
Http://opendatacommunities.org/id/metropolitan-district-council/leeds,Leeds City Council,30/09/2021,Children and Families,Social Care,Agency Payments,Section 17,551,13/09/2021,2109-00737,0.00,158.40,R,Allpay,No
Http://opendatacommunities.org/id/metropolitan-district-council/leeds,Leeds City Council,30/09/2021,Children and Families,Social Care,Agency Payments,Placement Support,550,15/09/2021,2109-00738,0.00,182.50,R,Allpay,No
Http://opendatacommunities.org/id/metropolitan-district-council/leeds,Leeds City Council,30/09/2021,Children and Families,Social Care,Agency Payments,Section 17,551,15/09/2021,2109-00739,0.00,1470.32,R,Allpay,No
Http://opendatacommunities.org/id/metropolitan-district-council/leeds,Leeds City Council,30/09/2021,Children and Families,Social Care,Appropriations,16 Plus Top Up Allowance,625,15/09/2021,2109-00740,0.00,80.00,R,Allpay,No
Http://opendatacommunities.org/id/metropolitan-district-council/leeds,Leeds City Council,30/09/2021,Children and Families,Social Care,Appropriations,Leaving Care Allowances,634,15/09/2021,2109-00741,0.00,1948.90,R,Allpay,No
Http://opendatacommunities.org/id/metropolitan-district-council/leeds,Leeds City Council,30/09/2021,Children and Families,Social Care,Appropriations,Leaving Care Grants,635,15/09/2021,2109-00742,0.00,60.00,R,Allpay,No
Http://opendatacommunities.org/id/metropolitan-district-council/leeds,Leeds City Council,30/09/2021,Children and Families,Social Care,Agency Payments,Placement Support,550,15/09/2021,2109-00743,0.00,64.73,R,Allpay,No
Http://opendatacommunities.org/id/metropolitan-district-council/leeds,Leeds City Council,30/09/2021,Children and Families,Social Care,Appropriations,Leaving Care Allowances,634,16/09/2021,2109-00744,0.00,50.00,R,Allpay,No
Http://opendatacommunities.org/id/metropolitan-district-council/leeds,Leeds City Council,30/09/2021,Children and Families,Social Care,Agency Payments,Placement Support,550,22/09/2021,2109-00745,0.00,1128.17,R,Allpay,No
Http://opendatacommunities.org/id/metropolitan-district-council/leeds,Leeds City Council,30/09/2021,Children and Families,Social Care,Agency Payments,Section 17,551,22/09/2021,2109-00746,0.00,1129.00,R,Allpay,No
Http://opendatacommunities.org/id/metropolitan-district-council/leeds,Leeds City Council,30/09/2021,Children and Families,Social Care,Appropriations,Leaving Care Allowances,634,22/09/2021,2109-00747,0.00,1453.00,R,Allpay,No
Http://opendatacommunities.org/id/metropolitan-district-council/leeds,Leeds City Council,30/09/2021,Children and Families,Social Care,Agency Payments,Contact,548,22/09/2021,2109-00748,0.00,11.40,R,Allpay,No
Http://opendatacommunities.org/id/metropolitan-district-council/leeds,Leeds City Council,30/09/2021,Children and Families,Social Care,Agency Payments,Section 17,551,22/09/2021,2109-00749,0.00,1435.72,R,Allpay,No
Http://opendatacommunities.org/id/metropolitan-district-council/leeds,Leeds City Council,30/09/2021,Children and Families,Social Care,Appropriations,16 Plus Top Up Allowance,625,22/09/2021,2109-00750,0.00,130.00,R,Allpay,No
Http://opendatacommunities.org/id/metropolitan-district-council/leeds,Leeds City Council,30/09/2021,Children and Families,Social Care,Appropriations,Leaving Care Allowances,634,22/09/2021,2109-00751,0.00,1668.90,R,Allpay,No
Http://opendatacommunities.org/id/metropolitan-district-council/leeds,Leeds City Council,30/09/2021,Children and Families,Social Care,Appropriations,16 Plus Top Up Allowance,625,22/09/2021,2109-00752,0.00,20.00,R,Allpay,No
Http://opendatacommunities.org/id/metropolitan-district-council/leeds,Leeds City Council,30/09/2021,Children and Families,Social Care,Appropriations,16 Plus Top Up Allowance,625,22/09/2021,2109-00753,0.00,20.00,R,Allpay,No
Http://opendatacommunities.org/id/metropolitan-district-council/leeds,Leeds City Council,30/09/2021,Children and Families,Social Care,Appropriations,16 Plus Top Up Allowance,625,22/09/2021,2109-00754,0.00,20.00,R,Allpay,No
Http://opendatacommunities.org/id/metropolitan-district-council/leeds,Leeds City Council,30/09/2021,Children and Families,Social Care,Appropriations,Leaving Care Allowances,634,22/09/2021,2109-00755,0.00,80.00,R,Allpay,No
Http://opendatacommunities.org/id/metropolitan-district-council/leeds,Leeds City Council,30/09/2021,Children and Families,Social Care,Appropriations,Leaving Care Allowances,634,22/09/2021,2109-00756,0.00,60.00,R,Allpay,No
Http://opendatacommunities.org/id/metropolitan-district-council/leeds,Leeds City Council,30/09/2021,Children and Families,Social Care,Agency Payments,Section 17,551,23/09/2021,2109-00757,0.00,441.60,R,Allpay,No
Http://opendatacommunities.org/id/metropolitan-district-council/leeds,Leeds City Council,30/09/2021,Children and Families,Social Care,Agency Payments,Allowances,546,23/09/2021,2109-00758,0.00,200.00,R,Allpay,No
Http://opendatacommunities.org/id/metropolitan-district-council/leeds,Leeds City Council,30/09/2021,Children and Families,Social Care,Appropriations,16 Plus Top Up Allowance,625,24/09/2021,2109-00759,0.00,20.00,R,Allpay,No
Http://opendatacommunities.org/id/metropolitan-district-council/leeds,Leeds City Council,30/09/2021,Children and Families,Social Care,Agency Payments,Allowances,546,24/09/2021,2109-00760,0.00,150.00,R,Allpay,No
Http://opendatacommunities.org/id/metropolitan-district-council/leeds,Leeds City Council,30/09/2021,Children and Families,Social Care,Agency Payments,Allowances,546,24/09/2021,2109-00761,0.00,150.00,R,Allpay,No
Http://opendatacommunities.org/id/metropolitan-district-council/leeds,Leeds City Council,30/09/2021,Children and Families,Social Care,Appropriations,16 Plus Top Up Allowance,625,24/09/2021,2109-00762,0.00,20.00,R,Allpay,No
Http://opendatacommunities.org/id/metropolitan-district-council/leeds,Leeds City Council,30/09/2021,Children and Families,Social Care,Appropriations,16 Plus Top Up Allowance,625,24/09/2021,2109-00763,0.00,20.00,R,Allpay,No
Http://opendatacommunities.org/id/metropolitan-district-council/leeds,Leeds City Council,30/09/2021,Children and Families,Social Care,Appropriations,16 Plus Top Up Allowance,625,24/09/2021,2109-00764,0.00,20.00,R,Allpay,No
Http://opendatacommunities.org/id/metropolitan-district-council/leeds,Leeds City Council,30/09/2021,Children and Families,Social Care,Appropriations,16 Plus Top Up Allowance,625,24/09/2021,2109-00765,0.00,20.00,R,Allpay,No
Http://opendatacommunities.org/id/metropolitan-district-council/leeds,Leeds City Council,30/09/2021,Children and Families,Social Care,Agency Payments,Placement Support,550,28/09/2021,2109-00766,0.00,69.03,R,Allpay,No
Http://opendatacommunities.org/id/metropolitan-district-council/leeds,Leeds City Council,30/09/2021,Children and Families,Social Care,Appropriations,Leaving Care Allowances,634,28/09/2021,2109-00767,0.00,60.00,R,Allpay,No
Http://opendatacommunities.org/id/metropolitan-district-council/leeds,Leeds City Council,30/09/2021,Children and Families,Social Care,Agency Payments,Contact,548,29/09/2021,2109-00768,0.00,11.40,R,Allpay,No
Http://opendatacommunities.org/id/metropolitan-district-council/leeds,Leeds City Council,30/09/2021,Children and Families,Social Care,Agency Payments,Section 17,551,29/09/2021,2109-00769,0.00,1583.92,R,Allpay,No
Http://opendatacommunities.org/id/metropolitan-district-council/leeds,Leeds City Council,30/09/2021,Children and Families,Social Care,Appropriations,16 Plus Top Up Allowance,625,29/09/2021,2109-00770,0.00,240.00,R,Allpay,No
Http://opendatacommunities.org/id/metropolitan-district-council/leeds,Leeds City Council,30/09/2021,Children and Families,Social Care,Appropriations,Leaving Care Allowances,634,29/09/2021,2109-00771,0.00,1808.90,R,Allpay,No
Http://opendatacommunities.org/id/metropolitan-district-council/leeds,Leeds City Council,30/09/2021,Children and Families,Social Care,Appropriations,Leaving Care Grants,635,29/09/2021,2109-00772,0.00,365.00,R,Allpay,No
Http://opendatacommunities.org/id/metropolitan-district-council/leeds,Leeds City Council,30/09/2021,Children and Families,Social Care,Appropriations,16 Plus Top Up Allowance,625,30/09/2021,2109-00773,0.00,40.00,R,Allpay,No
Http://opendatacommunities.org/id/metropolitan-district-council/leeds,Leeds City Council,30/09/2021,Children and Families,Social Care,Appropriations,Leaving Care Allowances,634,03/08/2021,2109-00774,0.00,233.76,R,Allpay *the Guinness Part,Yes
Http://opendatacommunities.org/id/metropolitan-district-council/leeds,Leeds City Council,30/09/2021,Children and Families,Social Care,Supplies and Services,Computer Software & Equipment,214,13/09/2021,2109-00775,0.00,271.65,R,Allpay Limted,No
Http://opendatacommunities.org/id/metropolitan-district-council/leeds,Leeds City Council,30/09/2021,Strategic Landlord,Housing Management,Supplies and Services,Other Hired And Contracted Services,265,15/09/2021,2109-00776,0.00,318.96,R,Allpay Limted,No
Http://opendatacommunities.org/id/metropolitan-district-council/leeds,Leeds City Council,30/09/2021,Strategic Landlord,Housing Management,Supplies and Services,Other Hired And Contracted Services,265,15/09/2021,2109-00777,0.00,11.55,R,Allpay Limted,No
Http://opendatacommunities.org/id/metropolitan-district-council/leeds,Leeds City Council,30/09/2021,Strategic Landlord,Housing Management,Supplies and Services,Other Hired And Contracted Services,265,15/09/2021,2109-00778,0.00,0.98,R,Allpay Limted,No
Http://opendatacommunities.org/id/metropolitan-district-council/leeds,Leeds City Council,30/09/2021,Strategic Landlord,Housing Management,Supplies and Services,Other Hired And Contracted Services,265,15/09/2021,2109-00779,0.00,135.68,R,Allpay Limted,No
Http://opendatacommunities.org/id/metropolitan-district-council/leeds,Leeds City Council,30/09/2021,Strategic Landlord,Housing Management,Supplies and Services,Other Hired And Contracted Services,265,15/09/2021,2109-00780,0.00,9.76,R,Allpay Limted,No
Http://opendatacommunities.org/id/metropolitan-district-council/leeds,Leeds City Council,30/09/2021,Strategic Landlord,Housing Management,Supplies and Services,Other Hired And Contracted Services,265,15/09/2021,2109-00781,0.00,0.66,R,Allpay Limted,No
Http://opendatacommunities.org/id/metropolitan-district-council/leeds,Leeds City Council,30/09/2021,Resources and Housing,Finance,Supplies and Services,Bank Charges,263,30/09/2021,2109-00782,0.00,8430.31,R,Allpay Limted,No
Http://opendatacommunities.org/id/metropolitan-district-council/leeds,Leeds City Council,30/09/2021,Resources and Housing,Finance,Supplies and Services,Bank Charges,263,30/09/2021,2109-00783,0.00,2854.91,R,Allpay Limted,No
Http://opendatacommunities.org/id/metropolitan-district-council/leeds,Leeds City Council,30/09/2021,Resources and Housing,Finance,Supplies and Services,Bank Charges,263,30/09/2021,2109-00784,0.00,293.39,R,Allpay Limted,No
Http://opendatacommunities.org/id/metropolitan-district-council/leeds,Leeds City Council,30/09/2021,Resources and Housing,Finance,Supplies and Services,Bank Charges,263,30/09/2021,2109-00785,0.00,2798.77,R,Allpay Limted,No
Http://opendatacommunities.org/id/metropolitan-district-council/leeds,Leeds City Council,30/09/2021,Resources and Housing,Finance,Supplies and Services,Bank Charges,263,30/09/2021,2109-00786,0.00,116.37,R,Allpay Limted,No
